Workbook

Sheet Cotizador (hidden)

Sheet Instrucciones (hidden)
I7: =TODAY() -> 2022-02-03
B10: INSTRUCCIONES
B12: Seguros Banorte elaboró para ti esta herramienta de sencilla utilización de la que . . .
B13: ¡Estamos seguros, te será de gran utilidad!
B15: A. Ingresa o selecciona de la lista desplegable tu clave de agente en la pestaña de COTIZACIÓN
B17: 1. Seleccione el NIVEL HOSPITALARIO (T o T+)
B18: 2. Seleccione el TIPO DE COTIZACIÓN (Individual o Familiar)
B19: 3. Seleccione la SUMA ASEGURADA deseada
B20: 4. Seleccione el TIPO DE DEDUCIBLE (Anual o Por Padecimiento)
B21: 5. Seleccione el DEDUCIBLE deseado
B22: 6. Seleccione el COASEGURO deseado
B23: 7. Seleccione el ESTADO donde radica el cliente.
B24: 9. Seleccione si desea INCREMENTO EN SUMA ASEGURADA POR PARTO O CESÁREA ("SI", "NO")
B25: 10. Seleccione la SUMA ASEGURADA POR PARTO O CESÁREA
B26: (La base de suma asegurada es de $20,000)
B27: 11. Seleccione si desea COBERTURA DE VISION INCREMENTAL ("SI", " NO")
B28: 12. Seleccione si desea COBERTURA DE INDEMNIZACION POR ENFERMEDAD GRAVE, así como la SUMA ASEGURADA para esta cobertura
B29: 13. Seleccione si desea COBERTURA TOTAL EN EL EXTRANJERO ("SI", " NO")
B30: 14. Si desea incrementar la base de honorarios quirúrgicos deberá indicar el porcentaje deseado en INC THQ
B31: 15. Llene el NOMBRE, SEXO y EDAD del Titular, Cónyuge y Dependientes (si fuera el caso)
B32: 16. Vaya al FORMATO DE IMPRESIÓN para obtener la COTIZACIÓN

Sheet COTIZACION
B5: DATOS DE LA PÓLIZA
B7: Tipo de póliza | D7: Nueva | E7: =IF(AND(D7="Nueva",E28>64),"COTIZACION INVALIDA",IF(AND(D7="Nueva",E29>64),"COTIZACION INVALIDA","OK")) -> OK
B8: Nivel Hospitalario | D8: T+
B9: Tipo de Cotización | D9: FAMILIAR
B10: Suma Asegurada | D10: 100000000
B11: Tipo de Deducible | D11: POR PADECIMIENTO
B12: Deducible | D12: 12000
B13: Coaseguro | D13: 10% CON TOPE DE $35,000
B14: Estado | D14: CIUDAD DE MÉXICO
B15: Zona | D15: =VLOOKUP(D14,FACTORES!$N$3:$P$34,2,0) -> 8
B16: Eliminación de Deducible por Accidente | D16: SI
B17: Incremento en Parto o Cesárea | D17: NO | E17: =IF(D12>50000,"Gasto por parto o cesárea incluido en cobertura básica de hasta $20,000",IF(D17="NO","Gasto por parto o cesárea incluido en cobertura básica de hasta $20,000","Gasto por parto o cesárea con cobertura incremental contratada, hasta"&" $ "&D17)) -> Gasto por parto o cesárea incluido en cobertura básica de hasta $20,000
B18: Cobertura de Visión Incremental | D18: NO
B19: Cobertura de Indemnización por Enfermedad Grave (1) | D19: NO | E19: =IF(AND(D19<>"NO",SUM(A28:A35)<1),"COBERTURA NO PERMITIDA POR EDAD","") -> 
B20: Cobertura Total en el Extranjero | D20: NO | E20: =+IF(D8="T","No es posible contratar cobertura en el extranjero en este nivel Hospitalario","") -> 
B22: Inc THQ | D22: 0
B23: IVA | D23: 0.16
B24: IVA | D24: 0.16
B27: ASEGURADO | C27: NOMBRE | D27: SEXO | E27: EDAD | G27: Forma de Pago | H27: Primer Recibo | I27: Recibos Subsecuentes | J27: Total
A28: =+IF(AND(E28>=18,E28<60),1,0) -> 1 | B28: Titular | D28: HOMBRE | E28: 49 | F28: =+IF(E28="","",IF(D9="FAMILIAR",IF(E28<18,"Edad no permitida",""),"")) ->  | G28: ANUAL | H28: =+IMPRESION!E87 -> 46005.15919 | I28: =+IMPRESION!F87 -> 0 | J28: =+IMPRESION!G87 -> 46005.15919
A29: =+IF(AND(E29>=18,E29<60),1,0) -> 0 | B29: =IF(D9="FAMILIAR","Cónyuge","") -> Cónyuge | F29: =+IF(E29="","",IF(D10="FAMILIAR",IF(E29<18,"Edad no permitida",""),"")) ->  | G29: SEMESTRAL | H29: =+IMPRESION!E88 -> 24532.65441 | I29: =+IMPRESION!F88 -> 23604.65441 | J29: =+IMPRESION!G88 -> 48137.30882
A30: 0 | B30: =IF($D$9="FAMILIAR","Dependiente 1","") -> Dependiente 1 | G30: TRIMESTRAL | H30: =+IMPRESION!E89 -> 12985.01316 | I30: =+IMPRESION!F89 -> 12057.01316 | J30: =+IMPRESION!G89 -> 49156.05262
A31: 0 | B31: =IF($D$9="FAMILIAR","Dependiente 2","") -> Dependiente 2 | G31: MENSUAL | H31: =+IMPRESION!E90 -> 5059.697283 | I31: =+IMPRESION!F90 -> 4131.697283 | J31: =+IMPRESION!G90 -> 50508.3674
A32: 0 | B32: =IF($D$9="FAMILIAR","Dependiente 3","") -> Dependiente 3
A33: 0 | B33: =IF($D$9="FAMILIAR","Dependiente 4","") -> Dependiente 4
A34: 0 | B34: =IF($D$9="FAMILIAR","Dependiente 5","") -> Dependiente 5
A35: 0 | B35: =IF($D$9="FAMILIAR","Dependiente 6","") -> Dependiente 6 | G35: RECARGOS POR PAGO FRACCIONADO
G36: Forma de Pago | H36: %
G37: SEMESTRAL | H37: 0.0473 | I37: FAVOR de Verificar si estos factores son los vigentes
G38: TRIMESTRAL | H38: 0.0699
B39: CLAVE DE AGENTE | G39: MENSUAL | H39: 0.0999
B40: AGENTE
B42: (1) Esta cobertura aplica para Asegurados con edades entre 18 a 59 años. **Vigencia de cotizador del 01 de Marzo 2022 al 28 de Febrero 2023.

Sheet FACTORES (hidden)
B1: TARIFA 2020 | D1: ok | G1: DEDUCIBLE | H1: POR PADECIMIENTO | I1: ANUAL | K1: COASEGURO | N1: Estados | R1: Zonas | U1: SUMA ASEGURADA | X1: RECARGO POR PAGO FRACCIONADO | AC1: APLICACIÓN DE FACTORES | AF1: COBERTURAS ADICIONALES
B2: Edad | C2: Hombre | D2: Mujer | G2: IMPORTE | H2: FACTOR | I2: FACTOR | K2: % | L2: FACTOR | N2: ESTADO DE LA REPUBLICA | O2: REGIÓN PREFERENTE | P2: Zona | R2: ZONA | S2: FACTOR | U2: SUMA ASEGURADA | V2: FACTOR | X2: PERIODO | Y2: FIJO | Z2: CAPTURA | AA2: % CALCULO | AC2: CONCEPTO | AD2: FACTOR | AF2: CONCEPTO | AG2: FACTOR | AI2: Participante | AJ2: Basica | AK2: Maternidad | AL2: Adicionales | AM2: EDxA | AN2: Cob Ext | AO2: Total | AV2: EMERGENCIA EN EL EXTRANJERO | AZ2: DED CERO POR ACC | BA2: COSTO | BD2: RPF | BE2: FIJO | BF2: CAPTURA | BG2: % CALCULO
B3: 0 | C3: 9815.604985 | D3: 9779.127686 | G3: 12000 | H3: 0.831 | I3: =ROUND(H3*$I$18,3) -> 0.751 | K3: 10% CON TOPE DE $35,000 | L3: 0.922 | N3: AGUASCALIENTES | O3: 5 | P3: 3 | R3: 1 | S3: 0.65 | U3: 200000 | V3: 0.677 | X3: SEMESTRAL | Y3: 0.0473 | Z3: =+COTIZACION!H37 -> 0.0473 | AA3: =IF(Z3=0,1+Y3,1+Z3) -> 1.0473 | AC3: Nivel Hospitalario | AD3: =VLOOKUP(COTIZACION!D8,FACTORES!$R$17:$S$18,2,0) -> 0.84 | AF3: Emergencia en el extranjero | AG3: =$AD$26 -> 173.6627648 | AI3: 1 | AJ3: =(IF(COTIZACION!F28="EDAD NO PERMITIDA","EDAD NO PERMITIDA",IF(IMPRESION!H71="","",IF(IMPRESION!I71="HOMBRE",VLOOKUP(IMPRESION!H71,FACTORES!$B$3:$D$103,2,0)*FACTORES!$AD$9,IF(IMPRESION!I71="MUJER",VLOOKUP(IMPRESION!H71,FACTORES!$B$3:$D$103,3,0)*FACTORES!$AD$9,""))))) -> 36510.96527 | AK3: =IF(COTIZACION!D28="","",IF(AND(COTIZACION!D28="MUJER",50>COTIZACION!E28,COTIZACION!E28>17,COTIZACION!$D$12>45000),FACTORES!$L$21,IF(AND(COTIZACION!D28="mujer",50>COTIZACION!E28,COTIZACION!E28>17),VLOOKUP(COTIZACION!$D$17,FACTORES!$K$21:$L$23,2,0),0))) -> 0 | AL3: =IF(AND(COTIZACION!E28>17,COTIZACION!E28<60),IF(AJ3="","",$AG$8),IF(AJ3="","",$AG$8-$AG$7)) -> 412.4498273 | AM3: =IF(AJ3="","",IF(COTIZACION!E28<20,FACTORES!$AG$26,FACTORES!$AG$27)) -> 1936.204899 | AN3: =IFERROR(IF(COTIZACION!D8="T",0,IF(AJ3="","",VLOOKUP(COTIZACION!$D$20,FACTORES!$AC$30:$AD$31,2,0))*AJ3),0) -> 0 | AO3: =IF(AJ3="","",SUM(AJ3:AN3)) -> 38859.61999 | AV3: SI | AW3: 1.05 | BD3: SEMESTRAL
B4: 1 | C4: 9815.604985 | D4: 9779.127686 | G4: 15000 | H4: 0.798 | I4: 0.721 | K4: 15% CON TOPE DE $45,000 | L4: 0.888 | N4: BAJA CALIFORNIA NORTE | O4: 3 | P4: 2 | R4: 2 | S4: 0.71 | U4: 300000 | V4: 0.71 | X4: TRIMESTRAL | Y4: 0.07 | Z4: =+COTIZACION!H38 -> 0.0699 | AA4: =IF(Z4=0,1+Y4,1+Z4) -> 1.0699 | AC4: Suma Asegurada | AD4: =VLOOKUP(COTIZACION!D10,FACTORES!$U$3:$V$24,2,0) -> 1.19 | AF4: Asistencias | AG4: =$AD$13 -> 78.222375 | AI4: 2 | AJ4: =(IF(COTIZACION!F29="EDAD NO PERMITIDA","EDAD NO PERMITIDA",IF(IMPRESION!H72="","",IF(IMPRESION!I72="HOMBRE",VLOOKUP(IMPRESION!H72,FACTORES!$B$3:$D$103,2,0)*FACTORES!$AD$9,IF(IMPRESION!I72="MUJER",VLOOKUP(IMPRESION!H72,FACTORES!$B$3:$D$103,3,0)*FACTORES!$AD$9,""))))) ->  | AK4: =IF(COTIZACION!D29="","",IF(AND(COTIZACION!D29="MUJER",50>COTIZACION!E29,COTIZACION!E29>17,COTIZACION!$D$12>45000),FACTORES!$L$21,IF(AND(COTIZACION!D29="mujer",50>COTIZACION!E29,COTIZACION!E29>17),VLOOKUP(COTIZACION!$D$17,FACTORES!$K$21:$L$23,2,0),0))) ->  | AL4: =IF(AND(COTIZACION!E29>17,COTIZACION!E29<60),IF(AJ4="","",$AG$8),IF(AJ4="","",$AG$8-$AG$7)) ->  | AM4: =IF(AJ4="","",IF(COTIZACION!E29<20,FACTORES!$AG$26,FACTORES!$AG$27)) ->  | AN4: =IFERROR(IF(COTIZACION!D9="T",0,IF(AJ4="","",VLOOKUP(COTIZACION!$D$20,FACTORES!$AC$30:$AD$31,2,0))*AJ4),0) -> 0 | AO4: =IF(AJ4="","",SUM(AJ4:AN4)) ->  | AV4: NO | AW4: 1 | BD4: TRIMESTRAL
B5: 2 | C5: 9815.604985 | D5: 9779.127686 | G5: 20000 | H5: 0.747 | I5: 0.675 | K5: 20% CON TOPE DE $60,000 | L5: 0.85 | N5: BAJA CALIFORNIA SUR | O5: 5 | P5: 3 | R5: 3 | S5: 0.71 | U5: 400000 | V5: 0.734 | X5: MENSUAL | Y5: 0.1 | Z5: =+COTIZACION!H39 -> 0.0999 | AA5: =IF(Z5=0,1+Y5,1+Z5) -> 1.0999 | AC5: Deducible | AD5: =IF(COTIZACION!D11="ANUAL",VLOOKUP(COTIZACION!D12,FACTORES!$G$3:$I$17,3,0),VLOOKUP(COTIZACION!D12,FACTORES!$G$3:$I$17,2,0)) -> 0.831 | AF5: Cobertura integral D y V | AG5: =$AD$17 -> 160.5646875 | AI5: 3 | AJ5: =(IF(COTIZACION!F30="EDAD NO PERMITIDA","EDAD NO PERMITIDA",IF(IMPRESION!H73="","",IF(IMPRESION!I73="HOMBRE",VLOOKUP(IMPRESION!H73,FACTORES!$B$3:$D$103,2,0)*FACTORES!$AD$9,IF(IMPRESION!I73="MUJER",VLOOKUP(IMPRESION!H73,FACTORES!$B$3:$D$103,3,0)*FACTORES!$AD$9,""))))) ->  | AK5: =IF(COTIZACION!D30="","",IF(AND(COTIZACION!D30="MUJER",50>COTIZACION!E30,COTIZACION!E30>17,COTIZACION!$D$12>45000),FACTORES!$L$21,IF(AND(COTIZACION!D30="mujer",50>COTIZACION!E30,COTIZACION!E30>17),VLOOKUP(COTIZACION!$D$17,FACTORES!$K$21:$L$23,2,0),0))) ->  | AL5: =IF(AND(COTIZACION!E30>17,COTIZACION!E30<60),IF(AJ5="","",$AG$8),IF(AJ5="","",$AG$8-$AG$7)) ->  | AM5: =IF(AJ5="","",IF(COTIZACION!E30<20,FACTORES!$AG$26,FACTORES!$AG$27)) ->  | AN5: =IFERROR(IF(COTIZACION!D10="T",0,IF(AJ5="","",VLOOKUP(COTIZACION!$D$20,FACTORES!$AC$30:$AD$31,2,0))*AJ5),0) -> 0 | BD5: MENSUAL
B6: 3 | C6: 9815.604985 | D6: 9779.127686 | G6: 25000 | H6: 0.704 | I6: 0.636 | L6: ok | N6: CAMPECHE | O6: 1 | P6: 1 | R6: 4 | S6: 0.84 | U6: 500000 | V6: 0.753 | AC6: Coaseguro | AD6: =VLOOKUP(COTIZACION!D13,FACTORES!$K$3:$L$5,2,0) -> 0.922 | AF6: Visión Incremental | AG6: =VLOOKUP(COTIZACION!$D$18,FACTORES!$AC$21:$AD$22,2,0) -> 0 | AI6: 4 | AJ6: =(IF(COTIZACION!F31="EDAD NO PERMITIDA","EDAD NO PERMITIDA",IF(IMPRESION!H74="","",IF(IMPRESION!I74="HOMBRE",VLOOKUP(IMPRESION!H74,FACTORES!$B$3:$D$103,2,0)*FACTORES!$AD$9,IF(IMPRESION!I74="MUJER",VLOOKUP(IMPRESION!H74,FACTORES!$B$3:$D$103,3,0)*FACTORES!$AD$9,""))))) ->  | AK6: =IF(COTIZACION!D31="","",IF(AND(COTIZACION!D31="MUJER",50>COTIZACION!E31,COTIZACION!E31>17,COTIZACION!$D$12>45000),FACTORES!$L$21,IF(AND(COTIZACION!D31="mujer",50>COTIZACION!E31,COTIZACION!E31>17),VLOOKUP(COTIZACION!$D$17,FACTORES!$K$21:$L$23,2,0),0))) ->  | AL6: =IF(AND(COTIZACION!E31>17,COTIZACION!E31<60),IF(AJ6="","",$AG$8),IF(AJ6="","",$AG$8-$AG$7)) ->  | AM6: =IF(AJ6="","",IF(COTIZACION!E31<20,FACTORES!$AG$26,FACTORES!$AG$27)) ->  | AN6: =IFERROR(IF(COTIZACION!D11="T",0,IF(AJ6="","",VLOOKUP(COTIZACION!$D$20,FACTORES!$AC$30:$AD$31,2,0))*AJ6),0) -> 0 | AV6: COBERTURA EN EL EXTRANJERO | AZ6: 5500 | BA6: 541.67
B7: 4 | C7: 9815.604985 | D7: 9779.127686 | G7: 30000 | H7: 0.664 | I7: 0.6 | N7: CHIAPAS | O7: 3 | P7: 2 | R7: 5 | S7: 0.84 | U7: 600000 | V7: 0.768 | AC7: Tabulador de Honorarios Médicos | AD7: =VLOOKUP(COTIZACION!D22,FACTORES!$K$11:$L$16,2,0) -> 1 | AF7: Enfermedades graves | AG7: =+IF(OR(COTIZACION!E19="COBERTURA NO PERMITIDA POR EDAD",COTIZACION!D19="NO"),0,VLOOKUP(COTIZACION!D19,FACTORES!X11:AA18,4,FALSE)) -> 0 | AI7: 5 | AJ7: =(IF(COTIZACION!F32="EDAD NO PERMITIDA","EDAD NO PERMITIDA",IF(IMPRESION!H75="","",IF(IMPRESION!I75="HOMBRE",VLOOKUP(IMPRESION!H75,FACTORES!$B$3:$D$103,2,0)*FACTORES!$AD$9,IF(IMPRESION!I75="MUJER",VLOOKUP(IMPRESION!H75,FACTORES!$B$3:$D$103,3,0)*FACTORES!$AD$9,""))))) ->  | AK7: =IF(COTIZACION!D32="","",IF(AND(COTIZACION!D32="MUJER",50>COTIZACION!E32,COTIZACION!E32>17,COTIZACION!$D$12>45000),FACTORES!$L$21,IF(AND(COTIZACION!D32="mujer",50>COTIZACION!E32,COTIZACION!E32>17),VLOOKUP(COTIZACION!$D$17,FACTORES!$K$21:$L$23,2,0),0))) ->  | AL7: =IF(AND(COTIZACION!E32>17,COTIZACION!E32<60),IF(AJ7="","",$AG$8),IF(AJ7="","",$AG$8-$AG$7)) ->  | AM7: =IF(AJ7="","",IF(COTIZACION!E32<20,FACTORES!$AG$26,FACTORES!$AG$27)) ->  | AN7: =IFERROR(IF(COTIZACION!D12="T",0,IF(AJ7="","",VLOOKUP(COTIZACION!$D$20,FACTORES!$AC$30:$AD$31,2,0))*AJ7),0) -> 0 | AV7: ZONA A | AW7: 3.3 | AZ7: 6000 | BA7: 574.51
B8: 5 | C8: 9815.604985 | D8: 9779.127686 | G8: 35000 | H8: 0.63 | I8: 0.57 | N8: CHIHUAHUA | O8: 7 | P8: 4 | R8: 6 | S8: 1 | U8: 700000 | V8: 0.78 | AC8: Zona | AD8: =VLOOKUP(COTIZACION!D15,FACTORES!$R$3:$S$12,2,0) -> 1.25 | AG8: =SUM(AG3:AG7) -> 412.4498273 | AI8: 6 | AJ8: =(IF(COTIZACION!F33="EDAD NO PERMITIDA","EDAD NO PERMITIDA",IF(IMPRESION!H76="","",IF(IMPRESION!I76="HOMBRE",VLOOKUP(IMPRESION!H76,FACTORES!$B$3:$D$103,2,0)*FACTORES!$AD$9,IF(IMPRESION!I76="MUJER",VLOOKUP(IMPRESION!H76,FACTORES!$B$3:$D$103,3,0)*FACTORES!$AD$9,""))))) ->  | AK8: =IF(COTIZACION!D33="","",IF(AND(COTIZACION!D33="MUJER",50>COTIZACION!E33,COTIZACION!E33>17,COTIZACION!$D$12>45000),FACTORES!$L$21,IF(AND(COTIZACION!D33="mujer",50>COTIZACION!E33,COTIZACION!E33>17),VLOOKUP(COTIZACION!$D$17,FACTORES!$K$21:$L$23,2,0),0))) ->  | AL8: =IF(AND(COTIZACION!E33>17,COTIZACION!E33<60),IF(AJ8="","",$AG$8),IF(AJ8="","",$AG$8-$AG$7)) ->  | AM8: =IF(AJ8="","",IF(COTIZACION!E33<20,FACTORES!$AG$26,FACTORES!$AG$27)) ->  | AN8: =IFERROR(IF(COTIZACION!D13="T",0,IF(AJ8="","",VLOOKUP(COTIZACION!$D$20,FACTORES!$AC$30:$AD$31,2,0))*AJ8),0) -> 0 | AV8: ZONA C | AW8: 1.9 | AZ8: 8000 | BA8: 626.29 | BD8: ZONA | BE8: MONTO
B9: 6 | C9: 9815.604985 | D9: 9779.127686 | G9: 40000 | H9: 0.598 | I9: 0.541 | K9: TABULADOR DE HONORARIOS | N9: CIUDAD DE MÉXICO | O9: 8 | P9: 5 | R9: 7 | S9: 1 | U9: 800000 | V9: 0.791 | X9: ENFERMEDADES GRAVES | AD9: =AD3*AD4*AD5*AD6*AD7*AD8 -> 0.957344409 | AI9: 7 | AJ9: =(IF(COTIZACION!F34="EDAD NO PERMITIDA","EDAD NO PERMITIDA",IF(IMPRESION!H77="","",IF(IMPRESION!I77="HOMBRE",VLOOKUP(IMPRESION!H77,FACTORES!$B$3:$D$103,2,0)*FACTORES!$AD$9,IF(IMPRESION!I77="MUJER",VLOOKUP(IMPRESION!H77,FACTORES!$B$3:$D$103,3,0)*FACTORES!$AD$9,""))))) ->  | AK9: =IF(COTIZACION!D34="","",IF(AND(COTIZACION!D34="MUJER",50>COTIZACION!E34,COTIZACION!E34>17,COTIZACION!$D$12>45000),FACTORES!$L$21,IF(AND(COTIZACION!D34="mujer",50>COTIZACION!E34,COTIZACION!E34>17),VLOOKUP(COTIZACION!$D$17,FACTORES!$K$21:$L$23,2,0),0))) ->  | AL9: =IF(AND(COTIZACION!E34>17,COTIZACION!E34<60),IF(AJ9="","",$AG$8),IF(AJ9="","",$AG$8-$AG$7)) ->  | AM9: =IF(AJ9="","",IF(COTIZACION!E34<20,FACTORES!$AG$26,FACTORES!$AG$27)) ->  | AN9: =IFERROR(IF(COTIZACION!D14="T",0,IF(AJ9="","",VLOOKUP(COTIZACION!$D$20,FACTORES!$AC$30:$AD$31,2,0))*AJ9),0) -> 0 | AZ9: 9000 | BA9: 647.52 | BD9: 1 | BE9: 0.627 | BF9: =+BE9*$BC$14 -> 30973.8
B10: 7 | C10: 9815.604985 | D10: 9779.127686 | G10: 45000 | H10: 0.57 | I10: 0.515 | K10: Incremento THQ | L10: Factor | N10: COAHUILA | O10: 7 | P10: 4 | R10: 8 | S10: 1.25 | U10: 1000000 | V10: 0.81 | X10: SUMA ASEGURADA | Y10: TARIFA | Z10: FACTOR | AA10: COSTO | AI10: 8 | AJ10: =(IF(COTIZACION!F35="EDAD NO PERMITIDA","EDAD NO PERMITIDA",IF(IMPRESION!H78="","",IF(IMPRESION!I78="HOMBRE",VLOOKUP(IMPRESION!H78,FACTORES!$B$3:$D$103,2,0)*FACTORES!$AD$9,IF(IMPRESION!I78="MUJER",VLOOKUP(IMPRESION!H78,FACTORES!$B$3:$D$103,3,0)*FACTORES!$AD$9,""))))) ->  | AK10: =IF(COTIZACION!D35="","",IF(AND(COTIZACION!D35="MUJER",50>COTIZACION!E35,COTIZACION!E35>17,COTIZACION!$D$12>45000),FACTORES!$L$21,IF(AND(COTIZACION!D35="mujer",50>COTIZACION!E35,COTIZACION!E35>17),VLOOKUP(COTIZACION!$D$17,FACTORES!$K$21:$L$23,2,0),0))) ->  | AL10: =IF(AND(COTIZACION!E35>17,COTIZACION!E35<60),IF(AJ10="","",$AG$8),IF(AJ10="","",$AG$8-$AG$7)) ->  | AM10: =IF(AJ10="","",IF(COTIZACION!E35<20,FACTORES!$AG$26,FACTORES!$AG$27)) ->  | AN10: =IFERROR(IF(COTIZACION!D15="T",0,IF(AJ10="","",VLOOKUP(COTIZACION!$D$20,FACTORES!$AC$30:$AD$31,2,0))*AJ10),0) -> 0 | AZ10: 10000 | BA10: 666.48 | BD10: 2 | BE10: 0.737 | BF10: =+BE10*$BC$14 -> 36407.8
B11: 8 | C11: 9815.604985 | D11: 9779.127686 | G11: 50000 | H11: 0.544 | I11: 0.492 | K11: 0 | L11: 1 | N11: COLIMA | O11: 5 | P11: 3 | R11: 9 | S11: 1.25 | U11: 2000000 | V11: 0.867 | X11: NO | Y11: 0 | Z11: 0 | AA11: =+Z11*Y11 -> 0 | AC11: ASISTENCIAS | AX11: 15000 | AY11: 739.49 | AZ11: =AY11/1.8 -> 410.8277778 | BB11: 3 | BC11: 0.824 | BD11: =+BC11*$BC$14 -> 40705.6
B12: 9 | C12: 9815.604985 | D12: 9779.127686 | G12: 75000 | H12: 0.444 | I12: 0.401 | K12: 0.15 | L12: 1.1 | N12: DURANGO | O12: 5 | P12: 3 | R12: 10 | S12: - | U12: 3000000 | V12: 0.901 | X12: 10000 | Y12: 106.636874 | Z12: 1 | AA12: =+Z12*Y12 -> 106.636874 | AC12: RESPUESTA | AD12: COSTO | AX12: 20000 | AY12: 791.3 | BB12: 4 | BC12: 1 | BD12: =+BC12*$BC$14 -> 49400
B13: 10 | C13: 9815.604985 | D13: 9779.127686 | G13: 100000 | H13: 0.376 | I13: 0.34 | K13: 0.25 | L13: 1.14 | N13: ESTADO DE MÉXICO | O13: 9 | P13: 5 | U13: 4000000 | V13: 0.924 | X13: 20000 | Y13: 106.636874 | Z13: 2 | AA13: =+Z13*Y13 -> 213.2737479 | AC13: SI | AD13: 78.222375 | AE13: 69.3 | AF13: 72.765 | AJ13: Llave | AK13: Ramo | AL13: Norma | AM13: Textos | AN13: Llave_2 | AX13: 25000 | AY13: 831.47
B14: 11 | C14: 9825.42059 | D14: 9681.336409 | K14: 0.5 | L14: 1.25 | N14: GUANAJUATO | O14: 3 | P14: 2 | U14: 5000000 | V14: 0.943 | X14: 30000 | Y14: 106.636874 | Z14: 3 | AA14: 319.9106219 | AI14: =+LEFT(AJ14,4) -> 1T T | AJ14: 1T T 16 | AK14: 1200 | AL14: 95000 | AM14: 1,2,3,5,6,7,8 | AN14: =+VLOOKUP(COTIZACION!D14,FACTORES!N3:O34,2,FALSE)&LEFT(COTIZACION!D8,1)&" "&IF(IFERROR(SEARCH("TOPE",COTIZACION!D13,1),"")="","","T") -> 8T T | AX14: 30000 | AY14: 1324.73 | BB14: BASE | BC14: 49400
B15: 12 | C15: 9835.246011 | D15: 9584.523045 | K15: 0.75 | L15: 1.35 | N15: GUERRERO | O15: 3 | P15: 2 | R15: NIVEL HOSPITALARIO PREFERENTE | U15: 6000000 | V15: 0.958 | X15: 40000 | Y15: 106.636874 | Z15: 4 | AA15: 426.5474959 | AC15: COBERTURA INTEGRAL DENTAL Y VISIÓN | AI15: =+LEFT(AJ15,4) -> 2T T | AJ15: 2T T 16 | AK15: 1200 | AL15: 95001 | AM15: 1,2,3,5,6,7,8 | AX15: 35000 | AY15: 1367.29
B16: 13 | C16: 9845.081257 | D16: 9488.677814 | K16: 1 | L16: 1.45 | N16: HIDALGO | O16: 5 | P16: 3 | R16: CATALOGO | S16: FACTOR | U16: 7000000 | V16: 0.971 | X16: 50000 | Y16: 106.636874 | Z16: 5 | AA16: 533.1843698 | AC16: RESPUESTA | AD16: COSTO | AI16: 3T T | AJ16: 3T T 16 | AK16: 1200 | AL16: 95002 | AM16: 1,2,3,5,6,7,8 | AV16: 1238 | AX16: 40000 | AY16: 1404.13
B17: 14 | C17: 9854.926338 | D17: 9488.677814 | L17: ok | N17: JALISCO | O17: 4 | P17: 3 | R17: T | S17: 0.69 | U17: 8000000 | V17: 0.982 | X17: 75000 | Y17: 106.636874 | Z17: 7.5 | AA17: 799.7765547 | AC17: SI | AD17: 160.5646875 | AE17: 142.25 | AF17: 149.3625 | AI17: 4T T | AJ17: 4T T 16 | AK17: 1200 | AL17: 95003 | AM17: 1,2,3,5,6,7,8 | AX17: 45000 | AY17: 1436.64
B18: 15 | C18: 9864.781265 | D18: 9488.677814 | I18: 0.904 | N18: MICHOACAN | O18: 5 | P18: 3 | R18: T+ | S18: 0.84 | U18: 9000000 | V18: 0.991 | X18: 100000 | Y18: 106.636874 | Z18: 10 | AA18: 1066.36874 | AI18: 5T T | AJ18: 5T T 16 | AK18: 1200 | AL18: 95004 | AM18: 1,2,3,5,6,7,8 | AX18: 50000 | AY18: 1465.7
B19: 16 | C19: 9874.646046 | D19: 9488.677814 | I19: ok | K19: MATERNIDAD | N19: MORELOS | O19: 7 | P19: 4 | U19: 10000000 | V19: 1 | AA19: =+IF(OR(COTIZACION!E19="COBERTURA NO PERMITIDA POR EDAD",COTIZACION!D19="NO"),0,VLOOKUP(COTIZACION!D19,FACTORES!X11:AA18,4,FALSE)) -> 0 | AC19: VISIÓN INCREMENTAL | AI19: 6T T | AJ19: 6T T 16 | AK19: 1200 | AL19: 95005 | AM19: 1,2,3,5,6,7,8
B20: 17 | C20: 9884.520692 | D20: 9488.677814 | K20: Incremento HQ | L20: Factor | N20: NAYARIT | O20: 3 | P20: 2 | R20: TIPO DE COTIZACIÓN | U20: 20000000 | V20: 1.057 | AC20: RESPUESTA | AD20: COSTO | AI20: 7T T | AJ20: 7T T 16 | AK20: 1200 | AL20: 95006 | AM20: 1,2,3,5,6,7,8
B21: 18 | C21: 9983.365899 | D21: 7590.942252 | H21: TIPO DE DEDUCIBLE | K21: NO | L21: 1954.026474 | N21: NUEVO LEON | O21: 6 | P21: 4 | R21: INDIVIDUAL | U21: 30000000 | V21: 1.091 | X21: BASE DE CATALOGO | AC21: SI | AD21: 233.2110375 | AE21: 206.61 | AF21: 216.9405 | AI21: 8T T | AJ21: 8T T 16 | AK21: 1200 | AL21: 95007 | AM21: 1,2,3,5,6,7,8
B22: 19 | C22: 10083.19956 | D22: 8107.126325 | H22: POR PADECIMIENTO | K22: 30000 | L22: 3656.306716 | N22: OAXACA | O22: 1 | P22: 1 | R22: FAMILIAR | U22: 40000000 | V22: 1.115 | X22: ZONA | Y22: PORCENTAJE | Z22: MONTO | AC22: NO | AD22: 0 | AE22: 0 | AI22: 9T T | AJ22: 9T T 16 | AK22: 1200 | AL22: 95008 | AM22: 1,2,3,5,6,7,8
B23: 20 | C23: 8943.499784 | D23: 7794.506202 | H23: ANUAL | K23: 40000 | L23: 7790.437238 | N23: PUEBLA | O23: 2 | P23: 2 | U23: 50000000 | V23: 1.133 | X23: 1 | Y23: 0.7609199129 | Z23: =Y23*$Y$33 -> 38873.87651 | AI23: 10T | AJ23: 10T T 16 | AK23: 1200 | AL23: 95009 | AM23: 1,2,3,5,6,7,8 | BA23: Costo por persona de 543
B24: 21 | C24: 9390.674773 | D24: 9509.297566 | K24: 50000 | L24: 22705.28595 | N24: QUERETARO | O24: 5 | P24: 3 | R24: GENERO TITULAR | U24: 100000000 | V24: 1.19 | X24: 2 | Y24: 0.7609199129 | Z24: 38873.87651 | AC24: COSTO EMERGENCIA EN EXTRANJERO | AF24: COSTO ELIMINACION DE DEDUCIBLE | AI24: 1E T | AJ24: 1E T 16 | AK24: 1201 | AL24: 95010 | AM24: 1,2,3,5,6,7,8 | BA24: 543.35
B25: 22 | C25: 9860.208511 | D25: 10802.56203 | K25: 18-50 | L25: ok | N25: QUINTANA ROO | O25: 7 | P25: 4 | R25: HOMBRE | V25: ok | X25: 3 | Y25: 0.7609199129 | Z25: 38873.87651 | AC25: REGIÓN | AD25: COSTO | AF25: DEDUCIBLE | AG25: COSTO | AI25: 2E T | AJ25: 2E T 16 | AK25: 1201 | AL25: 95011 | AM25: 1,2,3,5,6,7,8 | BA25: 510.75
B26: 23 | C26: 10451.82102 | D26: 11828.80543 | N26: SAN LUIS POTOSI | O26: 7 | P26: 4 | R26: MUJER | X26: 4 | Y26: 0.8944138219 | Z26: 45693.81333 | AC26: 1 | AD26: 173.6627648 | AF26: 0-19 | AG26: 842.1844728 | AI26: 3E T | AJ26: 3E T 16 | AK26: 1201 | AL26: 95012 | AM26: 1,2,3,5,6,7,8
B27: 24 | C27: 11078.93028 | D27: 12656.82181 | N27: SINALOA | O27: 5 | P27: 3 | X27: 5 | Y27: 0.8944138219 | Z27: 45693.81333 | AF27: 20-100 | AG27: 1936.204899 | AI27: 4E T | AJ27: 4E T 16 | AK27: 1201 | AL27: 95013 | AM27: 1,2,3,5,6,7,8
B28: 25 | C28: 11743.6661 | D28: 13504.82887 | N28: SONORA | O28: 7 | P28: 4 | X28: 6 | Y28: 1 | Z28: 51088 | AC28: COSTO COBERTURA EXTRANJERO | AI28: 5E T | AJ28: 5E T 16 | AK28: 1201 | AL28: 95014 | AM28: 1,2,3,5,6,7,8 | AY28: 2318.256
B29: 26 | C29: 12448.28607 | D29: 14409.6524 | N29: TABASCO | O29: 3 | P29: 2 | R29: RESPUESTA | X29: 7 | Y29: 1 | Z29: 51088 | AC29: REGIÓN | AD29: COSTO | AI29: 6E T | AJ29: 6E T 16 | AK29: 1201 | AL29: 95015 | AM29: 1,2,3,5,6,7,8 | AZ29: =AY28*1.1 -> 2550.0816
B30: 27 | C30: 13195.18323 | D30: 15202.18329 | N30: TAMAULIPAS | O30: 7 | P30: 4 | R30: SI | X30: 8 | Y30: 1.21358099 | Z30: 62000 | AC30: SI | AD30: 0.424 | AI30: 7E T | AJ30: 7E T 16 | AK30: 1201 | AL30: 95016 | AM30: 1,2,3,5,6,7,8
B31: 28 | C31: 13854.94239 | D31: 15962.29245 | N31: TLAXCALA | O31: 1 | P31: 1 | R31: NO | X31: 9 | Y31: 1.21358099 | Z31: 62000 | AC31: NO | AD31: 0 | AI31: 8E T | AJ31: 8E T 16 | AK31: 1201 | AL31: 95017 | AM31: 1,2,3,5,6,7,8
B32: 29 | C32: 14547.68951 | D32: 16760.40707 | N32: VERACRUZ | O32: 3 | P32: 2 | X32: 10 | Y32: - | Z32: - | AI32: 9E T | AJ32: 9E T 16 | AK32: 1201 | AL32: 95018 | AM32: 1,2,3,5,6,7,8
B33: 30 | C33: 15142.26949 | D33: 17694.21135 | N33: YUCATAN | O33: 1 | P33: 1 | X33: BASE | Y33: 51088 | AC33: ELIMINACION DE DEDUCIBLE | AI33: 10E | AJ33: 10E T 16 | AK33: 1201 | AL33: 95019 | AM33: 1,2,3,5,6,7,8 | BA33: ENFERMEDADES GRAVES
B34: 31 | C34: 15899.38297 | D34: 18578.92192 | N34: ZACATECAS | O34: 5 | P34: 3 | R34: Derecho de póliza | S34: 800 | AC34: REGIÓN | BA34: 10000 | BB34: 116.76
B35: 32 | C35: 16773.84903 | D35: 19507.86802 | AC35: SI | BA35: 20000 | BB35: =ROUND(BA35/$BA$34*$BB$34,2) -> 233.52
B36: 33 | C36: 17612.54148 | D36: 20483.26142 | R36: Tipo de póliza | AC36: NO | BA36: 30000 | BB36: =ROUND(BA36/$BA$34*$BB$34,2) -> 350.28
B37: 34 | C37: 18493.16856 | D37: 21507.42449 | R37: Nueva | BA37: 40000 | BB37: =ROUND(BA37/$BA$34*$BB$34,2) -> 467.04
B38: 35 | C38: 19417.82699 | D38: 22475.25859 | R38: Renovada | AJ38: Opción | AK38: Coaseguro | AL38: Coaseguro2 | AM38: Coaseguro3 | AN38: Coaseguro4 | BA38: 50000 | BB38: =ROUND(BA38/$BA$34*$BB$34,2) -> 583.8
B39: 36 | C39: 20388.71833 | D39: 23486.64523 | AJ39: 1 | AK39: 10% CON TOPE DE $35,000 | AL39: 15% CON TOPE DE $45,000 | AM39: 20% CON TOPE DE $60,000 | AN39: 25% CON TOPE DE $80,000 | BA39: 75000 | BB39: =ROUND(BA39/$BA$34*$BB$34,2) -> 875.7
B40: 37 | C40: 21408.15425 | D40: 24543.54426 | AJ40: 2 | AK40: 15% CON TOPE DE $45,000 | AL40: 20% CON TOPE DE $60,000 | AM40: 25% CON TOPE DE $80,000 | AN40: 30% CON TOPE DE $100,000 | BA40: 100000 | BB40: =ROUND(BA40/$BA$34*$BB$34,2) -> 1167.6
B41: 38 | C41: 22478.56196 | D41: 25648.00376 | AJ41: 3 | AK41: 20% CON TOPE DE $60,000 | AL41: 25% CON TOPE DE $80,000 | AM41: 30% CON TOPE DE $100,000 | AN41: 35% CON TOPE DE $120,000 | BA41: 150000 | BB41: 1751.4
B42: 39 | C42: 23602.49006 | D42: 26802.16393 | BA42: 200000 | BB42: 2335.2
B43: 40 | C43: 24583.93607 | D43: 28142.27212 | BA43: 250000 | BB43: 2919
B44: 41 | C44: 25813.13288 | D44: 29549.38573 | BA44: 300000 | BB44: 3502.8
B45: 42 | C45: 27103.78952 | D45: 31026.85501 | BA45: 350000 | BB45: 4086.6
B46: 43 | C46: 28458.979 | D46: 32578.19776 | BA46: 400000 | BB46: 4670.4
B47: 44 | C47: 29881.92795 | D47: 34207.10765 | BA47: 450000 | BB47: 5254.2
B48: 45 | C48: 31376.02435 | D48: 36259.53411 | BA48: 500000 | BB48: 5838
B49: 46 | C49: 32944.82556 | D49: 38072.51082 | BA49: 550000 | BB49: 6421.8
B50: 47 | C50: 34592.06684 | D50: 39976.13636 | BA50: 600000 | BB50: 7005.6
B51: 48 | C51: 36321.67018 | D51: 41974.94318 | BA51: 650000 | BB51: 7589.4
B52: 49 | C52: 38137.75369 | D52: 43863.81562 | BA52: 700000 | BB52: 8173.2
B53: 50 | C53: 41067.78025 | D53: 44779.72474 | BA53: 750000 | BB53: 8757
B54: 51 | C54: 43942.52487 | D54: 48362.10272 | BA54: 800000 | BB54: =ROUND(BA54/$BA$34*$BB$34,2) -> 9340.8
B55: 52 | C55: 46579.07636 | D55: 50296.58683 | BA55: 850000 | BB55: =ROUND(BA55/$BA$34*$BB$34,2) -> 9924.6
B56: 53 | C56: 49373.82094 | D56: 52811.41617 | BA56: 900000 | BB56: =ROUND(BA56/$BA$34*$BB$34,2) -> 10508.4
B57: 54 | C57: 52336.2502 | D57: 55451.98698
B58: 55 | C58: 55476.42521 | D58: 58224.58632
B59: 56 | C59: 58805.01072 | D59: 61135.81564
B60: 57 | C60: 62333.31136 | D60: 64192.60642
B61: 58 | C61: 65449.97693 | D61: 67402.23674
B62: 59 | C62: 69376.97555 | D62: 70772.34858
B63: 60 | C63: 75048.56658 | D63: 76354.44649
B64: 61 | C64: 79551.48058 | D64: 82081.02997
B65: 62 | C65: 84324.56941 | D65: 88237.10722
B66: 63 | C66: 89384.04357 | D66: 94854.89026
B67: 64 | C67: 94747.08619 | D67: 101969.007
B68: 65 | C68: 100431.9114 | D68: 109616.6826
B69: 66 | C69: 106457.826 | D69: 116193.6835
B70: 67 | C70: 112845.2956 | D70: 123165.3045
B71: 68 | C71: 119616.0133 | D71: 130555.2228
B72: 69 | C72: 126792.9741 | D72: 138388.5362
B73: 70 | C73: 134400.5526 | D73: 146691.8483
B74: 71 | C74: 142464.5857 | D74: 155493.3592
B75: 72 | C75: 151012.4609 | D75: 164822.9608
B76: 73 | C76: 160073.2085 | D76: 174712.3384
B77: 74 | C77: 169677.6011 | D77: 185195.0787
B78: 75 | C78: 179858.2571 | D78: 196306.7835
B79: 76 | C79: 190649.7525 | D79: 208085.1905
B80: 77 | C80: 202088.7377 | D80: 220570.3019
B81: 78 | C81: 214214.062 | D81: 233804.52
B82: 79 | C82: 227066.9057 | D82: 247832.7912
B83: 80 | C83: 240690.92 | D83: 262702.7587
B84: 81 | C84: 255132.3752 | D84: 278464.9242
B85: 82 | C85: 270440.3177 | D85: 295172.8197
B86: 83 | C86: 286666.7368 | D86: 312883.1888
B87: 84 | C87: 303866.741 | D87: 331656.1802
B88: 85 | C88: 322098.7455 | D88: 351555.551
B89: 86 | C89: 322098.7455 | D89: 351555.551
B90: 87 | C90: 322098.7455 | D90: 351555.551
B91: 88 | C91: 322098.7455 | D91: 351555.551
B92: 89 | C92: 322098.7455 | D92: 351555.551
B93: 90 | C93: 322098.7455 | D93: 351555.551
B94: 91 | C94: 322098.7455 | D94: 351555.551
B95: 92 | C95: 322098.7455 | D95: 351555.551
B96: 93 | C96: 322098.7455 | D96: 351555.551
B97: 94 | C97: 322098.7455 | D97: 351555.551
B98: 95 | C98: 322098.7455 | D98: 351555.551
B99: 96 | C99: 322098.7455 | D99: 351555.551
B100: 97 | C100: 322098.7455 | D100: 351555.551
B101: 98 | C101: 322098.7455 | D101: 351555.551
B102: 99 | C102: 322098.7455 | D102: 351555.551
B103: 100 | C103: 322098.7455 | D103: 351555.551

Sheet TARIFARIO (hidden)
D7: =COTIZACION!D9 -> FAMILIAR | G7: =COTIZACION!D8 -> T+ | K7: REGION | L7: =VLOOKUP(COTIZACION!D14,FACTORES!$N$2:$P$34,3,0) -> 5
C9: COBERTURAS OPCIONALES
C10: Suma Asegurada para Parto y Cesárea | F10: =IF(COTIZACION!D12>45000,"$20,000",IF(COTIZACION!$D$17="NO","$20,000",COTIZACION!$D$17)) -> $20,000 | H10: Cobertura Total en el Extranjero | K10: =IF(COTIZACION!D20="NO","NO INCLUIDO", "INCLUIDO") -> NO INCLUIDO
C11: Cobertura de Indemnización por Enfermedad Grave | F11: =IF(OR(COTIZACION!D19="NO",SUM(COTIZACION!A28:A35)<=0),"Excluido",COTIZACION!D19) -> Excluido | H11: Tipo de Deducible | K11: =COTIZACION!D11 -> POR PADECIMIENTO
H12: Incremento en el Catálogo | K12: =+COTIZACION!$D$22 -> 0
B15: SUMA ASEGURADA: | D15: =COTIZACION!$D$10 -> 100000000 | F15: SUMA ASEGURADA: | H15: =COTIZACION!$D$10 -> 100000000 | J15: SUMA ASEGURADA: | L15: =COTIZACION!$D$10 -> 100000000
B16: DEDUCIBLE: | D16: =COTIZACION!$D$12 -> 12000 | F16: DEDUCIBLE: | H16: =COTIZACION!$D$12 -> 12000 | J16: DEDUCIBLE: | L16: =COTIZACION!$D$12 -> 12000
B17: COASEGURO: | D17: =COTIZACION!$D$13 -> 10% CON TOPE DE $35,000 | F17: COASEGURO: | H17: =COTIZACION!$D$13 -> 10% CON TOPE DE $35,000 | J17: COASEGURO: | L17: =COTIZACION!$D$13 -> 10% CON TOPE DE $35,000
G19: PRIMA TOTAL CONYUGE
B21: EDAD | C21: HOMBRE | D21: MUJER | F21: EDAD | G21: HOMBRE | H21: MUJER | J21: EDAD | K21: HOMBRE | L21: MUJER | P21: EDAD | Q21: HOMBRE | R21: MUJER | T21: EDAD | U21: HOMBRE | V21: MUJER | X21: EDAD | Y21: HOMBRE | Z21: MUJER
B22: 0-10 | C22: =(Q22+DER)*(1+COTIZACION!$D$23) -> 13283.79667 | D22: =(R22+DER)*(1+COTIZACION!$D$23) -> 13243.28792 | F22: 0-10 | G22: =U22*(1+COTIZACION!$D$23) -> 12355.79667 | H22: =V22*(1+COTIZACION!$D$23) -> 12315.28792 | J22: 0-10 | K22: =Y22*(1+COTIZACION!$D$23) -> 12355.79667 | L22: =Z22*(1+COTIZACION!$D$23) -> 12315.28792 | P22: 0-10 | Q22: =IF($K$10="INCLUIDO",FACTORES!$C3*FACTORES!$AD$9+CDENT+CEE+VIS+ASIS+EDXA019+(FACTORES!$C3*FACTORES!$AD$9*CTE),FACTORES!$C3*FACTORES!$AD$9+CDENT+CEE+VIS+ASIS+EDXA019) -> 10651.54885 | R22: =IF($K$10="INCLUIDO",FACTORES!$D3*FACTORES!$AD$9+CDENT+CEE+VIS+ASIS+EDXA019+(FACTORES!$D3*FACTORES!$AD$9*CTE),FACTORES!D3*FACTORES!$AD$9+CDENT+CEE+VIS+ASIS+EDXA019) -> 10616.62752 | T22: 0-10 | U22: =IF($K$10="INCLUIDO",FACTORES!$C3*FACTORES!$AD$9+CDENT+CEE+VIS+ASIS+EDXA019+(FACTORES!$C3*FACTORES!$AD$9*CTE),FACTORES!$C3*FACTORES!$AD$9+CDENT+CEE+VIS+ASIS+EDXA019) -> 10651.54885 | V22: =IF($K$10="INCLUIDO",FACTORES!$D3*FACTORES!$AD$9+CDENT+CEE+VIS+ASIS+EDXA019+(FACTORES!$D3*FACTORES!$AD$9*CTE),FACTORES!D3*FACTORES!$AD$9+CDENT+CEE+VIS+ASIS+EDXA019) -> 10616.62752 | X22: 0-10 | Y22: =IF($K$10="INCLUIDO",FACTORES!$C3*FACTORES!$AD$9+CDENT+CEE+VIS+ASIS+EDXA019+(FACTORES!$C3*FACTORES!$AD$9*CTE),FACTORES!$C3*FACTORES!$AD$9+CDENT+CEE+VIS+ASIS+EDXA019) -> 10651.54885 | Z22: =IF($K$10="INCLUIDO",FACTORES!$D3*FACTORES!$AD$9+CDENT+CEE+VIS+ASIS+EDXA019+(FACTORES!$D3*FACTORES!$AD$9*CTE),FACTORES!D3*FACTORES!$AD$9+CDENT+CEE+VIS+ASIS+EDXA019) -> 10616.62752 | AL22: =IF(L22=Z22,1,0) -> 0 | AO22: =IF(AND(Q22=U22,U22=Y22),1,0) -> 1
B23: 11 | C23: =(Q23+DER)*(1+COTIZACION!$D$23) -> 13294.69709 | D23: =(R23+DER)*(1+COTIZACION!$D$23) -> 13134.6888 | F23: 11 | G23: =U23*(1+COTIZACION!$D$23) -> 12366.69709 | H23: =V23*(1+COTIZACION!$D$23) -> 12206.6888 | J23: 11 | K23: =Y23*(1+COTIZACION!$D$23) -> 12366.69709 | L23: =Z23*(1+COTIZACION!$D$23) -> 12206.6888 | P23: 11 | Q23: =IF($K$10="INCLUIDO",FACTORES!$C14*FACTORES!$AD$9+CDENT+CEE+VIS+ASIS+EDXA019+(FACTORES!$C14*FACTORES!$AD$9*CTE),FACTORES!$C14*FACTORES!$AD$9+CDENT+CEE+VIS+ASIS+EDXA019) -> 10660.94577 | R23: =IF($K$10="INCLUIDO",FACTORES!$D14*FACTORES!$AD$9+CDENT+CEE+VIS+ASIS+EDXA019+(FACTORES!$D14*FACTORES!$AD$9*CTE),FACTORES!$D14*FACTORES!$AD$9+CDENT+CEE+VIS+ASIS+EDXA019) -> 10523.00758 | T23: 11 | U23: =IF($K$10="INCLUIDO",FACTORES!$C14*FACTORES!$AD$9+CDENT+CEE+VIS+ASIS+EDXA019+(FACTORES!$C14*FACTORES!$AD$9*CTE),FACTORES!$C14*FACTORES!$AD$9+CDENT+CEE+VIS+ASIS+EDXA019) -> 10660.94577 | V23: =IF($K$10="INCLUIDO",FACTORES!$D14*FACTORES!$AD$9+CDENT+CEE+VIS+ASIS+EDXA019+(FACTORES!$D14*FACTORES!$AD$9*CTE),FACTORES!$D14*FACTORES!$AD$9+CDENT+CEE+VIS+ASIS+EDXA019) -> 10523.00758 | X23: 11 | Y23: =IF($K$10="INCLUIDO",FACTORES!$C14*FACTORES!$AD$9+CDENT+CEE+VIS+ASIS+EDXA019+(FACTORES!$C14*FACTORES!$AD$9*CTE),FACTORES!$C14*FACTORES!$AD$9+CDENT+CEE+VIS+ASIS+EDXA019) -> 10660.94577 | Z23: =IF($K$10="INCLUIDO",FACTORES!$D14*FACTORES!$AD$9+CDENT+CEE+VIS+ASIS+EDXA019+(FACTORES!$D14*FACTORES!$AD$9*CTE),FACTORES!$D14*FACTORES!$AD$9+CDENT+CEE+VIS+ASIS+EDXA019) -> 10523.00758 | AL23: =IF(L23=Z23,1,0) -> 0 | AO23: =IF(AND(Q23=U23,U23=Y23),1,0) -> 1
B24: 12 | C24: =(Q24+DER)*(1+COTIZACION!$D$23) -> 13305.60841 | D24: =(R24+DER)*(1+COTIZACION!$D$23) -> 13027.17567 | F24: 12 | G24: =U24*(1+COTIZACION!$D$23) -> 12377.60841 | H24: =V24*(1+COTIZACION!$D$23) -> 12099.17567 | J24: 12 | K24: =Y24*(1+COTIZACION!$D$23) -> 12377.60841 | L24: =Z24*(1+COTIZACION!$D$23) -> 12099.17567 | P24: 12 | Q24: =IF($K$10="INCLUIDO",FACTORES!$C15*FACTORES!$AD$9+CDENT+CEE+VIS+ASIS+EDXA019+(FACTORES!$C15*FACTORES!$AD$9*CTE),FACTORES!$C15*FACTORES!$AD$9+CDENT+CEE+VIS+ASIS+EDXA019) -> 10670.35208 | R24: =IF($K$10="INCLUIDO",FACTORES!$D15*FACTORES!$AD$9+CDENT+CEE+VIS+ASIS+EDXA019+(FACTORES!$D15*FACTORES!$AD$9*CTE),FACTORES!$D15*FACTORES!$AD$9+CDENT+CEE+VIS+ASIS+EDXA019) -> 10430.32385 | T24: 12 | U24: =IF($K$10="INCLUIDO",FACTORES!$C15*FACTORES!$AD$9+CDENT+CEE+VIS+ASIS+EDXA019+(FACTORES!$C15*FACTORES!$AD$9*CTE),FACTORES!$C15*FACTORES!$AD$9+CDENT+CEE+VIS+ASIS+EDXA019) -> 10670.35208 | V24: =IF($K$10="INCLUIDO",FACTORES!$D15*FACTORES!$AD$9+CDENT+CEE+VIS+ASIS+EDXA019+(FACTORES!$D15*FACTORES!$AD$9*CTE),FACTORES!$D15*FACTORES!$AD$9+CDENT+CEE+VIS+ASIS+EDXA019) -> 10430.32385 | X24: 12 | Y24: =IF($K$10="INCLUIDO",FACTORES!$C15*FACTORES!$AD$9+CDENT+CEE+VIS+ASIS+EDXA019+(FACTORES!$C15*FACTORES!$AD$9*CTE),FACTORES!$C15*FACTORES!$AD$9+CDENT+CEE+VIS+ASIS+EDXA019) -> 10670.35208 | Z24: =IF($K$10="INCLUIDO",FACTORES!$D15*FACTORES!$AD$9+CDENT+CEE+VIS+ASIS+EDXA019+(FACTORES!$D15*FACTORES!$AD$9*CTE),FACTORES!$D15*FACTORES!$AD$9+CDENT+CEE+VIS+ASIS+EDXA019) -> 10430.32385 | AL24: 0 | AO24: 1
B25: 13 | C25: =(Q25+DER)*(1+COTIZACION!$D$23) -> 13316.53065 | D25: =(R25+DER)*(1+COTIZACION!$D$23) -> 12920.73767 | F25: 13 | G25: =U25*(1+COTIZACION!$D$23) -> 12388.53065 | H25: =V25*(1+COTIZACION!$D$23) -> 11992.73767 | J25: 13 | K25: =Y25*(1+COTIZACION!$D$23) -> 12388.53065 | L25: =Z25*(1+COTIZACION!$D$23) -> 11992.73767 | P25: 13 | Q25: =IF($K$10="INCLUIDO",FACTORES!$C16*FACTORES!$AD$9+CDENT+CEE+VIS+ASIS+EDXA019+(FACTORES!$C16*FACTORES!$AD$9*CTE),FACTORES!$C16*FACTORES!$AD$9+CDENT+CEE+VIS+ASIS+EDXA019) -> 10679.7678 | R25: =IF($K$10="INCLUIDO",FACTORES!$D16*FACTORES!$AD$9+CDENT+CEE+VIS+ASIS+EDXA019+(FACTORES!$D16*FACTORES!$AD$9*CTE),FACTORES!$D16*FACTORES!$AD$9+CDENT+CEE+VIS+ASIS+EDXA019) -> 10338.56695 | T25: 13 | U25: =IF($K$10="INCLUIDO",FACTORES!$C16*FACTORES!$AD$9+CDENT+CEE+VIS+ASIS+EDXA019+(FACTORES!$C16*FACTORES!$AD$9*CTE),FACTORES!$C16*FACTORES!$AD$9+CDENT+CEE+VIS+ASIS+EDXA019) -> 10679.7678 | V25: =IF($K$10="INCLUIDO",FACTORES!$D16*FACTORES!$AD$9+CDENT+CEE+VIS+ASIS+EDXA019+(FACTORES!$D16*FACTORES!$AD$9*CTE),FACTORES!$D16*FACTORES!$AD$9+CDENT+CEE+VIS+ASIS+EDXA019) -> 10338.56695 | X25: 13 | Y25: =IF($K$10="INCLUIDO",FACTORES!$C16*FACTORES!$AD$9+CDENT+CEE+VIS+ASIS+EDXA019+(FACTORES!$C16*FACTORES!$AD$9*CTE),FACTORES!$C16*FACTORES!$AD$9+CDENT+CEE+VIS+ASIS+EDXA019) -> 10679.7678 | Z25: =IF($K$10="INCLUIDO",FACTORES!$D16*FACTORES!$AD$9+CDENT+CEE+VIS+ASIS+EDXA019+(FACTORES!$D16*FACTORES!$AD$9*CTE),FACTORES!$D16*FACTORES!$AD$9+CDENT+CEE+VIS+ASIS+EDXA019) -> 10338.56695 | AL25: 0 | AO25: 1
B26: 14 | C26: =(Q26+DER)*(1+COTIZACION!$D$23) -> 13327.4638 | D26: =(R26+DER)*(1+COTIZACION!$D$23) -> 12920.73767 | F26: 14 | G26: =U26*(1+COTIZACION!$D$23) -> 12399.4638 | H26: =V26*(1+COTIZACION!$D$23) -> 11992.73767 | J26: 14 | K26: =Y26*(1+COTIZACION!$D$23) -> 12399.4638 | L26: =Z26*(1+COTIZACION!$D$23) -> 11992.73767 | P26: 14 | Q26: =IF($K$10="INCLUIDO",FACTORES!$C17*FACTORES!$AD$9+CDENT+CEE+VIS+ASIS+EDXA019+(FACTORES!$C17*FACTORES!$AD$9*CTE),FACTORES!$C17*FACTORES!$AD$9+CDENT+CEE+VIS+ASIS+EDXA019) -> 10689.19293 | R26: =IF($K$10="INCLUIDO",FACTORES!$D17*FACTORES!$AD$9+CDENT+CEE+VIS+ASIS+EDXA019+(FACTORES!$D17*FACTORES!$AD$9*CTE),FACTORES!$D17*FACTORES!$AD$9+CDENT+CEE+VIS+ASIS+EDXA019) -> 10338.56695 | T26: 14 | U26: =IF($K$10="INCLUIDO",FACTORES!$C17*FACTORES!$AD$9+CDENT+CEE+VIS+ASIS+EDXA019+(FACTORES!$C17*FACTORES!$AD$9*CTE),FACTORES!$C17*FACTORES!$AD$9+CDENT+CEE+VIS+ASIS+EDXA019) -> 10689.19293 | V26: =IF($K$10="INCLUIDO",FACTORES!$D17*FACTORES!$AD$9+CDENT+CEE+VIS+ASIS+EDXA019+(FACTORES!$D17*FACTORES!$AD$9*CTE),FACTORES!$D17*FACTORES!$AD$9+CDENT+CEE+VIS+ASIS+EDXA019) -> 10338.56695 | X26: 14 | Y26: =IF($K$10="INCLUIDO",FACTORES!$C17*FACTORES!$AD$9+CDENT+CEE+VIS+ASIS+EDXA019+(FACTORES!$C17*FACTORES!$AD$9*CTE),FACTORES!$C17*FACTORES!$AD$9+CDENT+CEE+VIS+ASIS+EDXA019) -> 10689.19293 | Z26: =IF($K$10="INCLUIDO",FACTORES!$D17*FACTORES!$AD$9+CDENT+CEE+VIS+ASIS+EDXA019+(FACTORES!$D17*FACTORES!$AD$9*CTE),FACTORES!$D17*FACTORES!$AD$9+CDENT+CEE+VIS+ASIS+EDXA019) -> 10338.56695 | AL26: 0 | AO26: 1
B27: 15 | C27: =(Q27+DER)*(1+COTIZACION!$D$23) -> 13338.40789 | D27: =(R27+DER)*(1+COTIZACION!$D$23) -> 12920.73767 | F27: 15 | G27: =U27*(1+COTIZACION!$D$23) -> 12410.40789 | H27: =V27*(1+COTIZACION!$D$23) -> 11992.73767 | J27: 15 | K27: =Y27*(1+COTIZACION!$D$23) -> 12410.40789 | L27: =Z27*(1+COTIZACION!$D$23) -> 11992.73767 | P27: 15 | Q27: =IF($K$10="INCLUIDO",FACTORES!$C18*FACTORES!$AD$9+CDENT+CEE+VIS+ASIS+EDXA019+(FACTORES!$C18*FACTORES!$AD$9*CTE),FACTORES!$C18*FACTORES!$AD$9+CDENT+CEE+VIS+ASIS+EDXA019) -> 10698.62749 | R27: =IF($K$10="INCLUIDO",FACTORES!$D18*FACTORES!$AD$9+CDENT+CEE+VIS+ASIS+EDXA019+(FACTORES!$D18*FACTORES!$AD$9*CTE),FACTORES!$D18*FACTORES!$AD$9+CDENT+CEE+VIS+ASIS+EDXA019) -> 10338.56695 | T27: 15 | U27: =IF($K$10="INCLUIDO",FACTORES!$C18*FACTORES!$AD$9+CDENT+CEE+VIS+ASIS+EDXA019+(FACTORES!$C18*FACTORES!$AD$9*CTE),FACTORES!$C18*FACTORES!$AD$9+CDENT+CEE+VIS+ASIS+EDXA019) -> 10698.62749 | V27: =IF($K$10="INCLUIDO",FACTORES!$D18*FACTORES!$AD$9+CDENT+CEE+VIS+ASIS+EDXA019+(FACTORES!$D18*FACTORES!$AD$9*CTE),FACTORES!$D18*FACTORES!$AD$9+CDENT+CEE+VIS+ASIS+EDXA019) -> 10338.56695 | X27: 15 | Y27: =IF($K$10="INCLUIDO",FACTORES!$C18*FACTORES!$AD$9+CDENT+CEE+VIS+ASIS+EDXA019+(FACTORES!$C18*FACTORES!$AD$9*CTE),FACTORES!$C18*FACTORES!$AD$9+CDENT+CEE+VIS+ASIS+EDXA019) -> 10698.62749 | Z27: =IF($K$10="INCLUIDO",FACTORES!$D18*FACTORES!$AD$9+CDENT+CEE+VIS+ASIS+EDXA019+(FACTORES!$D18*FACTORES!$AD$9*CTE),FACTORES!$D18*FACTORES!$AD$9+CDENT+CEE+VIS+ASIS+EDXA019) -> 10338.56695 | AL27: 0 | AO27: 1
B28: 16 | C28: =(Q28+DER)*(1+COTIZACION!$D$23) -> 13349.36292 | D28: =(R28+DER)*(1+COTIZACION!$D$23) -> 12920.73767 | F28: 16 | G28: =U28*(1+COTIZACION!$D$23) -> 12421.36292 | H28: =V28*(1+COTIZACION!$D$23) -> 11992.73767 | J28: 16 | K28: =Y28*(1+COTIZACION!$D$23) -> 12421.36292 | L28: =Z28*(1+COTIZACION!$D$23) -> 11992.73767 | P28: 16 | Q28: =IF($K$10="INCLUIDO",FACTORES!$C19*FACTORES!$AD$9+CDENT+CEE+VIS+ASIS+EDXA019+(FACTORES!$C19*FACTORES!$AD$9*CTE),FACTORES!$C19*FACTORES!$AD$9+CDENT+CEE+VIS+ASIS+EDXA019) -> 10708.07148 | R28: =IF($K$10="INCLUIDO",FACTORES!$D19*FACTORES!$AD$9+CDENT+CEE+VIS+ASIS+EDXA019+(FACTORES!$D19*FACTORES!$AD$9*CTE),FACTORES!$D19*FACTORES!$AD$9+CDENT+CEE+VIS+ASIS+EDXA019) -> 10338.56695 | T28: 16 | U28: =IF($K$10="INCLUIDO",FACTORES!$C19*FACTORES!$AD$9+CDENT+CEE+VIS+ASIS+EDXA019+(FACTORES!$C19*FACTORES!$AD$9*CTE),FACTORES!$C19*FACTORES!$AD$9+CDENT+CEE+VIS+ASIS+EDXA019) -> 10708.07148 | V28: =IF($K$10="INCLUIDO",FACTORES!$D19*FACTORES!$AD$9+CDENT+CEE+VIS+ASIS+EDXA019+(FACTORES!$D19*FACTORES!$AD$9*CTE),FACTORES!$D19*FACTORES!$AD$9+CDENT+CEE+VIS+ASIS+EDXA019) -> 10338.56695 | X28: 16 | Y28: =IF($K$10="INCLUIDO",FACTORES!$C19*FACTORES!$AD$9+CDENT+CEE+VIS+ASIS+EDXA019+(FACTORES!$C19*FACTORES!$AD$9*CTE),FACTORES!$C19*FACTORES!$AD$9+CDENT+CEE+VIS+ASIS+EDXA019) -> 10708.07148 | Z28: =IF($K$10="INCLUIDO",FACTORES!$D19*FACTORES!$AD$9+CDENT+CEE+VIS+ASIS+EDXA019+(FACTORES!$D19*FACTORES!$AD$9*CTE),FACTORES!$D19*FACTORES!$AD$9+CDENT+CEE+VIS+ASIS+EDXA019) -> 10338.56695 | AL28: 0 | AO28: 1
B29: 17 | C29: =(Q29+DER)*(1+COTIZACION!$D$23) -> 13360.32891 | D29: =(R29+DER)*(1+COTIZACION!$D$23) -> 12920.73767 | F29: 17 | G29: =U29*(1+COTIZACION!$D$23) -> 12432.32891 | H29: =V29*(1+COTIZACION!$D$23) -> 11992.73767 | J29: 17 | K29: =Y29*(1+COTIZACION!$D$23) -> 12432.32891 | L29: =Z29*(1+COTIZACION!$D$23) -> 11992.73767 | P29: 17 | Q29: =IF($K$10="INCLUIDO",FACTORES!$C20*FACTORES!$AD$9+CDENT+CEE+VIS+ASIS+EDXA019+(FACTORES!$C20*FACTORES!$AD$9*CTE),FACTORES!$C20*FACTORES!$AD$9+CDENT+CEE+VIS+ASIS+EDXA019) -> 10717.52492 | R29: =IF($K$10="INCLUIDO",FACTORES!$D20*FACTORES!$AD$9+CDENT+CEE+VIS+ASIS+EDXA019+(FACTORES!$D20*FACTORES!$AD$9*CTE),FACTORES!$D20*FACTORES!$AD$9+CDENT+CEE+VIS+ASIS+EDXA019) -> 10338.56695 | T29: 17 | U29: =IF($K$10="INCLUIDO",FACTORES!$C20*FACTORES!$AD$9+CDENT+CEE+VIS+ASIS+EDXA019+(FACTORES!$C20*FACTORES!$AD$9*CTE),FACTORES!$C20*FACTORES!$AD$9+CDENT+CEE+VIS+ASIS+EDXA019) -> 10717.52492 | V29: =IF($K$10="INCLUIDO",FACTORES!$D20*FACTORES!$AD$9+CDENT+CEE+VIS+ASIS+EDXA019+(FACTORES!$D20*FACTORES!$AD$9*CTE),FACTORES!$D20*FACTORES!$AD$9+CDENT+CEE+VIS+ASIS+EDXA019) -> 10338.56695 | X29: 17 | Y29: =IF($K$10="INCLUIDO",FACTORES!$C20*FACTORES!$AD$9+CDENT+CEE+VIS+ASIS+EDXA019+(FACTORES!$C20*FACTORES!$AD$9*CTE),FACTORES!$C20*FACTORES!$AD$9+CDENT+CEE+VIS+ASIS+EDXA019) -> 10717.52492 | Z29: =IF($K$10="INCLUIDO",FACTORES!$D20*FACTORES!$AD$9+CDENT+CEE+VIS+ASIS+EDXA019+(FACTORES!$D20*FACTORES!$AD$9*CTE),FACTORES!$D20*FACTORES!$AD$9+CDENT+CEE+VIS+ASIS+EDXA019) -> 10338.56695 | AL29: 0 | AO29: 1
B30: 18 | C30: =(Q30+DER)*(1+COTIZACION!$D$23) -> 13470.09844 | D30: =(R30+DER)*(1+COTIZACION!$D$23) -> 13079.936 | F30: 18 | G30: =U30*(1+COTIZACION!$D$23) -> 12542.09844 | H30: =V30*(1+COTIZACION!$D$23) -> 12151.936 | J30: 18 | K30: =Y30*(1+COTIZACION!$D$23) -> 12542.09844 | L30: =Z30*(1+COTIZACION!$D$23) -> 12151.936 | P30: 18 | Q30: =IF($K$10="INCLUIDO",FACTORES!$C21*FACTORES!$AD$9+CDENT+CEE+VIS+ASIS+EDXA019+(FACTORES!$C21*FACTORES!$AD$9*CTE)+ENFGR,FACTORES!$C21*FACTORES!$AD$9+CDENT+CEE+VIS+ASIS+EDXA019+ENFGR) -> 10812.15383 | R30: =IF($K$10="INCLUIDO",FACTORES!$D21*FACTORES!$AD$9+CDENT+CEE+VIS+ASIS+EDXA019+(FACTORES!$D21*FACTORES!$AD$9*CTE)+ENFGR+VLOOKUP(COTIZACION!$D$17,FACTORES!$K$21:$L$24,2,0),FACTORES!$D21*FACTORES!$AD$9+CDENT+CEE+VIS+ASIS+EDXA019+ENFGR+VLOOKUP(COTIZACION!$D$17,FACTORES!$K$21:$L$24,2,0)) -> 10475.8069 | T30: 18 | U30: =IF($K$10="INCLUIDO",FACTORES!$C21*FACTORES!$AD$9+CDENT+CEE+VIS+ASIS+EDXA019+(FACTORES!$C21*FACTORES!$AD$9*CTE)+ENFGR,FACTORES!$C21*FACTORES!$AD$9+CDENT+CEE+VIS+ASIS+EDXA019+ENFGR) -> 10812.15383 | V30: =IF($K$10="INCLUIDO",FACTORES!$D21*FACTORES!$AD$9+CDENT+CEE+VIS+ASIS+EDXA019+(FACTORES!$D21*FACTORES!$AD$9*CTE)+ENFGR+VLOOKUP(COTIZACION!$D$17,FACTORES!$K$21:$L$24,2,0),FACTORES!$D21*FACTORES!$AD$9+CDENT+CEE+VIS+ASIS+EDXA019+ENFGR+VLOOKUP(COTIZACION!$D$17,FACTORES!$K$21:$L$24,2,0)) -> 10475.8069 | X30: 18 | Y30: =IF($K$10="INCLUIDO",FACTORES!$C21*FACTORES!$AD$9+CDENT+CEE+VIS+ASIS+EDXA019+(FACTORES!$C21*FACTORES!$AD$9*CTE)+ENFGR,FACTORES!$C21*FACTORES!$AD$9+CDENT+CEE+VIS+ASIS+EDXA019+ENFGR) -> 10812.15383 | Z30: =IF($K$10="INCLUIDO",FACTORES!$D21*FACTORES!$AD$9+CDENT+CEE+VIS+ASIS+EDXA019+(FACTORES!$D21*FACTORES!$AD$9*CTE)+ENFGR+VLOOKUP(COTIZACION!$D$17,FACTORES!$K$21:$L$24,2,0),FACTORES!$D21*FACTORES!$AD$9+CDENT+CEE+VIS+ASIS+EDXA019+ENFGR+VLOOKUP(COTIZACION!$D$17,FACTORES!$K$21:$L$24,2,0)) -> 10475.8069 | AL30: 0 | AO30: 1
B31: 19 | C31: =(Q31+DER)*(1+COTIZACION!$D$23) -> 13580.96567 | D31: =(R31+DER)*(1+COTIZACION!$D$23) -> 13653.16849 | F31: 19 | G31: =U31*(1+COTIZACION!$D$23) -> 12652.96567 | H31: =V31*(1+COTIZACION!$D$23) -> 12725.16849 | J31: 19 | K31: =Y31*(1+COTIZACION!$D$23) -> 12652.96567 | L31: =Z31*(1+COTIZACION!$D$23) -> 12725.16849 | P31: 19 | Q31: =IF($K$10="INCLUIDO",FACTORES!$C22*FACTORES!$AD$9+CDENT+CEE+VIS+ASIS+EDXA019+(FACTORES!$C22*FACTORES!$AD$9*CTE)+ENFGR,FACTORES!$C22*FACTORES!$AD$9+CDENT+CEE+VIS+ASIS+EDXA019+ENFGR) -> 10907.72902 | R31: =IF($K$10="INCLUIDO",FACTORES!$D22*FACTORES!$AD$9+CDENT+CEE+VIS+ASIS+EDXA019+(FACTORES!$D22*FACTORES!$AD$9*CTE)+ENFGR+VLOOKUP(COTIZACION!$D$17,FACTORES!$K$21:$L$24,2,0),FACTORES!$D22*FACTORES!$AD$9+CDENT+CEE+VIS+ASIS+EDXA019+ENFGR+VLOOKUP(COTIZACION!$D$17,FACTORES!$K$21:$L$24,2,0)) -> 10969.97283 | T31: 19 | U31: =IF($K$10="INCLUIDO",FACTORES!$C22*FACTORES!$AD$9+CDENT+CEE+VIS+ASIS+EDXA019+(FACTORES!$C22*FACTORES!$AD$9*CTE)+ENFGR,FACTORES!$C22*FACTORES!$AD$9+CDENT+CEE+VIS+ASIS+EDXA019+ENFGR) -> 10907.72902 | V31: =IF($K$10="INCLUIDO",FACTORES!$D22*FACTORES!$AD$9+CDENT+CEE+VIS+ASIS+EDXA019+(FACTORES!$D22*FACTORES!$AD$9*CTE)+ENFGR+VLOOKUP(COTIZACION!$D$17,FACTORES!$K$21:$L$24,2,0),FACTORES!$D22*FACTORES!$AD$9+CDENT+CEE+VIS+ASIS+EDXA019+ENFGR+VLOOKUP(COTIZACION!$D$17,FACTORES!$K$21:$L$24,2,0)) -> 10969.97283 | X31: 19 | Y31: =IF($K$10="INCLUIDO",FACTORES!$C22*FACTORES!$AD$9+CDENT+CEE+VIS+ASIS+EDXA019+(FACTORES!$C22*FACTORES!$AD$9*CTE)+ENFGR,FACTORES!$C22*FACTORES!$AD$9+CDENT+CEE+VIS+ASIS+EDXA019+ENFGR) -> 10907.72902 | Z31: =IF($K$10="INCLUIDO",FACTORES!$D22*FACTORES!$AD$9+CDENT+CEE+VIS+ASIS+EDXA019+(FACTORES!$D22*FACTORES!$AD$9*CTE)+ENFGR+VLOOKUP(COTIZACION!$D$17,FACTORES!$K$21:$L$24,2,0),FACTORES!$D22*FACTORES!$AD$9+CDENT+CEE+VIS+ASIS+EDXA019+ENFGR+VLOOKUP(COTIZACION!$D$17,FACTORES!$K$21:$L$24,2,0)) -> 10969.97283 | AL31: 0 | AO31: 1
B32: 20 | C32: =(Q32+DER)*(1+COTIZACION!$D$23) -> 13584.37052 | D32: =(R32+DER)*(1+COTIZACION!$D$23) -> 14575.06143 | F32: 20 | G32: =U32*(1+COTIZACION!$D$23) -> 12656.37052 | H32: =V32*(1+COTIZACION!$D$23) -> 13647.06143 | J32: 20 | K32: =Y32*(1+COTIZACION!$D$23) -> 12656.37052 | L32: =Z32*(1+COTIZACION!$D$23) -> 13647.06143 | P32: 20 | Q32: =IF($K$10="INCLUIDO",FACTORES!$C23*FACTORES!$AD$9+CDENT+CEE+VIS+ASIS+EDXA20100+(FACTORES!$C23*FACTORES!$AD$9*CTE)+ENFGR,FACTORES!$C23*FACTORES!$AD$9+CDENT+CEE+VIS+ASIS+EDXA20100+ENFGR) -> 10910.66424 | R32: =IF($K$10="INCLUIDO",FACTORES!$D23*FACTORES!$AD$9+CDENT+CEE+VIS+ASIS+EDXA20100+(FACTORES!$D23*FACTORES!$AD$9*CTE)+ENFGR+VLOOKUP(COTIZACION!$D$17,FACTORES!$K$21:$L$24,2,0),FACTORES!$D23*FACTORES!$AD$9+CDENT+CEE+VIS+ASIS+EDXA20100+ENFGR+VLOOKUP(COTIZACION!$D$17,FACTORES!$K$21:$L$24,2,0)) -> 11764.70813 | T32: 20 | U32: =IF($K$10="INCLUIDO",FACTORES!$C23*FACTORES!$AD$9+CDENT+CEE+VIS+ASIS+EDXA20100+(FACTORES!$C23*FACTORES!$AD$9*CTE)+ENFGR,FACTORES!$C23*FACTORES!$AD$9+CDENT+CEE+VIS+ASIS+EDXA20100+ENFGR) -> 10910.66424 | V32: =IF($K$10="INCLUIDO",FACTORES!$D23*FACTORES!$AD$9+CDENT+CEE+VIS+ASIS+EDXA20100+(FACTORES!$D23*FACTORES!$AD$9*CTE)+ENFGR+VLOOKUP(COTIZACION!$D$17,FACTORES!$K$21:$L$24,2,0),FACTORES!$D23*FACTORES!$AD$9+CDENT+CEE+VIS+ASIS+EDXA20100+ENFGR+VLOOKUP(COTIZACION!$D$17,FACTORES!$K$21:$L$24,2,0)) -> 11764.70813 | X32: 20 | Y32: =IF($K$10="INCLUIDO",FACTORES!$C23*FACTORES!$AD$9+CDENT+CEE+VIS+ASIS+EDXA20100+(FACTORES!$C23*FACTORES!$AD$9*CTE)+ENFGR,FACTORES!$C23*FACTORES!$AD$9+CDENT+CEE+VIS+ASIS+EDXA20100+ENFGR) -> 10910.66424 | Z32: =IF($K$10="INCLUIDO",FACTORES!$D23*FACTORES!$AD$9+CDENT+CEE+VIS+ASIS+EDXA20100+(FACTORES!$D23*FACTORES!$AD$9*CTE)+ENFGR+VLOOKUP(COTIZACION!$D$17,FACTORES!$K$21:$L$24,2,0),FACTORES!$D23*FACTORES!$AD$9+CDENT+CEE+VIS+ASIS+EDXA20100+ENFGR+VLOOKUP(COTIZACION!$D$17,FACTORES!$K$21:$L$24,2,0)) -> 11764.70813 | AL32: 0 | AO32: 1
B33: 21 | C33: =(Q33+DER)*(1+COTIZACION!$D$23) -> 14080.96707 | D33: =(R33+DER)*(1+COTIZACION!$D$23) -> 16479.37071 | F33: 21 | G33: =U33*(1+COTIZACION!$D$23) -> 13152.96707 | H33: =V33*(1+COTIZACION!$D$23) -> 15551.37071 | J33: 21 | K33: =Y33*(1+COTIZACION!$D$23) -> 13152.96707 | L33: =Z33*(1+COTIZACION!$D$23) -> 15551.37071 | P33: 21 | Q33: =IF($K$10="INCLUIDO",FACTORES!$C24*FACTORES!$AD$9+CDENT+CEE+VIS+ASIS+EDXA20100+(FACTORES!$C24*FACTORES!$AD$9*CTE)+ENFGR,FACTORES!$C24*FACTORES!$AD$9+CDENT+CEE+VIS+ASIS+EDXA20100+ENFGR) -> 11338.76472 | R33: =IF($K$10="INCLUIDO",FACTORES!$D24*FACTORES!$AD$9+CDENT+CEE+VIS+ASIS+EDXA20100+(FACTORES!$D24*FACTORES!$AD$9*CTE)+ENFGR+VLOOKUP(COTIZACION!$D$17,FACTORES!$K$21:$L$24,2,0),FACTORES!$D24*FACTORES!$AD$9+CDENT+CEE+VIS+ASIS+EDXA20100+ENFGR+VLOOKUP(COTIZACION!$D$17,FACTORES!$K$21:$L$24,2,0)) -> 13406.35406 | T33: 21 | U33: =IF($K$10="INCLUIDO",FACTORES!$C24*FACTORES!$AD$9+CDENT+CEE+VIS+ASIS+EDXA20100+(FACTORES!$C24*FACTORES!$AD$9*CTE)+ENFGR,FACTORES!$C24*FACTORES!$AD$9+CDENT+CEE+VIS+ASIS+EDXA20100+ENFGR) -> 11338.76472 | V33: =IF($K$10="INCLUIDO",FACTORES!$D24*FACTORES!$AD$9+CDENT+CEE+VIS+ASIS+EDXA20100+(FACTORES!$D24*FACTORES!$AD$9*CTE)+ENFGR+VLOOKUP(COTIZACION!$D$17,FACTORES!$K$21:$L$24,2,0),FACTORES!$D24*FACTORES!$AD$9+CDENT+CEE+VIS+ASIS+EDXA20100+ENFGR+VLOOKUP(COTIZACION!$D$17,FACTORES!$K$21:$L$24,2,0)) -> 13406.35406 | X33: 21 | Y33: =IF($K$10="INCLUIDO",FACTORES!$C24*FACTORES!$AD$9+CDENT+CEE+VIS+ASIS+EDXA20100+(FACTORES!$C24*FACTORES!$AD$9*CTE)+ENFGR,FACTORES!$C24*FACTORES!$AD$9+CDENT+CEE+VIS+ASIS+EDXA20100+ENFGR) -> 11338.76472 | Z33: =IF($K$10="INCLUIDO",FACTORES!$D24*FACTORES!$AD$9+CDENT+CEE+VIS+ASIS+EDXA20100+(FACTORES!$D24*FACTORES!$AD$9*CTE)+ENFGR+VLOOKUP(COTIZACION!$D$17,FACTORES!$K$21:$L$24,2,0),FACTORES!$D24*FACTORES!$AD$9+CDENT+CEE+VIS+ASIS+EDXA20100+ENFGR+VLOOKUP(COTIZACION!$D$17,FACTORES!$K$21:$L$24,2,0)) -> 13406.35406 | AL33: 0 | AO33: 1
B34: 22 | C34: =(Q34+DER)*(1+COTIZACION!$D$23) -> 14602.39345 | D34: =(R34+DER)*(1+COTIZACION!$D$23) -> 17915.56614 | F34: 22 | G34: =U34*(1+COTIZACION!$D$23) -> 13674.39345 | H34: =V34*(1+COTIZACION!$D$23) -> 16987.56614 | J34: 22 | K34: =Y34*(1+COTIZACION!$D$23) -> 13674.39345 | L34: =Z34*(1+COTIZACION!$D$23) -> 16987.56614 | P34: 22 | Q34: =IF($K$10="INCLUIDO",FACTORES!$C25*FACTORES!$AD$9+CDENT+CEE+VIS+ASIS+EDXA20100+(FACTORES!$C25*FACTORES!$AD$9*CTE)+ENFGR,FACTORES!$C25*FACTORES!$AD$9+CDENT+CEE+VIS+ASIS+EDXA20100+ENFGR) -> 11788.27022 | R34: =IF($K$10="INCLUIDO",FACTORES!$D25*FACTORES!$AD$9+CDENT+CEE+VIS+ASIS+EDXA20100+(FACTORES!$D25*FACTORES!$AD$9*CTE)+ENFGR+VLOOKUP(COTIZACION!$D$17,FACTORES!$K$21:$L$24,2,0),FACTORES!$D25*FACTORES!$AD$9+CDENT+CEE+VIS+ASIS+EDXA20100+ENFGR+VLOOKUP(COTIZACION!$D$17,FACTORES!$K$21:$L$24,2,0)) -> 14644.45357 | T34: 22 | U34: =IF($K$10="INCLUIDO",FACTORES!$C25*FACTORES!$AD$9+CDENT+CEE+VIS+ASIS+EDXA20100+(FACTORES!$C25*FACTORES!$AD$9*CTE)+ENFGR,FACTORES!$C25*FACTORES!$AD$9+CDENT+CEE+VIS+ASIS+EDXA20100+ENFGR) -> 11788.27022 | V34: =IF($K$10="INCLUIDO",FACTORES!$D25*FACTORES!$AD$9+CDENT+CEE+VIS+ASIS+EDXA20100+(FACTORES!$D25*FACTORES!$AD$9*CTE)+ENFGR+VLOOKUP(COTIZACION!$D$17,FACTORES!$K$21:$L$24,2,0),FACTORES!$D25*FACTORES!$AD$9+CDENT+CEE+VIS+ASIS+EDXA20100+ENFGR+VLOOKUP(COTIZACION!$D$17,FACTORES!$K$21:$L$24,2,0)) -> 14644.45357 | X34: 22 | Y34: =IF($K$10="INCLUIDO",FACTORES!$C25*FACTORES!$AD$9+CDENT+CEE+VIS+ASIS+EDXA20100+(FACTORES!$C25*FACTORES!$AD$9*CTE)+ENFGR,FACTORES!$C25*FACTORES!$AD$9+CDENT+CEE+VIS+ASIS+EDXA20100+ENFGR) -> 11788.27022 | Z34: =IF($K$10="INCLUIDO",FACTORES!$D25*FACTORES!$AD$9+CDENT+CEE+VIS+ASIS+EDXA20100+(FACTORES!$D25*FACTORES!$AD$9*CTE)+ENFGR+VLOOKUP(COTIZACION!$D$17,FACTORES!$K$21:$L$24,2,0),FACTORES!$D25*FACTORES!$AD$9+CDENT+CEE+VIS+ASIS+EDXA20100+ENFGR+VLOOKUP(COTIZACION!$D$17,FACTORES!$K$21:$L$24,2,0)) -> 14644.45357 | AL34: 0 | AO34: 1
B35: 23 | C35: =(Q35+DER)*(1+COTIZACION!$D$23) -> 15259.39069 | D35: =(R35+DER)*(1+COTIZACION!$D$23) -> 19055.22945 | F35: 23 | G35: =U35*(1+COTIZACION!$D$23) -> 14331.39069 | H35: =V35*(1+COTIZACION!$D$23) -> 18127.22945 | J35: 23 | K35: =Y35*(1+COTIZACION!$D$23) -> 14331.39069 | L35: =Z35*(1+COTIZACION!$D$23) -> 18127.22945 | P35: 23 | Q35: =IF($K$10="INCLUIDO",FACTORES!$C26*FACTORES!$AD$9+CDENT+CEE+VIS+ASIS+EDXA20100+(FACTORES!$C26*FACTORES!$AD$9*CTE)+ENFGR,FACTORES!$C26*FACTORES!$AD$9+CDENT+CEE+VIS+ASIS+EDXA20100+ENFGR) -> 12354.64715 | R35: =IF($K$10="INCLUIDO",FACTORES!$D26*FACTORES!$AD$9+CDENT+CEE+VIS+ASIS+EDXA20100+(FACTORES!$D26*FACTORES!$AD$9*CTE)+ENFGR+VLOOKUP(COTIZACION!$D$17,FACTORES!$K$21:$L$24,2,0),FACTORES!$D26*FACTORES!$AD$9+CDENT+CEE+VIS+ASIS+EDXA20100+ENFGR+VLOOKUP(COTIZACION!$D$17,FACTORES!$K$21:$L$24,2,0)) -> 15626.92194 | T35: 23 | U35: =IF($K$10="INCLUIDO",FACTORES!$C26*FACTORES!$AD$9+CDENT+CEE+VIS+ASIS+EDXA20100+(FACTORES!$C26*FACTORES!$AD$9*CTE)+ENFGR,FACTORES!$C26*FACTORES!$AD$9+CDENT+CEE+VIS+ASIS+EDXA20100+ENFGR) -> 12354.64715 | V35: =IF($K$10="INCLUIDO",FACTORES!$D26*FACTORES!$AD$9+CDENT+CEE+VIS+ASIS+EDXA20100+(FACTORES!$D26*FACTORES!$AD$9*CTE)+ENFGR+VLOOKUP(COTIZACION!$D$17,FACTORES!$K$21:$L$24,2,0),FACTORES!$D26*FACTORES!$AD$9+CDENT+CEE+VIS+ASIS+EDXA20100+ENFGR+VLOOKUP(COTIZACION!$D$17,FACTORES!$K$21:$L$24,2,0)) -> 15626.92194 | X35: 23 | Y35: =IF($K$10="INCLUIDO",FACTORES!$C26*FACTORES!$AD$9+CDENT+CEE+VIS+ASIS+EDXA20100+(FACTORES!$C26*FACTORES!$AD$9*CTE)+ENFGR,FACTORES!$C26*FACTORES!$AD$9+CDENT+CEE+VIS+ASIS+EDXA20100+ENFGR) -> 12354.64715 | Z35: =IF($K$10="INCLUIDO",FACTORES!$D26*FACTORES!$AD$9+CDENT+CEE+VIS+ASIS+EDXA20100+(FACTORES!$D26*FACTORES!$AD$9*CTE)+ENFGR+VLOOKUP(COTIZACION!$D$17,FACTORES!$K$21:$L$24,2,0),FACTORES!$D26*FACTORES!$AD$9+CDENT+CEE+VIS+ASIS+EDXA20100+ENFGR+VLOOKUP(COTIZACION!$D$17,FACTORES!$K$21:$L$24,2,0)) -> 15626.92194 | AL35: 0 | AO35: 1
B36: 24 | C36: =(Q36+DER)*(1+COTIZACION!$D$23) -> 15955.80776 | D36: =(R36+DER)*(1+COTIZACION!$D$23) -> 19974.7578 | F36: 24 | G36: =U36*(1+COTIZACION!$D$23) -> 15027.80776 | H36: =V36*(1+COTIZACION!$D$23) -> 19046.7578 | J36: 24 | K36: =Y36*(1+COTIZACION!$D$23) -> 15027.80776 | L36: =Z36*(1+COTIZACION!$D$23) -> 19046.7578 | P36: 24 | Q36: =IF($K$10="INCLUIDO",FACTORES!$C27*FACTORES!$AD$9+CDENT+CEE+VIS+ASIS+EDXA20100+(FACTORES!$C27*FACTORES!$AD$9*CTE)+ENFGR,FACTORES!$C27*FACTORES!$AD$9+CDENT+CEE+VIS+ASIS+EDXA20100+ENFGR) -> 12955.00669 | R36: =IF($K$10="INCLUIDO",FACTORES!$D27*FACTORES!$AD$9+CDENT+CEE+VIS+ASIS+EDXA20100+(FACTORES!$D27*FACTORES!$AD$9*CTE)+ENFGR+VLOOKUP(COTIZACION!$D$17,FACTORES!$K$21:$L$24,2,0),FACTORES!$D27*FACTORES!$AD$9+CDENT+CEE+VIS+ASIS+EDXA20100+ENFGR+VLOOKUP(COTIZACION!$D$17,FACTORES!$K$21:$L$24,2,0)) -> 16419.61879 | T36: 24 | U36: =IF($K$10="INCLUIDO",FACTORES!$C27*FACTORES!$AD$9+CDENT+CEE+VIS+ASIS+EDXA20100+(FACTORES!$C27*FACTORES!$AD$9*CTE)+ENFGR,FACTORES!$C27*FACTORES!$AD$9+CDENT+CEE+VIS+ASIS+EDXA20100+ENFGR) -> 12955.00669 | V36: =IF($K$10="INCLUIDO",FACTORES!$D27*FACTORES!$AD$9+CDENT+CEE+VIS+ASIS+EDXA20100+(FACTORES!$D27*FACTORES!$AD$9*CTE)+ENFGR+VLOOKUP(COTIZACION!$D$17,FACTORES!$K$21:$L$24,2,0),FACTORES!$D27*FACTORES!$AD$9+CDENT+CEE+VIS+ASIS+EDXA20100+ENFGR+VLOOKUP(COTIZACION!$D$17,FACTORES!$K$21:$L$24,2,0)) -> 16419.61879 | X36: 24 | Y36: =IF($K$10="INCLUIDO",FACTORES!$C27*FACTORES!$AD$9+CDENT+CEE+VIS+ASIS+EDXA20100+(FACTORES!$C27*FACTORES!$AD$9*CTE)+ENFGR,FACTORES!$C27*FACTORES!$AD$9+CDENT+CEE+VIS+ASIS+EDXA20100+ENFGR) -> 12955.00669 | Z36: =IF($K$10="INCLUIDO",FACTORES!$D27*FACTORES!$AD$9+CDENT+CEE+VIS+ASIS+EDXA20100+(FACTORES!$D27*FACTORES!$AD$9*CTE)+ENFGR+VLOOKUP(COTIZACION!$D$17,FACTORES!$K$21:$L$24,2,0),FACTORES!$D27*FACTORES!$AD$9+CDENT+CEE+VIS+ASIS+EDXA20100+ENFGR+VLOOKUP(COTIZACION!$D$17,FACTORES!$K$21:$L$24,2,0)) -> 16419.61879 | AL36: 0 | AO36: 1
B37: 25 | C37: =(Q37+DER)*(1+COTIZACION!$D$23) -> 16694.00986 | D37: =(R37+DER)*(1+COTIZACION!$D$23) -> 20916.48619 | F37: 25 | G37: =U37*(1+COTIZACION!$D$23) -> 15766.00986 | H37: =V37*(1+COTIZACION!$D$23) -> 19988.48619 | P37: 25 | Q37: =IF($K$10="INCLUIDO",FACTORES!$C28*FACTORES!$AD$9+CDENT+CEE+VIS+ASIS+EDXA20100+(FACTORES!$C28*FACTORES!$AD$9*CTE)+ENFGR,FACTORES!$C28*FACTORES!$AD$9+CDENT+CEE+VIS+ASIS+EDXA20100+ENFGR) -> 13591.38781 | R37: =IF($K$10="INCLUIDO",FACTORES!$D28*FACTORES!$AD$9+CDENT+CEE+VIS+ASIS+EDXA20100+(FACTORES!$D28*FACTORES!$AD$9*CTE)+ENFGR+VLOOKUP(COTIZACION!$D$17,FACTORES!$K$21:$L$24,2,0),FACTORES!$D28*FACTORES!$AD$9+CDENT+CEE+VIS+ASIS+EDXA20100+ENFGR+VLOOKUP(COTIZACION!$D$17,FACTORES!$K$21:$L$24,2,0)) -> 17231.45361 | T37: 25 | U37: =IF($K$10="INCLUIDO",FACTORES!$C28*FACTORES!$AD$9+CDENT+CEE+VIS+ASIS+EDXA20100+(FACTORES!$C28*FACTORES!$AD$9*CTE)+ENFGR,FACTORES!$C28*FACTORES!$AD$9+CDENT+CEE+VIS+ASIS+EDXA20100+ENFGR) -> 13591.38781 | V37: =IF($K$10="INCLUIDO",FACTORES!$D28*FACTORES!$AD$9+CDENT+CEE+VIS+ASIS+EDXA20100+(FACTORES!$D28*FACTORES!$AD$9*CTE)+ENFGR+VLOOKUP(COTIZACION!$D$17,FACTORES!$K$21:$L$24,2,0),FACTORES!$D28*FACTORES!$AD$9+CDENT+CEE+VIS+ASIS+EDXA20100+ENFGR+VLOOKUP(COTIZACION!$D$17,FACTORES!$K$21:$L$24,2,0)) -> 17231.45361 | AO37: =IF(Q37=U37,1,0) -> 1
B38: 26 | C38: =(Q38+DER)*(1+COTIZACION!$D$23) -> 17476.50408 | D38: =(R38+DER)*(1+COTIZACION!$D$23) -> 21921.31038 | F38: 26 | G38: =U38*(1+COTIZACION!$D$23) -> 16548.50408 | H38: =V38*(1+COTIZACION!$D$23) -> 20993.31038 | P38: 26 | Q38: =IF($K$10="INCLUIDO",FACTORES!$C29*FACTORES!$AD$9+CDENT+CEE+VIS+ASIS+EDXA20100+(FACTORES!$C29*FACTORES!$AD$9*CTE)+ENFGR,FACTORES!$C29*FACTORES!$AD$9+CDENT+CEE+VIS+ASIS+EDXA20100+ENFGR) -> 14265.95179 | R38: =IF($K$10="INCLUIDO",FACTORES!$D29*FACTORES!$AD$9+CDENT+CEE+VIS+ASIS+EDXA20100+(FACTORES!$D29*FACTORES!$AD$9*CTE)+ENFGR+VLOOKUP(COTIZACION!$D$17,FACTORES!$K$21:$L$24,2,0),FACTORES!$D29*FACTORES!$AD$9+CDENT+CEE+VIS+ASIS+EDXA20100+ENFGR+VLOOKUP(COTIZACION!$D$17,FACTORES!$K$21:$L$24,2,0)) -> 18097.68136 | T38: 26 | U38: =IF($K$10="INCLUIDO",FACTORES!$C29*FACTORES!$AD$9+CDENT+CEE+VIS+ASIS+EDXA20100+(FACTORES!$C29*FACTORES!$AD$9*CTE)+ENFGR,FACTORES!$C29*FACTORES!$AD$9+CDENT+CEE+VIS+ASIS+EDXA20100+ENFGR) -> 14265.95179 | V38: =IF($K$10="INCLUIDO",FACTORES!$D29*FACTORES!$AD$9+CDENT+CEE+VIS+ASIS+EDXA20100+(FACTORES!$D29*FACTORES!$AD$9*CTE)+ENFGR+VLOOKUP(COTIZACION!$D$17,FACTORES!$K$21:$L$24,2,0),FACTORES!$D29*FACTORES!$AD$9+CDENT+CEE+VIS+ASIS+EDXA20100+ENFGR+VLOOKUP(COTIZACION!$D$17,FACTORES!$K$21:$L$24,2,0)) -> 18097.68136 | AO38: =IF(Q38=U38,1,0) -> 1
B39: 27 | C39: =(Q39+DER)*(1+COTIZACION!$D$23) -> 18305.94796 | D39: =(R39+DER)*(1+COTIZACION!$D$23) -> 22801.43139 | F39: 27 | G39: =U39*(1+COTIZACION!$D$23) -> 17377.94796 | H39: =V39*(1+COTIZACION!$D$23) -> 21873.43139 | P39: 27 | Q39: =IF($K$10="INCLUIDO",FACTORES!$C30*FACTORES!$AD$9+CDENT+CEE+VIS+ASIS+EDXA20100+(FACTORES!$C30*FACTORES!$AD$9*CTE)+ENFGR,FACTORES!$C30*FACTORES!$AD$9+CDENT+CEE+VIS+ASIS+EDXA20100+ENFGR) -> 14980.98962 | R39: =IF($K$10="INCLUIDO",FACTORES!$D30*FACTORES!$AD$9+CDENT+CEE+VIS+ASIS+EDXA20100+(FACTORES!$D30*FACTORES!$AD$9*CTE)+ENFGR+VLOOKUP(COTIZACION!$D$17,FACTORES!$K$21:$L$24,2,0),FACTORES!$D30*FACTORES!$AD$9+CDENT+CEE+VIS+ASIS+EDXA20100+ENFGR+VLOOKUP(COTIZACION!$D$17,FACTORES!$K$21:$L$24,2,0)) -> 18856.40637 | T39: 27 | U39: =IF($K$10="INCLUIDO",FACTORES!$C30*FACTORES!$AD$9+CDENT+CEE+VIS+ASIS+EDXA20100+(FACTORES!$C30*FACTORES!$AD$9*CTE)+ENFGR,FACTORES!$C30*FACTORES!$AD$9+CDENT+CEE+VIS+ASIS+EDXA20100+ENFGR) -> 14980.98962 | V39: =IF($K$10="INCLUIDO",FACTORES!$D30*FACTORES!$AD$9+CDENT+CEE+VIS+ASIS+EDXA20100+(FACTORES!$D30*FACTORES!$AD$9*CTE)+ENFGR+VLOOKUP(COTIZACION!$D$17,FACTORES!$K$21:$L$24,2,0),FACTORES!$D30*FACTORES!$AD$9+CDENT+CEE+VIS+ASIS+EDXA20100+ENFGR+VLOOKUP(COTIZACION!$D$17,FACTORES!$K$21:$L$24,2,0)) -> 18856.40637 | AO39: 1
B40: 28 | C40: =(Q40+DER)*(1+COTIZACION!$D$23) -> 19038.62338 | D40: =(R40+DER)*(1+COTIZACION!$D$23) -> 23645.54745 | F40: 28 | G40: =U40*(1+COTIZACION!$D$23) -> 18110.62338 | H40: =V40*(1+COTIZACION!$D$23) -> 22717.54745 | P40: 28 | Q40: =IF($K$10="INCLUIDO",FACTORES!$C31*FACTORES!$AD$9+CDENT+CEE+VIS+ASIS+EDXA20100+(FACTORES!$C31*FACTORES!$AD$9*CTE)+ENFGR,FACTORES!$C31*FACTORES!$AD$9+CDENT+CEE+VIS+ASIS+EDXA20100+ENFGR) -> 15612.60636 | R40: =IF($K$10="INCLUIDO",FACTORES!$D31*FACTORES!$AD$9+CDENT+CEE+VIS+ASIS+EDXA20100+(FACTORES!$D31*FACTORES!$AD$9*CTE)+ENFGR+VLOOKUP(COTIZACION!$D$17,FACTORES!$K$21:$L$24,2,0),FACTORES!$D31*FACTORES!$AD$9+CDENT+CEE+VIS+ASIS+EDXA20100+ENFGR+VLOOKUP(COTIZACION!$D$17,FACTORES!$K$21:$L$24,2,0)) -> 19584.09263 | T40: 28 | U40: =IF($K$10="INCLUIDO",FACTORES!$C31*FACTORES!$AD$9+CDENT+CEE+VIS+ASIS+EDXA20100+(FACTORES!$C31*FACTORES!$AD$9*CTE)+ENFGR,FACTORES!$C31*FACTORES!$AD$9+CDENT+CEE+VIS+ASIS+EDXA20100+ENFGR) -> 15612.60636 | V40: =IF($K$10="INCLUIDO",FACTORES!$D31*FACTORES!$AD$9+CDENT+CEE+VIS+ASIS+EDXA20100+(FACTORES!$D31*FACTORES!$AD$9*CTE)+ENFGR+VLOOKUP(COTIZACION!$D$17,FACTORES!$K$21:$L$24,2,0),FACTORES!$D31*FACTORES!$AD$9+CDENT+CEE+VIS+ASIS+EDXA20100+ENFGR+VLOOKUP(COTIZACION!$D$17,FACTORES!$K$21:$L$24,2,0)) -> 19584.09263 | AO40: 1
B41: 29 | C41: =(Q41+DER)*(1+COTIZACION!$D$23) -> 19807.93257 | D41: =(R41+DER)*(1+COTIZACION!$D$23) -> 24531.86932 | F41: 29 | G41: =U41*(1+COTIZACION!$D$23) -> 18879.93257 | H41: =V41*(1+COTIZACION!$D$23) -> 23603.86932 | P41: 29 | Q41: =IF($K$10="INCLUIDO",FACTORES!$C32*FACTORES!$AD$9+CDENT+CEE+VIS+ASIS+EDXA20100+(FACTORES!$C32*FACTORES!$AD$9*CTE)+ENFGR,FACTORES!$C32*FACTORES!$AD$9+CDENT+CEE+VIS+ASIS+EDXA20100+ENFGR) -> 16275.80394 | R41: =IF($K$10="INCLUIDO",FACTORES!$D32*FACTORES!$AD$9+CDENT+CEE+VIS+ASIS+EDXA20100+(FACTORES!$D32*FACTORES!$AD$9*CTE)+ENFGR+VLOOKUP(COTIZACION!$D$17,FACTORES!$K$21:$L$24,2,0),FACTORES!$D32*FACTORES!$AD$9+CDENT+CEE+VIS+ASIS+EDXA20100+ENFGR+VLOOKUP(COTIZACION!$D$17,FACTORES!$K$21:$L$24,2,0)) -> 20348.1632 | T41: 29 | U41: =IF($K$10="INCLUIDO",FACTORES!$C32*FACTORES!$AD$9+CDENT+CEE+VIS+ASIS+EDXA20100+(FACTORES!$C32*FACTORES!$AD$9*CTE)+ENFGR,FACTORES!$C32*FACTORES!$AD$9+CDENT+CEE+VIS+ASIS+EDXA20100+ENFGR) -> 16275.80394 | V41: =IF($K$10="INCLUIDO",FACTORES!$D32*FACTORES!$AD$9+CDENT+CEE+VIS+ASIS+EDXA20100+(FACTORES!$D32*FACTORES!$AD$9*CTE)+ENFGR+VLOOKUP(COTIZACION!$D$17,FACTORES!$K$21:$L$24,2,0),FACTORES!$D32*FACTORES!$AD$9+CDENT+CEE+VIS+ASIS+EDXA20100+ENFGR+VLOOKUP(COTIZACION!$D$17,FACTORES!$K$21:$L$24,2,0)) -> 20348.1632 | AO41: 1
B42: 30 | C42: =(Q42+DER)*(1+COTIZACION!$D$23) -> 20468.22525 | D42: =(R42+DER)*(1+COTIZACION!$D$23) -> 25568.87719 | F42: 30 | G42: =U42*(1+COTIZACION!$D$23) -> 19540.22525 | H42: =V42*(1+COTIZACION!$D$23) -> 24640.87719 | P42: 30 | Q42: =IF($K$10="INCLUIDO",FACTORES!$C33*FACTORES!$AD$9+CDENT+CEE+VIS+ASIS+EDXA20100+(FACTORES!$C33*FACTORES!$AD$9*CTE)+ENFGR,FACTORES!$C33*FACTORES!$AD$9+CDENT+CEE+VIS+ASIS+EDXA20100+ENFGR) -> 16845.02177 | R42: =IF($K$10="INCLUIDO",FACTORES!$D33*FACTORES!$AD$9+CDENT+CEE+VIS+ASIS+EDXA20100+(FACTORES!$D33*FACTORES!$AD$9*CTE)+ENFGR+VLOOKUP(COTIZACION!$D$17,FACTORES!$K$21:$L$24,2,0),FACTORES!$D33*FACTORES!$AD$9+CDENT+CEE+VIS+ASIS+EDXA20100+ENFGR+VLOOKUP(COTIZACION!$D$17,FACTORES!$K$21:$L$24,2,0)) -> 21242.13551 | T42: 30 | U42: =IF($K$10="INCLUIDO",FACTORES!$C33*FACTORES!$AD$9+CDENT+CEE+VIS+ASIS+EDXA20100+(FACTORES!$C33*FACTORES!$AD$9*CTE)+ENFGR,FACTORES!$C33*FACTORES!$AD$9+CDENT+CEE+VIS+ASIS+EDXA20100+ENFGR) -> 16845.02177 | V42: =IF($K$10="INCLUIDO",FACTORES!$D33*FACTORES!$AD$9+CDENT+CEE+VIS+ASIS+EDXA20100+(FACTORES!$D33*FACTORES!$AD$9*CTE)+ENFGR+VLOOKUP(COTIZACION!$D$17,FACTORES!$K$21:$L$24,2,0),FACTORES!$D33*FACTORES!$AD$9+CDENT+CEE+VIS+ASIS+EDXA20100+ENFGR+VLOOKUP(COTIZACION!$D$17,FACTORES!$K$21:$L$24,2,0)) -> 21242.13551 | AO42: 1
B43: 31 | C43: =(Q43+DER)*(1+COTIZACION!$D$23) -> 21309.01454 | D43: =(R43+DER)*(1+COTIZACION!$D$23) -> 26551.36554 | F43: 31 | G43: =U43*(1+COTIZACION!$D$23) -> 20381.01454 | H43: =V43*(1+COTIZACION!$D$23) -> 25623.36554 | P43: 31 | Q43: =IF($K$10="INCLUIDO",FACTORES!$C34*FACTORES!$AD$9+CDENT+CEE+VIS+ASIS+EDXA20100+(FACTORES!$C34*FACTORES!$AD$9*CTE)+ENFGR,FACTORES!$C34*FACTORES!$AD$9+CDENT+CEE+VIS+ASIS+EDXA20100+ENFGR) -> 17569.84012 | R43: =IF($K$10="INCLUIDO",FACTORES!$D34*FACTORES!$AD$9+CDENT+CEE+VIS+ASIS+EDXA20100+(FACTORES!$D34*FACTORES!$AD$9*CTE)+ENFGR+VLOOKUP(COTIZACION!$D$17,FACTORES!$K$21:$L$24,2,0),FACTORES!$D34*FACTORES!$AD$9+CDENT+CEE+VIS+ASIS+EDXA20100+ENFGR+VLOOKUP(COTIZACION!$D$17,FACTORES!$K$21:$L$24,2,0)) -> 22089.10823 | T43: 31 | U43: =IF($K$10="INCLUIDO",FACTORES!$C34*FACTORES!$AD$9+CDENT+CEE+VIS+ASIS+EDXA20100+(FACTORES!$C34*FACTORES!$AD$9*CTE)+ENFGR,FACTORES!$C34*FACTORES!$AD$9+CDENT+CEE+VIS+ASIS+EDXA20100+ENFGR) -> 17569.84012 | V43: =IF($K$10="INCLUIDO",FACTORES!$D34*FACTORES!$AD$9+CDENT+CEE+VIS+ASIS+EDXA20100+(FACTORES!$D34*FACTORES!$AD$9*CTE)+ENFGR+VLOOKUP(COTIZACION!$D$17,FACTORES!$K$21:$L$24,2,0),FACTORES!$D34*FACTORES!$AD$9+CDENT+CEE+VIS+ASIS+EDXA20100+ENFGR+VLOOKUP(COTIZACION!$D$17,FACTORES!$K$21:$L$24,2,0)) -> 22089.10823 | AO43: 1
B44: 32 | C44: =(Q44+DER)*(1+COTIZACION!$D$23) -> 22280.12616 | D44: =(R44+DER)*(1+COTIZACION!$D$23) -> 27582.97831 | F44: 32 | G44: =U44*(1+COTIZACION!$D$23) -> 21352.12616 | H44: =V44*(1+COTIZACION!$D$23) -> 26654.97831 | P44: 32 | Q44: =IF($K$10="INCLUIDO",FACTORES!$C35*FACTORES!$AD$9+CDENT+CEE+VIS+ASIS+EDXA20100+(FACTORES!$C35*FACTORES!$AD$9*CTE)+ENFGR,FACTORES!$C35*FACTORES!$AD$9+CDENT+CEE+VIS+ASIS+EDXA20100+ENFGR) -> 18407.00531 | R44: =IF($K$10="INCLUIDO",FACTORES!$D35*FACTORES!$AD$9+CDENT+CEE+VIS+ASIS+EDXA20100+(FACTORES!$D35*FACTORES!$AD$9*CTE)+ENFGR+VLOOKUP(COTIZACION!$D$17,FACTORES!$K$21:$L$24,2,0),FACTORES!$D35*FACTORES!$AD$9+CDENT+CEE+VIS+ASIS+EDXA20100+ENFGR+VLOOKUP(COTIZACION!$D$17,FACTORES!$K$21:$L$24,2,0)) -> 22978.42958 | T44: 32 | U44: =IF($K$10="INCLUIDO",FACTORES!$C35*FACTORES!$AD$9+CDENT+CEE+VIS+ASIS+EDXA20100+(FACTORES!$C35*FACTORES!$AD$9*CTE)+ENFGR,FACTORES!$C35*FACTORES!$AD$9+CDENT+CEE+VIS+ASIS+EDXA20100+ENFGR) -> 18407.00531 | V44: =IF($K$10="INCLUIDO",FACTORES!$D35*FACTORES!$AD$9+CDENT+CEE+VIS+ASIS+EDXA20100+(FACTORES!$D35*FACTORES!$AD$9*CTE)+ENFGR+VLOOKUP(COTIZACION!$D$17,FACTORES!$K$21:$L$24,2,0),FACTORES!$D35*FACTORES!$AD$9+CDENT+CEE+VIS+ASIS+EDXA20100+ENFGR+VLOOKUP(COTIZACION!$D$17,FACTORES!$K$21:$L$24,2,0)) -> 22978.42958 | AO44: 1
B45: 33 | C45: =(Q45+DER)*(1+COTIZACION!$D$23) -> 23211.5105 | D45: =(R45+DER)*(1+COTIZACION!$D$23) -> 28666.17172 | F45: 33 | G45: =U45*(1+COTIZACION!$D$23) -> 22283.5105 | H45: =V45*(1+COTIZACION!$D$23) -> 27738.17172 | P45: 33 | Q45: =IF($K$10="INCLUIDO",FACTORES!$C36*FACTORES!$AD$9+CDENT+CEE+VIS+ASIS+EDXA20100+(FACTORES!$C36*FACTORES!$AD$9*CTE)+ENFGR,FACTORES!$C36*FACTORES!$AD$9+CDENT+CEE+VIS+ASIS+EDXA20100+ENFGR) -> 19209.92284 | R45: =IF($K$10="INCLUIDO",FACTORES!$D36*FACTORES!$AD$9+CDENT+CEE+VIS+ASIS+EDXA20100+(FACTORES!$D36*FACTORES!$AD$9*CTE)+ENFGR+VLOOKUP(COTIZACION!$D$17,FACTORES!$K$21:$L$24,2,0),FACTORES!$D36*FACTORES!$AD$9+CDENT+CEE+VIS+ASIS+EDXA20100+ENFGR+VLOOKUP(COTIZACION!$D$17,FACTORES!$K$21:$L$24,2,0)) -> 23912.217 | T45: 33 | U45: =IF($K$10="INCLUIDO",FACTORES!$C36*FACTORES!$AD$9+CDENT+CEE+VIS+ASIS+EDXA20100+(FACTORES!$C36*FACTORES!$AD$9*CTE)+ENFGR,FACTORES!$C36*FACTORES!$AD$9+CDENT+CEE+VIS+ASIS+EDXA20100+ENFGR) -> 19209.92284 | V45: =IF($K$10="INCLUIDO",FACTORES!$D36*FACTORES!$AD$9+CDENT+CEE+VIS+ASIS+EDXA20100+(FACTORES!$D36*FACTORES!$AD$9*CTE)+ENFGR+VLOOKUP(COTIZACION!$D$17,FACTORES!$K$21:$L$24,2,0),FACTORES!$D36*FACTORES!$AD$9+CDENT+CEE+VIS+ASIS+EDXA20100+ENFGR+VLOOKUP(COTIZACION!$D$17,FACTORES!$K$21:$L$24,2,0)) -> 23912.217 | AO45: 1
B46: 34 | C46: =(Q46+DER)*(1+COTIZACION!$D$23) -> 24189.46405 | D46: =(R46+DER)*(1+COTIZACION!$D$23) -> 29803.52479 | F46: 34 | G46: =U46*(1+COTIZACION!$D$23) -> 23261.46405 | H46: =V46*(1+COTIZACION!$D$23) -> 28875.52479 | P46: 34 | Q46: =IF($K$10="INCLUIDO",FACTORES!$C37*FACTORES!$AD$9+CDENT+CEE+VIS+ASIS+EDXA20100+(FACTORES!$C37*FACTORES!$AD$9*CTE)+ENFGR,FACTORES!$C37*FACTORES!$AD$9+CDENT+CEE+VIS+ASIS+EDXA20100+ENFGR) -> 20052.98625 | R46: =IF($K$10="INCLUIDO",FACTORES!$D37*FACTORES!$AD$9+CDENT+CEE+VIS+ASIS+EDXA20100+(FACTORES!$D37*FACTORES!$AD$9*CTE)+ENFGR+VLOOKUP(COTIZACION!$D$17,FACTORES!$K$21:$L$24,2,0),FACTORES!$D37*FACTORES!$AD$9+CDENT+CEE+VIS+ASIS+EDXA20100+ENFGR+VLOOKUP(COTIZACION!$D$17,FACTORES!$K$21:$L$24,2,0)) -> 24892.69379 | T46: 34 | U46: =IF($K$10="INCLUIDO",FACTORES!$C37*FACTORES!$AD$9+CDENT+CEE+VIS+ASIS+EDXA20100+(FACTORES!$C37*FACTORES!$AD$9*CTE)+ENFGR,FACTORES!$C37*FACTORES!$AD$9+CDENT+CEE+VIS+ASIS+EDXA20100+ENFGR) -> 20052.98625 | V46: =IF($K$10="INCLUIDO",FACTORES!$D37*FACTORES!$AD$9+CDENT+CEE+VIS+ASIS+EDXA20100+(FACTORES!$D37*FACTORES!$AD$9*CTE)+ENFGR+VLOOKUP(COTIZACION!$D$17,FACTORES!$K$21:$L$24,2,0),FACTORES!$D37*FACTORES!$AD$9+CDENT+CEE+VIS+ASIS+EDXA20100+ENFGR+VLOOKUP(COTIZACION!$D$17,FACTORES!$K$21:$L$24,2,0)) -> 24892.69379 | AO46: 1
B47: 35 | C47: =(Q47+DER)*(1+COTIZACION!$D$23) -> 25216.31528 | D47: =(R47+DER)*(1+COTIZACION!$D$23) -> 30878.32345 | F47: 35 | G47: =U47*(1+COTIZACION!$D$23) -> 24288.31528 | H47: =V47*(1+COTIZACION!$D$23) -> 29950.32345 | P47: 35 | Q47: =IF($K$10="INCLUIDO",FACTORES!$C38*FACTORES!$AD$9+CDENT+CEE+VIS+ASIS+EDXA20100+(FACTORES!$C38*FACTORES!$AD$9*CTE)+ENFGR,FACTORES!$C38*FACTORES!$AD$9+CDENT+CEE+VIS+ASIS+EDXA20100+ENFGR) -> 20938.20282 | R47: =IF($K$10="INCLUIDO",FACTORES!$D38*FACTORES!$AD$9+CDENT+CEE+VIS+ASIS+EDXA20100+(FACTORES!$D38*FACTORES!$AD$9*CTE)+ENFGR+VLOOKUP(COTIZACION!$D$17,FACTORES!$K$21:$L$24,2,0),FACTORES!$D38*FACTORES!$AD$9+CDENT+CEE+VIS+ASIS+EDXA20100+ENFGR+VLOOKUP(COTIZACION!$D$17,FACTORES!$K$21:$L$24,2,0)) -> 25819.24435 | T47: 35 | U47: =IF($K$10="INCLUIDO",FACTORES!$C38*FACTORES!$AD$9+CDENT+CEE+VIS+ASIS+EDXA20100+(FACTORES!$C38*FACTORES!$AD$9*CTE)+ENFGR,FACTORES!$C38*FACTORES!$AD$9+CDENT+CEE+VIS+ASIS+EDXA20100+ENFGR) -> 20938.20282 | V47: =IF($K$10="INCLUIDO",FACTORES!$D38*FACTORES!$AD$9+CDENT+CEE+VIS+ASIS+EDXA20100+(FACTORES!$D38*FACTORES!$AD$9*CTE)+ENFGR+VLOOKUP(COTIZACION!$D$17,FACTORES!$K$21:$L$24,2,0),FACTORES!$D38*FACTORES!$AD$9+CDENT+CEE+VIS+ASIS+EDXA20100+ENFGR+VLOOKUP(COTIZACION!$D$17,FACTORES!$K$21:$L$24,2,0)) -> 25819.24435 | AO47: 1
B48: 36 | C48: =(Q48+DER)*(1+COTIZACION!$D$23) -> 26294.50907 | D48: =(R48+DER)*(1+COTIZACION!$D$23) -> 32001.48805 | F48: 36 | G48: =U48*(1+COTIZACION!$D$23) -> 25366.50907 | H48: =V48*(1+COTIZACION!$D$23) -> 31073.48805 | P48: 36 | Q48: =IF($K$10="INCLUIDO",FACTORES!$C39*FACTORES!$AD$9+CDENT+CEE+VIS+ASIS+EDXA20100+(FACTORES!$C39*FACTORES!$AD$9*CTE)+ENFGR,FACTORES!$C39*FACTORES!$AD$9+CDENT+CEE+VIS+ASIS+EDXA20100+ENFGR) -> 21867.68023 | R48: =IF($K$10="INCLUIDO",FACTORES!$D39*FACTORES!$AD$9+CDENT+CEE+VIS+ASIS+EDXA20100+(FACTORES!$D39*FACTORES!$AD$9*CTE)+ENFGR+VLOOKUP(COTIZACION!$D$17,FACTORES!$K$21:$L$24,2,0),FACTORES!$D39*FACTORES!$AD$9+CDENT+CEE+VIS+ASIS+EDXA20100+ENFGR+VLOOKUP(COTIZACION!$D$17,FACTORES!$K$21:$L$24,2,0)) -> 26787.4897 | T48: 36 | U48: =IF($K$10="INCLUIDO",FACTORES!$C39*FACTORES!$AD$9+CDENT+CEE+VIS+ASIS+EDXA20100+(FACTORES!$C39*FACTORES!$AD$9*CTE)+ENFGR,FACTORES!$C39*FACTORES!$AD$9+CDENT+CEE+VIS+ASIS+EDXA20100+ENFGR) -> 21867.68023 | V48: =IF($K$10="INCLUIDO",FACTORES!$D39*FACTORES!$AD$9+CDENT+CEE+VIS+ASIS+EDXA20100+(FACTORES!$D39*FACTORES!$AD$9*CTE)+ENFGR+VLOOKUP(COTIZACION!$D$17,FACTORES!$K$21:$L$24,2,0),FACTORES!$D39*FACTORES!$AD$9+CDENT+CEE+VIS+ASIS+EDXA20100+ENFGR+VLOOKUP(COTIZACION!$D$17,FACTORES!$K$21:$L$24,2,0)) -> 26787.4897 | AO48: 1
B49: 37 | C49: =(Q49+DER)*(1+COTIZACION!$D$23) -> 27426.61255 | D49: =(R49+DER)*(1+COTIZACION!$D$23) -> 33175.19505 | F49: 37 | G49: =U49*(1+COTIZACION!$D$23) -> 26498.61255 | H49: =V49*(1+COTIZACION!$D$23) -> 32247.19505 | P49: 37 | Q49: =IF($K$10="INCLUIDO",FACTORES!$C40*FACTORES!$AD$9+CDENT+CEE+VIS+ASIS+EDXA20100+(FACTORES!$C40*FACTORES!$AD$9*CTE)+ENFGR,FACTORES!$C40*FACTORES!$AD$9+CDENT+CEE+VIS+ASIS+EDXA20100+ENFGR) -> 22843.63151 | R49: =IF($K$10="INCLUIDO",FACTORES!$D40*FACTORES!$AD$9+CDENT+CEE+VIS+ASIS+EDXA20100+(FACTORES!$D40*FACTORES!$AD$9*CTE)+ENFGR+VLOOKUP(COTIZACION!$D$17,FACTORES!$K$21:$L$24,2,0),FACTORES!$D40*FACTORES!$AD$9+CDENT+CEE+VIS+ASIS+EDXA20100+ENFGR+VLOOKUP(COTIZACION!$D$17,FACTORES!$K$21:$L$24,2,0)) -> 27799.30608 | T49: 37 | U49: =IF($K$10="INCLUIDO",FACTORES!$C40*FACTORES!$AD$9+CDENT+CEE+VIS+ASIS+EDXA20100+(FACTORES!$C40*FACTORES!$AD$9*CTE)+ENFGR,FACTORES!$C40*FACTORES!$AD$9+CDENT+CEE+VIS+ASIS+EDXA20100+ENFGR) -> 22843.63151 | V49: =IF($K$10="INCLUIDO",FACTORES!$D40*FACTORES!$AD$9+CDENT+CEE+VIS+ASIS+EDXA20100+(FACTORES!$D40*FACTORES!$AD$9*CTE)+ENFGR+VLOOKUP(COTIZACION!$D$17,FACTORES!$K$21:$L$24,2,0),FACTORES!$D40*FACTORES!$AD$9+CDENT+CEE+VIS+ASIS+EDXA20100+ENFGR+VLOOKUP(COTIZACION!$D$17,FACTORES!$K$21:$L$24,2,0)) -> 27799.30608 | AO49: 1
B50: 38 | C50: =(Q50+DER)*(1+COTIZACION!$D$23) -> 28615.3212 | D50: =(R50+DER)*(1+COTIZACION!$D$23) -> 34401.71887 | F50: 38 | G50: =U50*(1+COTIZACION!$D$23) -> 27687.3212 | H50: =V50*(1+COTIZACION!$D$23) -> 33473.71887 | P50: 38 | Q50: =IF($K$10="INCLUIDO",FACTORES!$C41*FACTORES!$AD$9+CDENT+CEE+VIS+ASIS+EDXA20100+(FACTORES!$C41*FACTORES!$AD$9*CTE)+ENFGR,FACTORES!$C41*FACTORES!$AD$9+CDENT+CEE+VIS+ASIS+EDXA20100+ENFGR) -> 23868.38034 | R50: =IF($K$10="INCLUIDO",FACTORES!$D41*FACTORES!$AD$9+CDENT+CEE+VIS+ASIS+EDXA20100+(FACTORES!$D41*FACTORES!$AD$9*CTE)+ENFGR+VLOOKUP(COTIZACION!$D$17,FACTORES!$K$21:$L$24,2,0),FACTORES!$D41*FACTORES!$AD$9+CDENT+CEE+VIS+ASIS+EDXA20100+ENFGR+VLOOKUP(COTIZACION!$D$17,FACTORES!$K$21:$L$24,2,0)) -> 28856.6542 | T50: 38 | U50: =IF($K$10="INCLUIDO",FACTORES!$C41*FACTORES!$AD$9+CDENT+CEE+VIS+ASIS+EDXA20100+(FACTORES!$C41*FACTORES!$AD$9*CTE)+ENFGR,FACTORES!$C41*FACTORES!$AD$9+CDENT+CEE+VIS+ASIS+EDXA20100+ENFGR) -> 23868.38034 | V50: =IF($K$10="INCLUIDO",FACTORES!$D41*FACTORES!$AD$9+CDENT+CEE+VIS+ASIS+EDXA20100+(FACTORES!$D41*FACTORES!$AD$9*CTE)+ENFGR+VLOOKUP(COTIZACION!$D$17,FACTORES!$K$21:$L$24,2,0),FACTORES!$D41*FACTORES!$AD$9+CDENT+CEE+VIS+ASIS+EDXA20100+ENFGR+VLOOKUP(COTIZACION!$D$17,FACTORES!$K$21:$L$24,2,0)) -> 28856.6542 | AO50: 1
B51: 39 | C51: =(Q51+DER)*(1+COTIZACION!$D$23) -> 29863.46528 | D51: =(R51+DER)*(1+COTIZACION!$D$23) -> 35683.43626 | F51: 39 | G51: =U51*(1+COTIZACION!$D$23) -> 28935.46528 | H51: =V51*(1+COTIZACION!$D$23) -> 34755.43626 | P51: 39 | Q51: =IF($K$10="INCLUIDO",FACTORES!$C42*FACTORES!$AD$9+CDENT+CEE+VIS+ASIS+EDXA20100+(FACTORES!$C42*FACTORES!$AD$9*CTE)+ENFGR,FACTORES!$C42*FACTORES!$AD$9+CDENT+CEE+VIS+ASIS+EDXA20100+ENFGR) -> 24944.36662 | R51: =IF($K$10="INCLUIDO",FACTORES!$D42*FACTORES!$AD$9+CDENT+CEE+VIS+ASIS+EDXA20100+(FACTORES!$D42*FACTORES!$AD$9*CTE)+ENFGR+VLOOKUP(COTIZACION!$D$17,FACTORES!$K$21:$L$24,2,0),FACTORES!$D42*FACTORES!$AD$9+CDENT+CEE+VIS+ASIS+EDXA20100+ENFGR+VLOOKUP(COTIZACION!$D$17,FACTORES!$K$21:$L$24,2,0)) -> 29961.58298 | T51: 39 | U51: =IF($K$10="INCLUIDO",FACTORES!$C42*FACTORES!$AD$9+CDENT+CEE+VIS+ASIS+EDXA20100+(FACTORES!$C42*FACTORES!$AD$9*CTE)+ENFGR,FACTORES!$C42*FACTORES!$AD$9+CDENT+CEE+VIS+ASIS+EDXA20100+ENFGR) -> 24944.36662 | V51: =IF($K$10="INCLUIDO",FACTORES!$D42*FACTORES!$AD$9+CDENT+CEE+VIS+ASIS+EDXA20100+(FACTORES!$D42*FACTORES!$AD$9*CTE)+ENFGR+VLOOKUP(COTIZACION!$D$17,FACTORES!$K$21:$L$24,2,0),FACTORES!$D42*FACTORES!$AD$9+CDENT+CEE+VIS+ASIS+EDXA20100+ENFGR+VLOOKUP(COTIZACION!$D$17,FACTORES!$K$21:$L$24,2,0)) -> 29961.58298 | AO51: 1
B52: 40 | C52: =(Q52+DER)*(1+COTIZACION!$D$23) -> 30953.38023 | D52: =(R52+DER)*(1+COTIZACION!$D$23) -> 37171.65256 | F52: 40 | G52: =U52*(1+COTIZACION!$D$23) -> 30025.38023 | H52: =V52*(1+COTIZACION!$D$23) -> 36243.65256 | P52: 40 | Q52: =IF($K$10="INCLUIDO",FACTORES!$C43*FACTORES!$AD$9+CDENT+CEE+VIS+ASIS+EDXA20100+(FACTORES!$C43*FACTORES!$AD$9*CTE)+ENFGR,FACTORES!$C43*FACTORES!$AD$9+CDENT+CEE+VIS+ASIS+EDXA20100+ENFGR) -> 25883.94848 | R52: =IF($K$10="INCLUIDO",FACTORES!$D43*FACTORES!$AD$9+CDENT+CEE+VIS+ASIS+EDXA20100+(FACTORES!$D43*FACTORES!$AD$9*CTE)+ENFGR+VLOOKUP(COTIZACION!$D$17,FACTORES!$K$21:$L$24,2,0),FACTORES!$D43*FACTORES!$AD$9+CDENT+CEE+VIS+ASIS+EDXA20100+ENFGR+VLOOKUP(COTIZACION!$D$17,FACTORES!$K$21:$L$24,2,0)) -> 31244.52807 | T52: 40 | U52: =IF($K$10="INCLUIDO",FACTORES!$C43*FACTORES!$AD$9+CDENT+CEE+VIS+ASIS+EDXA20100+(FACTORES!$C43*FACTORES!$AD$9*CTE)+ENFGR,FACTORES!$C43*FACTORES!$AD$9+CDENT+CEE+VIS+ASIS+EDXA20100+ENFGR) -> 25883.94848 | V52: =IF($K$10="INCLUIDO",FACTORES!$D43*FACTORES!$AD$9+CDENT+CEE+VIS+ASIS+EDXA20100+(FACTORES!$D43*FACTORES!$AD$9*CTE)+ENFGR+VLOOKUP(COTIZACION!$D$17,FACTORES!$K$21:$L$24,2,0),FACTORES!$D43*FACTORES!$AD$9+CDENT+CEE+VIS+ASIS+EDXA20100+ENFGR+VLOOKUP(COTIZACION!$D$17,FACTORES!$K$21:$L$24,2,0)) -> 31244.52807 | AO52: 1
B53: 41 | C53: =(Q53+DER)*(1+COTIZACION!$D$23) -> 32318.42727 | D53: =(R53+DER)*(1+COTIZACION!$D$23) -> 38734.27968 | F53: 41 | G53: =U53*(1+COTIZACION!$D$23) -> 31390.42727 | H53: =V53*(1+COTIZACION!$D$23) -> 37806.27968 | P53: 41 | Q53: =IF($K$10="INCLUIDO",FACTORES!$C44*FACTORES!$AD$9+CDENT+CEE+VIS+ASIS+EDXA20100+(FACTORES!$C44*FACTORES!$AD$9*CTE)+ENFGR,FACTORES!$C44*FACTORES!$AD$9+CDENT+CEE+VIS+ASIS+EDXA20100+ENFGR) -> 27060.71317 | R53: =IF($K$10="INCLUIDO",FACTORES!$D44*FACTORES!$AD$9+CDENT+CEE+VIS+ASIS+EDXA20100+(FACTORES!$D44*FACTORES!$AD$9*CTE)+ENFGR+VLOOKUP(COTIZACION!$D$17,FACTORES!$K$21:$L$24,2,0),FACTORES!$D44*FACTORES!$AD$9+CDENT+CEE+VIS+ASIS+EDXA20100+ENFGR+VLOOKUP(COTIZACION!$D$17,FACTORES!$K$21:$L$24,2,0)) -> 32591.62042 | T53: 41 | U53: =IF($K$10="INCLUIDO",FACTORES!$C44*FACTORES!$AD$9+CDENT+CEE+VIS+ASIS+EDXA20100+(FACTORES!$C44*FACTORES!$AD$9*CTE)+ENFGR,FACTORES!$C44*FACTORES!$AD$9+CDENT+CEE+VIS+ASIS+EDXA20100+ENFGR) -> 27060.71317 | V53: =IF($K$10="INCLUIDO",FACTORES!$D44*FACTORES!$AD$9+CDENT+CEE+VIS+ASIS+EDXA20100+(FACTORES!$D44*FACTORES!$AD$9*CTE)+ENFGR+VLOOKUP(COTIZACION!$D$17,FACTORES!$K$21:$L$24,2,0),FACTORES!$D44*FACTORES!$AD$9+CDENT+CEE+VIS+ASIS+EDXA20100+ENFGR+VLOOKUP(COTIZACION!$D$17,FACTORES!$K$21:$L$24,2,0)) -> 32591.62042 | AO53: 1
B54: 42 | C54: =(Q54+DER)*(1+COTIZACION!$D$23) -> 33751.72666 | D54: =(R54+DER)*(1+COTIZACION!$D$23) -> 40375.03816 | F54: 42 | G54: =U54*(1+COTIZACION!$D$23) -> 32823.72666 | H54: =V54*(1+COTIZACION!$D$23) -> 39447.03816 | P54: 42 | Q54: =IF($K$10="INCLUIDO",FACTORES!$C45*FACTORES!$AD$9+CDENT+CEE+VIS+ASIS+EDXA20100+(FACTORES!$C45*FACTORES!$AD$9*CTE)+ENFGR,FACTORES!$C45*FACTORES!$AD$9+CDENT+CEE+VIS+ASIS+EDXA20100+ENFGR) -> 28296.31609 | R54: =IF($K$10="INCLUIDO",FACTORES!$D45*FACTORES!$AD$9+CDENT+CEE+VIS+ASIS+EDXA20100+(FACTORES!$D45*FACTORES!$AD$9*CTE)+ENFGR+VLOOKUP(COTIZACION!$D$17,FACTORES!$K$21:$L$24,2,0),FACTORES!$D45*FACTORES!$AD$9+CDENT+CEE+VIS+ASIS+EDXA20100+ENFGR+VLOOKUP(COTIZACION!$D$17,FACTORES!$K$21:$L$24,2,0)) -> 34006.06738 | T54: 42 | U54: =IF($K$10="INCLUIDO",FACTORES!$C45*FACTORES!$AD$9+CDENT+CEE+VIS+ASIS+EDXA20100+(FACTORES!$C45*FACTORES!$AD$9*CTE)+ENFGR,FACTORES!$C45*FACTORES!$AD$9+CDENT+CEE+VIS+ASIS+EDXA20100+ENFGR) -> 28296.31609 | V54: =IF($K$10="INCLUIDO",FACTORES!$D45*FACTORES!$AD$9+CDENT+CEE+VIS+ASIS+EDXA20100+(FACTORES!$D45*FACTORES!$AD$9*CTE)+ENFGR+VLOOKUP(COTIZACION!$D$17,FACTORES!$K$21:$L$24,2,0),FACTORES!$D45*FACTORES!$AD$9+CDENT+CEE+VIS+ASIS+EDXA20100+ENFGR+VLOOKUP(COTIZACION!$D$17,FACTORES!$K$21:$L$24,2,0)) -> 34006.06738 | AO54: 1
B55: 43 | C55: =(Q55+DER)*(1+COTIZACION!$D$23) -> 35256.69102 | D55: =(R55+DER)*(1+COTIZACION!$D$23) -> 42097.83455 | F55: 43 | G55: =U55*(1+COTIZACION!$D$23) -> 34328.69102 | H55: =V55*(1+COTIZACION!$D$23) -> 41169.83455 | P55: 43 | Q55: =IF($K$10="INCLUIDO",FACTORES!$C46*FACTORES!$AD$9+CDENT+CEE+VIS+ASIS+EDXA20100+(FACTORES!$C46*FACTORES!$AD$9*CTE)+ENFGR,FACTORES!$C46*FACTORES!$AD$9+CDENT+CEE+VIS+ASIS+EDXA20100+ENFGR) -> 29593.69916 | R55: =IF($K$10="INCLUIDO",FACTORES!$D46*FACTORES!$AD$9+CDENT+CEE+VIS+ASIS+EDXA20100+(FACTORES!$D46*FACTORES!$AD$9*CTE)+ENFGR+VLOOKUP(COTIZACION!$D$17,FACTORES!$K$21:$L$24,2,0),FACTORES!$D46*FACTORES!$AD$9+CDENT+CEE+VIS+ASIS+EDXA20100+ENFGR+VLOOKUP(COTIZACION!$D$17,FACTORES!$K$21:$L$24,2,0)) -> 35491.23668 | T55: 43 | U55: =IF($K$10="INCLUIDO",FACTORES!$C46*FACTORES!$AD$9+CDENT+CEE+VIS+ASIS+EDXA20100+(FACTORES!$C46*FACTORES!$AD$9*CTE)+ENFGR,FACTORES!$C46*FACTORES!$AD$9+CDENT+CEE+VIS+ASIS+EDXA20100+ENFGR) -> 29593.69916 | V55: =IF($K$10="INCLUIDO",FACTORES!$D46*FACTORES!$AD$9+CDENT+CEE+VIS+ASIS+EDXA20100+(FACTORES!$D46*FACTORES!$AD$9*CTE)+ENFGR+VLOOKUP(COTIZACION!$D$17,FACTORES!$K$21:$L$24,2,0),FACTORES!$D46*FACTORES!$AD$9+CDENT+CEE+VIS+ASIS+EDXA20100+ENFGR+VLOOKUP(COTIZACION!$D$17,FACTORES!$K$21:$L$24,2,0)) -> 35491.23668 | AO55: 1
B56: 44 | C56: =(Q56+DER)*(1+COTIZACION!$D$23) -> 36836.9036 | D56: =(R56+DER)*(1+COTIZACION!$D$23) -> 43906.77077 | F56: 44 | G56: =U56*(1+COTIZACION!$D$23) -> 35908.9036 | H56: =V56*(1+COTIZACION!$D$23) -> 42978.77077 | P56: 44 | Q56: =IF($K$10="INCLUIDO",FACTORES!$C47*FACTORES!$AD$9+CDENT+CEE+VIS+ASIS+EDXA20100+(FACTORES!$C47*FACTORES!$AD$9*CTE)+ENFGR,FACTORES!$C47*FACTORES!$AD$9+CDENT+CEE+VIS+ASIS+EDXA20100+ENFGR) -> 30955.95138 | R56: =IF($K$10="INCLUIDO",FACTORES!$D47*FACTORES!$AD$9+CDENT+CEE+VIS+ASIS+EDXA20100+(FACTORES!$D47*FACTORES!$AD$9*CTE)+ENFGR+VLOOKUP(COTIZACION!$D$17,FACTORES!$K$21:$L$24,2,0),FACTORES!$D47*FACTORES!$AD$9+CDENT+CEE+VIS+ASIS+EDXA20100+ENFGR+VLOOKUP(COTIZACION!$D$17,FACTORES!$K$21:$L$24,2,0)) -> 37050.66446 | T56: 44 | U56: =IF($K$10="INCLUIDO",FACTORES!$C47*FACTORES!$AD$9+CDENT+CEE+VIS+ASIS+EDXA20100+(FACTORES!$C47*FACTORES!$AD$9*CTE)+ENFGR,FACTORES!$C47*FACTORES!$AD$9+CDENT+CEE+VIS+ASIS+EDXA20100+ENFGR) -> 30955.95138 | V56: =IF($K$10="INCLUIDO",FACTORES!$D47*FACTORES!$AD$9+CDENT+CEE+VIS+ASIS+EDXA20100+(FACTORES!$D47*FACTORES!$AD$9*CTE)+ENFGR+VLOOKUP(COTIZACION!$D$17,FACTORES!$K$21:$L$24,2,0),FACTORES!$D47*FACTORES!$AD$9+CDENT+CEE+VIS+ASIS+EDXA20100+ENFGR+VLOOKUP(COTIZACION!$D$17,FACTORES!$K$21:$L$24,2,0)) -> 37050.66446 | AO56: 1
B57: 45 | C57: =(Q57+DER)*(1+COTIZACION!$D$23) -> 38496.1268 | D57: =(R57+DER)*(1+COTIZACION!$D$23) -> 46186.03041 | F57: 45 | G57: =U57*(1+COTIZACION!$D$23) -> 37568.1268 | H57: =V57*(1+COTIZACION!$D$23) -> 45258.03041 | P57: 45 | Q57: =IF($K$10="INCLUIDO",FACTORES!$C48*FACTORES!$AD$9+CDENT+CEE+VIS+ASIS+EDXA20100+(FACTORES!$C48*FACTORES!$AD$9*CTE)+ENFGR,FACTORES!$C48*FACTORES!$AD$9+CDENT+CEE+VIS+ASIS+EDXA20100+ENFGR) -> 32386.31621 | R57: =IF($K$10="INCLUIDO",FACTORES!$D48*FACTORES!$AD$9+CDENT+CEE+VIS+ASIS+EDXA20100+(FACTORES!$D48*FACTORES!$AD$9*CTE)+ENFGR+VLOOKUP(COTIZACION!$D$17,FACTORES!$K$21:$L$24,2,0),FACTORES!$D48*FACTORES!$AD$9+CDENT+CEE+VIS+ASIS+EDXA20100+ENFGR+VLOOKUP(COTIZACION!$D$17,FACTORES!$K$21:$L$24,2,0)) -> 39015.54345 | T57: 45 | U57: =IF($K$10="INCLUIDO",FACTORES!$C48*FACTORES!$AD$9+CDENT+CEE+VIS+ASIS+EDXA20100+(FACTORES!$C48*FACTORES!$AD$9*CTE)+ENFGR,FACTORES!$C48*FACTORES!$AD$9+CDENT+CEE+VIS+ASIS+EDXA20100+ENFGR) -> 32386.31621 | V57: =IF($K$10="INCLUIDO",FACTORES!$D48*FACTORES!$AD$9+CDENT+CEE+VIS+ASIS+EDXA20100+(FACTORES!$D48*FACTORES!$AD$9*CTE)+ENFGR+VLOOKUP(COTIZACION!$D$17,FACTORES!$K$21:$L$24,2,0),FACTORES!$D48*FACTORES!$AD$9+CDENT+CEE+VIS+ASIS+EDXA20100+ENFGR+VLOOKUP(COTIZACION!$D$17,FACTORES!$K$21:$L$24,2,0)) -> 39015.54345 | AO57: 1
B58: 46 | C58: =(Q58+DER)*(1+COTIZACION!$D$23) -> 40238.31117 | D58: =(R58+DER)*(1+COTIZACION!$D$23) -> 48199.37642 | F58: 46 | G58: =U58*(1+COTIZACION!$D$23) -> 39310.31117 | H58: =V58*(1+COTIZACION!$D$23) -> 47271.37642 | P58: 46 | Q58: =IF($K$10="INCLUIDO",FACTORES!$C49*FACTORES!$AD$9+CDENT+CEE+VIS+ASIS+EDXA20100+(FACTORES!$C49*FACTORES!$AD$9*CTE)+ENFGR,FACTORES!$C49*FACTORES!$AD$9+CDENT+CEE+VIS+ASIS+EDXA20100+ENFGR) -> 33888.19928 | R58: =IF($K$10="INCLUIDO",FACTORES!$D49*FACTORES!$AD$9+CDENT+CEE+VIS+ASIS+EDXA20100+(FACTORES!$D49*FACTORES!$AD$9*CTE)+ENFGR+VLOOKUP(COTIZACION!$D$17,FACTORES!$K$21:$L$24,2,0),FACTORES!$D49*FACTORES!$AD$9+CDENT+CEE+VIS+ASIS+EDXA20100+ENFGR+VLOOKUP(COTIZACION!$D$17,FACTORES!$K$21:$L$24,2,0)) -> 40751.18657 | T58: 46 | U58: =IF($K$10="INCLUIDO",FACTORES!$C49*FACTORES!$AD$9+CDENT+CEE+VIS+ASIS+EDXA20100+(FACTORES!$C49*FACTORES!$AD$9*CTE)+ENFGR,FACTORES!$C49*FACTORES!$AD$9+CDENT+CEE+VIS+ASIS+EDXA20100+ENFGR) -> 33888.19928 | V58: =IF($K$10="INCLUIDO",FACTORES!$D49*FACTORES!$AD$9+CDENT+CEE+VIS+ASIS+EDXA20100+(FACTORES!$D49*FACTORES!$AD$9*CTE)+ENFGR+VLOOKUP(COTIZACION!$D$17,FACTORES!$K$21:$L$24,2,0),FACTORES!$D49*FACTORES!$AD$9+CDENT+CEE+VIS+ASIS+EDXA20100+ENFGR+VLOOKUP(COTIZACION!$D$17,FACTORES!$K$21:$L$24,2,0)) -> 40751.18657 | AO58: 1
B59: 47 | C59: =(Q59+DER)*(1+COTIZACION!$D$23) -> 42067.60475 | D59: =(R59+DER)*(1+COTIZACION!$D$23) -> 50313.38973 | F59: 47 | G59: =U59*(1+COTIZACION!$D$23) -> 41139.60475 | H59: =V59*(1+COTIZACION!$D$23) -> 49385.38973 | P59: 47 | Q59: =IF($K$10="INCLUIDO",FACTORES!$C50*FACTORES!$AD$9+CDENT+CEE+VIS+ASIS+EDXA20100+(FACTORES!$C50*FACTORES!$AD$9*CTE)+ENFGR,FACTORES!$C50*FACTORES!$AD$9+CDENT+CEE+VIS+ASIS+EDXA20100+ENFGR) -> 35465.17651 | R59: =IF($K$10="INCLUIDO",FACTORES!$D50*FACTORES!$AD$9+CDENT+CEE+VIS+ASIS+EDXA20100+(FACTORES!$D50*FACTORES!$AD$9*CTE)+ENFGR+VLOOKUP(COTIZACION!$D$17,FACTORES!$K$21:$L$24,2,0),FACTORES!$D50*FACTORES!$AD$9+CDENT+CEE+VIS+ASIS+EDXA20100+ENFGR+VLOOKUP(COTIZACION!$D$17,FACTORES!$K$21:$L$24,2,0)) -> 42573.61184 | T59: 47 | U59: =IF($K$10="INCLUIDO",FACTORES!$C50*FACTORES!$AD$9+CDENT+CEE+VIS+ASIS+EDXA20100+(FACTORES!$C50*FACTORES!$AD$9*CTE)+ENFGR,FACTORES!$C50*FACTORES!$AD$9+CDENT+CEE+VIS+ASIS+EDXA20100+ENFGR) -> 35465.17651 | V59: =IF($K$10="INCLUIDO",FACTORES!$D50*FACTORES!$AD$9+CDENT+CEE+VIS+ASIS+EDXA20100+(FACTORES!$D50*FACTORES!$AD$9*CTE)+ENFGR+VLOOKUP(COTIZACION!$D$17,FACTORES!$K$21:$L$24,2,0),FACTORES!$D50*FACTORES!$AD$9+CDENT+CEE+VIS+ASIS+EDXA20100+ENFGR+VLOOKUP(COTIZACION!$D$17,FACTORES!$K$21:$L$24,2,0)) -> 42573.61184 | AO59: 1
B60: 48 | C60: =(Q60+DER)*(1+COTIZACION!$D$23) -> 43988.36302 | D60: =(R60+DER)*(1+COTIZACION!$D$23) -> 52533.10371 | F60: 48 | G60: =U60*(1+COTIZACION!$D$23) -> 43060.36302 | H60: =V60*(1+COTIZACION!$D$23) -> 51605.10371 | P60: 48 | Q60: =IF($K$10="INCLUIDO",FACTORES!$C51*FACTORES!$AD$9+CDENT+CEE+VIS+ASIS+EDXA20100+(FACTORES!$C51*FACTORES!$AD$9*CTE)+ENFGR,FACTORES!$C51*FACTORES!$AD$9+CDENT+CEE+VIS+ASIS+EDXA20100+ENFGR) -> 37121.0026 | R60: =IF($K$10="INCLUIDO",FACTORES!$D51*FACTORES!$AD$9+CDENT+CEE+VIS+ASIS+EDXA20100+(FACTORES!$D51*FACTORES!$AD$9*CTE)+ENFGR+VLOOKUP(COTIZACION!$D$17,FACTORES!$K$21:$L$24,2,0),FACTORES!$D51*FACTORES!$AD$9+CDENT+CEE+VIS+ASIS+EDXA20100+ENFGR+VLOOKUP(COTIZACION!$D$17,FACTORES!$K$21:$L$24,2,0)) -> 44487.15837 | T60: 48 | U60: =IF($K$10="INCLUIDO",FACTORES!$C51*FACTORES!$AD$9+CDENT+CEE+VIS+ASIS+EDXA20100+(FACTORES!$C51*FACTORES!$AD$9*CTE)+ENFGR,FACTORES!$C51*FACTORES!$AD$9+CDENT+CEE+VIS+ASIS+EDXA20100+ENFGR) -> 37121.0026 | V60: =IF($K$10="INCLUIDO",FACTORES!$D51*FACTORES!$AD$9+CDENT+CEE+VIS+ASIS+EDXA20100+(FACTORES!$D51*FACTORES!$AD$9*CTE)+ENFGR+VLOOKUP(COTIZACION!$D$17,FACTORES!$K$21:$L$24,2,0),FACTORES!$D51*FACTORES!$AD$9+CDENT+CEE+VIS+ASIS+EDXA20100+ENFGR+VLOOKUP(COTIZACION!$D$17,FACTORES!$K$21:$L$24,2,0)) -> 44487.15837 | AO60: 1
B61: 49 | C61: =(Q61+DER)*(1+COTIZACION!$D$23) -> 46005.15919 | D61: =(R61+DER)*(1+COTIZACION!$D$23) -> 54630.73341 | F61: 49 | G61: =U61*(1+COTIZACION!$D$23) -> 45077.15919 | H61: =V61*(1+COTIZACION!$D$23) -> 53702.73341 | P61: 49 | Q61: =IF($K$10="INCLUIDO",FACTORES!$C52*FACTORES!$AD$9+CDENT+CEE+VIS+ASIS+EDXA20100+(FACTORES!$C52*FACTORES!$AD$9*CTE)+ENFGR,FACTORES!$C52*FACTORES!$AD$9+CDENT+CEE+VIS+ASIS+EDXA20100+ENFGR) -> 38859.61999 | R61: =IF($K$10="INCLUIDO",FACTORES!$D52*FACTORES!$AD$9+CDENT+CEE+VIS+ASIS+EDXA20100+(FACTORES!$D52*FACTORES!$AD$9*CTE)+ENFGR+VLOOKUP(COTIZACION!$D$17,FACTORES!$K$21:$L$24,2,0),FACTORES!$D52*FACTORES!$AD$9+CDENT+CEE+VIS+ASIS+EDXA20100+ENFGR+VLOOKUP(COTIZACION!$D$17,FACTORES!$K$21:$L$24,2,0)) -> 46295.45984 | T61: 49 | U61: =IF($K$10="INCLUIDO",FACTORES!$C52*FACTORES!$AD$9+CDENT+CEE+VIS+ASIS+EDXA20100+(FACTORES!$C52*FACTORES!$AD$9*CTE)+ENFGR,FACTORES!$C52*FACTORES!$AD$9+CDENT+CEE+VIS+ASIS+EDXA20100+ENFGR) -> 38859.61999 | V61: =IF($K$10="INCLUIDO",FACTORES!$D52*FACTORES!$AD$9+CDENT+CEE+VIS+ASIS+EDXA20100+(FACTORES!$D52*FACTORES!$AD$9*CTE)+ENFGR+VLOOKUP(COTIZACION!$D$17,FACTORES!$K$21:$L$24,2,0),FACTORES!$D52*FACTORES!$AD$9+CDENT+CEE+VIS+ASIS+EDXA20100+ENFGR+VLOOKUP(COTIZACION!$D$17,FACTORES!$K$21:$L$24,2,0)) -> 46295.45984 | AO61: 1
B62: 50 | C62: =(Q62+DER)*(1+COTIZACION!$D$23) -> 49259.01086 | D62: =(R62+DER)*(1+COTIZACION!$D$23) -> 55647.86836 | F62: 50 | G62: =U62*(1+COTIZACION!$D$23) -> 48331.01086 | H62: =V62*(1+COTIZACION!$D$23) -> 54719.86836 | P62: 50 | Q62: =IF($K$10="INCLUIDO",FACTORES!$C53*FACTORES!$AD$9+CDENT+CEE+VIS+ASIS+EDXA20100+(FACTORES!$C53*FACTORES!$AD$9*CTE)+ENFGR,FACTORES!$C53*FACTORES!$AD$9+CDENT+CEE+VIS+ASIS+EDXA20100+ENFGR) -> 41664.66454 | R62: =IF($K$10="INCLUIDO",FACTORES!$D53*FACTORES!$AD$9+CDENT+CEE+VIS+ASIS+EDXA20100+(FACTORES!$D53*FACTORES!$AD$9*CTE)+ENFGR+VLOOKUP(COTIZACION!$D$17,FACTORES!$K$21:$L$24,2,0),FACTORES!$D53*FACTORES!$AD$9+CDENT+CEE+VIS+ASIS+EDXA20100+ENFGR+VLOOKUP(COTIZACION!$D$17,FACTORES!$K$21:$L$24,2,0)) -> 47172.30031 | T62: 50 | U62: =IF($K$10="INCLUIDO",FACTORES!$C53*FACTORES!$AD$9+CDENT+CEE+VIS+ASIS+EDXA20100+(FACTORES!$C53*FACTORES!$AD$9*CTE)+ENFGR,FACTORES!$C53*FACTORES!$AD$9+CDENT+CEE+VIS+ASIS+EDXA20100+ENFGR) -> 41664.66454 | V62: =IF($K$10="INCLUIDO",FACTORES!$D53*FACTORES!$AD$9+CDENT+CEE+VIS+ASIS+EDXA20100+(FACTORES!$D53*FACTORES!$AD$9*CTE)+ENFGR+VLOOKUP(COTIZACION!$D$17,FACTORES!$K$21:$L$24,2,0),FACTORES!$D53*FACTORES!$AD$9+CDENT+CEE+VIS+ASIS+EDXA20100+ENFGR+VLOOKUP(COTIZACION!$D$17,FACTORES!$K$21:$L$24,2,0)) -> 47172.30031 | AO62: 1
B63: 51 | C63: =(Q63+DER)*(1+COTIZACION!$D$23) -> 52451.47086 | D63: =(R63+DER)*(1+COTIZACION!$D$23) -> 57359.49831 | F63: 51 | G63: =U63*(1+COTIZACION!$D$23) -> 51523.47086 | H63: =V63*(1+COTIZACION!$D$23) -> 56431.49831 | P63: 51 | Q63: =IF($K$10="INCLUIDO",FACTORES!$C54*FACTORES!$AD$9+CDENT+CEE+VIS+ASIS+EDXA20100+(FACTORES!$C54*FACTORES!$AD$9*CTE)+ENFGR,FACTORES!$C54*FACTORES!$AD$9+CDENT+CEE+VIS+ASIS+EDXA20100+ENFGR) -> 44416.78522 | R63: =IF($K$10="INCLUIDO",FACTORES!$D54*FACTORES!$AD$9+CDENT+CEE+VIS+ASIS+EDXA20100+(FACTORES!$D54*FACTORES!$AD$9*CTE)+ENFGR,FACTORES!$D54*FACTORES!$AD$9+CDENT+CEE+VIS+ASIS+EDXA20100+ENFGR) -> 48647.84337 | T63: 51 | U63: =IF($K$10="INCLUIDO",FACTORES!$C54*FACTORES!$AD$9+CDENT+CEE+VIS+ASIS+EDXA20100+(FACTORES!$C54*FACTORES!$AD$9*CTE)+ENFGR,FACTORES!$C54*FACTORES!$AD$9+CDENT+CEE+VIS+ASIS+EDXA20100+ENFGR) -> 44416.78522 | V63: =IF($K$10="INCLUIDO",FACTORES!$D54*FACTORES!$AD$9+CDENT+CEE+VIS+ASIS+EDXA20100+(FACTORES!$D54*FACTORES!$AD$9*CTE)+ENFGR,FACTORES!$D54*FACTORES!$AD$9+CDENT+CEE+VIS+ASIS+EDXA20100+ENFGR) -> 48647.84337 | AO63: 1
B64: 52 | C64: =(Q64+DER)*(1+COTIZACION!$D$23) -> 55379.41274 | D64: =(R64+DER)*(1+COTIZACION!$D$23) -> 59507.78066 | F64: 52 | G64: =U64*(1+COTIZACION!$D$23) -> 54451.41274 | H64: =V64*(1+COTIZACION!$D$23) -> 58579.78066 | P64: 52 | Q64: =IF($K$10="INCLUIDO",FACTORES!$C55*FACTORES!$AD$9+CDENT+CEE+VIS+ASIS+EDXA20100+(FACTORES!$C55*FACTORES!$AD$9*CTE)+ENFGR,FACTORES!$C55*FACTORES!$AD$9+CDENT+CEE+VIS+ASIS+EDXA20100+ENFGR) -> 46940.87305 | R64: =IF($K$10="INCLUIDO",FACTORES!$D55*FACTORES!$AD$9+CDENT+CEE+VIS+ASIS+EDXA20100+(FACTORES!$D55*FACTORES!$AD$9*CTE)+ENFGR,FACTORES!$D55*FACTORES!$AD$9+CDENT+CEE+VIS+ASIS+EDXA20100+ENFGR) -> 50499.81092 | T64: 52 | U64: =IF($K$10="INCLUIDO",FACTORES!$C55*FACTORES!$AD$9+CDENT+CEE+VIS+ASIS+EDXA20100+(FACTORES!$C55*FACTORES!$AD$9*CTE)+ENFGR,FACTORES!$C55*FACTORES!$AD$9+CDENT+CEE+VIS+ASIS+EDXA20100+ENFGR) -> 46940.87305 | V64: =IF($K$10="INCLUIDO",FACTORES!$D55*FACTORES!$AD$9+CDENT+CEE+VIS+ASIS+EDXA20100+(FACTORES!$D55*FACTORES!$AD$9*CTE)+ENFGR,FACTORES!$D55*FACTORES!$AD$9+CDENT+CEE+VIS+ASIS+EDXA20100+ENFGR) -> 50499.81092 | AO64: 1
B65: 53 | C65: =(Q65+DER)*(1+COTIZACION!$D$23) -> 58483.03114 | D65: =(R65+DER)*(1+COTIZACION!$D$23) -> 62300.54772 | F65: 53 | G65: =U65*(1+COTIZACION!$D$23) -> 57555.03114 | H65: =V65*(1+COTIZACION!$D$23) -> 61372.54772 | P65: 53 | Q65: =IF($K$10="INCLUIDO",FACTORES!$C56*FACTORES!$AD$9+CDENT+CEE+VIS+ASIS+EDXA20100+(FACTORES!$C56*FACTORES!$AD$9*CTE)+ENFGR,FACTORES!$C56*FACTORES!$AD$9+CDENT+CEE+VIS+ASIS+EDXA20100+ENFGR) -> 49616.40615 | R65: =IF($K$10="INCLUIDO",FACTORES!$D56*FACTORES!$AD$9+CDENT+CEE+VIS+ASIS+EDXA20100+(FACTORES!$D56*FACTORES!$AD$9*CTE)+ENFGR,FACTORES!$D56*FACTORES!$AD$9+CDENT+CEE+VIS+ASIS+EDXA20100+ENFGR) -> 52907.36873 | T65: 53 | U65: =IF($K$10="INCLUIDO",FACTORES!$C56*FACTORES!$AD$9+CDENT+CEE+VIS+ASIS+EDXA20100+(FACTORES!$C56*FACTORES!$AD$9*CTE)+ENFGR,FACTORES!$C56*FACTORES!$AD$9+CDENT+CEE+VIS+ASIS+EDXA20100+ENFGR) -> 49616.40615 | V65: =IF($K$10="INCLUIDO",FACTORES!$D56*FACTORES!$AD$9+CDENT+CEE+VIS+ASIS+EDXA20100+(FACTORES!$D56*FACTORES!$AD$9*CTE)+ENFGR,FACTORES!$D56*FACTORES!$AD$9+CDENT+CEE+VIS+ASIS+EDXA20100+ENFGR) -> 52907.36873 | AO65: 1
B66: 54 | C66: =(Q66+DER)*(1+COTIZACION!$D$23) -> 61772.86664 | D66: =(R66+DER)*(1+COTIZACION!$D$23) -> 65232.95313 | F66: 54 | G66: =U66*(1+COTIZACION!$D$23) -> 60844.86664 | H66: =V66*(1+COTIZACION!$D$23) -> 64304.95313 | P66: 54 | Q66: =IF($K$10="INCLUIDO",FACTORES!$C57*FACTORES!$AD$9+CDENT+CEE+VIS+ASIS+EDXA20100+(FACTORES!$C57*FACTORES!$AD$9*CTE)+ENFGR,FACTORES!$C57*FACTORES!$AD$9+CDENT+CEE+VIS+ASIS+EDXA20100+ENFGR) -> 52452.47124 | R66: =IF($K$10="INCLUIDO",FACTORES!$D57*FACTORES!$AD$9+CDENT+CEE+VIS+ASIS+EDXA20100+(FACTORES!$D57*FACTORES!$AD$9*CTE)+ENFGR,FACTORES!$D57*FACTORES!$AD$9+CDENT+CEE+VIS+ASIS+EDXA20100+ENFGR) -> 55435.30443 | T66: 54 | U66: =IF($K$10="INCLUIDO",FACTORES!$C57*FACTORES!$AD$9+CDENT+CEE+VIS+ASIS+EDXA20100+(FACTORES!$C57*FACTORES!$AD$9*CTE)+ENFGR,FACTORES!$C57*FACTORES!$AD$9+CDENT+CEE+VIS+ASIS+EDXA20100+ENFGR) -> 52452.47124 | V66: =IF($K$10="INCLUIDO",FACTORES!$D57*FACTORES!$AD$9+CDENT+CEE+VIS+ASIS+EDXA20100+(FACTORES!$D57*FACTORES!$AD$9*CTE)+ENFGR,FACTORES!$D57*FACTORES!$AD$9+CDENT+CEE+VIS+ASIS+EDXA20100+ENFGR) -> 55435.30443 | AO66: 1
B67: 55 | C67: =(Q67+DER)*(1+COTIZACION!$D$23) -> 65260.09227 | D67: =(R67+DER)*(1+COTIZACION!$D$23) -> 68311.97882 | F67: 55 | G67: =U67*(1+COTIZACION!$D$23) -> 64332.09227 | H67: =V67*(1+COTIZACION!$D$23) -> 67383.97882 | P67: 55 | Q67: =IF($K$10="INCLUIDO",FACTORES!$C58*FACTORES!$AD$9+CDENT+CEE+VIS+ASIS+EDXA20100+(FACTORES!$C58*FACTORES!$AD$9*CTE)+ENFGR,FACTORES!$C58*FACTORES!$AD$9+CDENT+CEE+VIS+ASIS+EDXA20100+ENFGR) -> 55458.70023 | R67: =IF($K$10="INCLUIDO",FACTORES!$D58*FACTORES!$AD$9+CDENT+CEE+VIS+ASIS+EDXA20100+(FACTORES!$D58*FACTORES!$AD$9*CTE)+ENFGR,FACTORES!$D58*FACTORES!$AD$9+CDENT+CEE+VIS+ASIS+EDXA20100+ENFGR) -> 58089.63691 | T67: 55 | U67: =IF($K$10="INCLUIDO",FACTORES!$C58*FACTORES!$AD$9+CDENT+CEE+VIS+ASIS+EDXA20100+(FACTORES!$C58*FACTORES!$AD$9*CTE)+ENFGR,FACTORES!$C58*FACTORES!$AD$9+CDENT+CEE+VIS+ASIS+EDXA20100+ENFGR) -> 55458.70023 | V67: =IF($K$10="INCLUIDO",FACTORES!$D58*FACTORES!$AD$9+CDENT+CEE+VIS+ASIS+EDXA20100+(FACTORES!$D58*FACTORES!$AD$9*CTE)+ENFGR,FACTORES!$D58*FACTORES!$AD$9+CDENT+CEE+VIS+ASIS+EDXA20100+ENFGR) -> 58089.63691 | AO67: 1
B68: 56 | C68: =(Q68+DER)*(1+COTIZACION!$D$23) -> 68956.55143 | D68: =(R68+DER)*(1+COTIZACION!$D$23) -> 71544.95578 | F68: 56 | G68: =U68*(1+COTIZACION!$D$23) -> 68028.55143 | H68: =V68*(1+COTIZACION!$D$23) -> 70616.95578 | P68: 56 | Q68: =IF($K$10="INCLUIDO",FACTORES!$C59*FACTORES!$AD$9+CDENT+CEE+VIS+ASIS+EDXA20100+(FACTORES!$C59*FACTORES!$AD$9*CTE)+ENFGR,FACTORES!$C59*FACTORES!$AD$9+CDENT+CEE+VIS+ASIS+EDXA20100+ENFGR) -> 58645.30296 | R68: =IF($K$10="INCLUIDO",FACTORES!$D59*FACTORES!$AD$9+CDENT+CEE+VIS+ASIS+EDXA20100+(FACTORES!$D59*FACTORES!$AD$9*CTE)+ENFGR,FACTORES!$D59*FACTORES!$AD$9+CDENT+CEE+VIS+ASIS+EDXA20100+ENFGR) -> 60876.68602 | T68: 56 | U68: =IF($K$10="INCLUIDO",FACTORES!$C59*FACTORES!$AD$9+CDENT+CEE+VIS+ASIS+EDXA20100+(FACTORES!$C59*FACTORES!$AD$9*CTE)+ENFGR,FACTORES!$C59*FACTORES!$AD$9+CDENT+CEE+VIS+ASIS+EDXA20100+ENFGR) -> 58645.30296 | V68: =IF($K$10="INCLUIDO",FACTORES!$D59*FACTORES!$AD$9+CDENT+CEE+VIS+ASIS+EDXA20100+(FACTORES!$D59*FACTORES!$AD$9*CTE)+ENFGR,FACTORES!$D59*FACTORES!$AD$9+CDENT+CEE+VIS+ASIS+EDXA20100+ENFGR) -> 60876.68602 | AO68: 1
B69: 57 | C69: =(Q69+DER)*(1+COTIZACION!$D$23) -> 72874.79815 | D69: =(R69+DER)*(1+COTIZACION!$D$23) -> 74939.5816 | F69: 57 | G69: =U69*(1+COTIZACION!$D$23) -> 71946.79815 | H69: =V69*(1+COTIZACION!$D$23) -> 74011.5816 | P69: 57 | Q69: =IF($K$10="INCLUIDO",FACTORES!$C60*FACTORES!$AD$9+CDENT+CEE+VIS+ASIS+EDXA20100+(FACTORES!$C60*FACTORES!$AD$9*CTE)+ENFGR,FACTORES!$C60*FACTORES!$AD$9+CDENT+CEE+VIS+ASIS+EDXA20100+ENFGR) -> 62023.10185 | R69: =IF($K$10="INCLUIDO",FACTORES!$D60*FACTORES!$AD$9+CDENT+CEE+VIS+ASIS+EDXA20100+(FACTORES!$D60*FACTORES!$AD$9*CTE)+ENFGR,FACTORES!$D60*FACTORES!$AD$9+CDENT+CEE+VIS+ASIS+EDXA20100+ENFGR) -> 63803.08758 | T69: 57 | U69: =IF($K$10="INCLUIDO",FACTORES!$C60*FACTORES!$AD$9+CDENT+CEE+VIS+ASIS+EDXA20100+(FACTORES!$C60*FACTORES!$AD$9*CTE)+ENFGR,FACTORES!$C60*FACTORES!$AD$9+CDENT+CEE+VIS+ASIS+EDXA20100+ENFGR) -> 62023.10185 | V69: =IF($K$10="INCLUIDO",FACTORES!$D60*FACTORES!$AD$9+CDENT+CEE+VIS+ASIS+EDXA20100+(FACTORES!$D60*FACTORES!$AD$9*CTE)+ENFGR,FACTORES!$D60*FACTORES!$AD$9+CDENT+CEE+VIS+ASIS+EDXA20100+ENFGR) -> 63803.08758 | AO69: 1
B70: 58 | C70: =(Q70+DER)*(1+COTIZACION!$D$23) -> 76335.91609 | D70: =(R70+DER)*(1+COTIZACION!$D$23) -> 78503.9387 | F70: 58 | G70: =U70*(1+COTIZACION!$D$23) -> 75407.91609 | H70: =V70*(1+COTIZACION!$D$23) -> 77575.9387 | P70: 58 | Q70: =IF($K$10="INCLUIDO",FACTORES!$C61*FACTORES!$AD$9+CDENT+CEE+VIS+ASIS+EDXA20100+(FACTORES!$C61*FACTORES!$AD$9*CTE)+ENFGR,FACTORES!$C61*FACTORES!$AD$9+CDENT+CEE+VIS+ASIS+EDXA20100+ENFGR) -> 65006.82421 | R70: =IF($K$10="INCLUIDO",FACTORES!$D61*FACTORES!$AD$9+CDENT+CEE+VIS+ASIS+EDXA20100+(FACTORES!$D61*FACTORES!$AD$9*CTE)+ENFGR,FACTORES!$D61*FACTORES!$AD$9+CDENT+CEE+VIS+ASIS+EDXA20100+ENFGR) -> 66875.80923 | T70: 58 | U70: =IF($K$10="INCLUIDO",FACTORES!$C61*FACTORES!$AD$9+CDENT+CEE+VIS+ASIS+EDXA20100+(FACTORES!$C61*FACTORES!$AD$9*CTE)+ENFGR,FACTORES!$C61*FACTORES!$AD$9+CDENT+CEE+VIS+ASIS+EDXA20100+ENFGR) -> 65006.82421 | V70: =IF($K$10="INCLUIDO",FACTORES!$D61*FACTORES!$AD$9+CDENT+CEE+VIS+ASIS+EDXA20100+(FACTORES!$D61*FACTORES!$AD$9*CTE)+ENFGR,FACTORES!$D61*FACTORES!$AD$9+CDENT+CEE+VIS+ASIS+EDXA20100+ENFGR) -> 66875.80923 | AO70: 1
B71: 59 | C71: =(Q71+DER)*(1+COTIZACION!$D$23) -> 80696.92468 | D71: =(R71+DER)*(1+COTIZACION!$D$23) -> 82246.51366 | F71: 59 | G71: =U71*(1+COTIZACION!$D$23) -> 79768.92468 | H71: =V71*(1+COTIZACION!$D$23) -> 81318.51366 | P71: 59 | Q71: =IF($K$10="INCLUIDO",FACTORES!$C62*FACTORES!$AD$9+CDENT+CEE+VIS+ASIS+EDXA20100+(FACTORES!$C62*FACTORES!$AD$9*CTE)+ENFGR,FACTORES!$C62*FACTORES!$AD$9+CDENT+CEE+VIS+ASIS+EDXA20100+ENFGR) -> 68766.31438 | R71: =IF($K$10="INCLUIDO",FACTORES!$D62*FACTORES!$AD$9+CDENT+CEE+VIS+ASIS+EDXA20100+(FACTORES!$D62*FACTORES!$AD$9*CTE)+ENFGR,FACTORES!$D62*FACTORES!$AD$9+CDENT+CEE+VIS+ASIS+EDXA20100+ENFGR) -> 70102.16695 | T71: 59 | U71: =IF($K$10="INCLUIDO",FACTORES!$C62*FACTORES!$AD$9+CDENT+CEE+VIS+ASIS+EDXA20100+(FACTORES!$C62*FACTORES!$AD$9*CTE)+ENFGR,FACTORES!$C62*FACTORES!$AD$9+CDENT+CEE+VIS+ASIS+EDXA20100+ENFGR) -> 68766.31438 | V71: =IF($K$10="INCLUIDO",FACTORES!$D62*FACTORES!$AD$9+CDENT+CEE+VIS+ASIS+EDXA20100+(FACTORES!$D62*FACTORES!$AD$9*CTE)+ENFGR,FACTORES!$D62*FACTORES!$AD$9+CDENT+CEE+VIS+ASIS+EDXA20100+ENFGR) -> 70102.16695 | AO71: 1
B72: 60 | C72: =(Q72+DER)*(1+COTIZACION!$D$23) -> 86995.3372 | D72: =(R72+DER)*(1+COTIZACION!$D$23) -> 88445.54232 | F72: 60 | G72: =U72*(1+COTIZACION!$D$23) -> 86067.3372 | H72: =V72*(1+COTIZACION!$D$23) -> 87517.54232 | P72: 60 | Q72: =IF($K$10="INCLUIDO",FACTORES!$C63*FACTORES!$AD$9+CDENT+CEE+VIS+ASIS+EDXA20100+(FACTORES!$C63*FACTORES!$AD$9*CTE),FACTORES!$C63*FACTORES!$AD$9+CDENT+CEE+VIS+ASIS+EDXA20100) -> 74195.98035 | R72: =IF($K$10="INCLUIDO",FACTORES!$D63*FACTORES!$AD$9+CDENT+CEE+VIS+ASIS+EDXA20100+(FACTORES!$D63*FACTORES!$AD$9*CTE),FACTORES!$D63*FACTORES!$AD$9+CDENT+CEE+VIS+ASIS+EDXA20100) -> 75446.15717 | T72: 60 | U72: =IF($K$10="INCLUIDO",FACTORES!$C63*FACTORES!$AD$9+CDENT+CEE+VIS+ASIS+EDXA20100+(FACTORES!$C63*FACTORES!$AD$9*CTE),FACTORES!$C63*FACTORES!$AD$9+CDENT+CEE+VIS+ASIS+EDXA20100) -> 74195.98035 | V72: =IF($K$10="INCLUIDO",FACTORES!$D63*FACTORES!$AD$9+CDENT+CEE+VIS+ASIS+EDXA20100+(FACTORES!$D63*FACTORES!$AD$9*CTE),FACTORES!$D63*FACTORES!$AD$9+CDENT+CEE+VIS+ASIS+EDXA20100) -> 75446.15717 | AO72: 1
B73: 61 | C73: =(Q73+DER)*(1+COTIZACION!$D$23) -> 91995.91106 | D73: =(R73+DER)*(1+COTIZACION!$D$23) -> 94805.02503 | F73: 61 | G73: =U73*(1+COTIZACION!$D$23) -> 91067.91106 | H73: =V73*(1+COTIZACION!$D$23) -> 93877.02503 | P73: 61 | Q73: =IF($K$10="INCLUIDO",FACTORES!$C64*FACTORES!$AD$9+CDENT+CEE+VIS+ASIS+EDXA20100+(FACTORES!$C64*FACTORES!$AD$9*CTE),FACTORES!$C64*FACTORES!$AD$9+CDENT+CEE+VIS+ASIS+EDXA20100) -> 78506.81988 | R73: =IF($K$10="INCLUIDO",FACTORES!$D64*FACTORES!$AD$9+CDENT+CEE+VIS+ASIS+EDXA20100+(FACTORES!$D64*FACTORES!$AD$9*CTE),FACTORES!$D64*FACTORES!$AD$9+CDENT+CEE+VIS+ASIS+EDXA20100) -> 80928.46985 | T73: 61 | U73: =IF($K$10="INCLUIDO",FACTORES!$C64*FACTORES!$AD$9+CDENT+CEE+VIS+ASIS+EDXA20100+(FACTORES!$C64*FACTORES!$AD$9*CTE),FACTORES!$C64*FACTORES!$AD$9+CDENT+CEE+VIS+ASIS+EDXA20100) -> 78506.81988 | V73: =IF($K$10="INCLUIDO",FACTORES!$D64*FACTORES!$AD$9+CDENT+CEE+VIS+ASIS+EDXA20100+(FACTORES!$D64*FACTORES!$AD$9*CTE),FACTORES!$D64*FACTORES!$AD$9+CDENT+CEE+VIS+ASIS+EDXA20100) -> 80928.46985 | AO73: 1
B74: 62 | C74: =(Q74+DER)*(1+COTIZACION!$D$23) -> 97296.51936 | D74: =(R74+DER)*(1+COTIZACION!$D$23) -> 101641.4689 | F74: 62 | G74: =U74*(1+COTIZACION!$D$23) -> 96368.51936 | H74: =V74*(1+COTIZACION!$D$23) -> 100713.4689 | P74: 62 | Q74: =IF($K$10="INCLUIDO",FACTORES!$C65*FACTORES!$AD$9+CDENT+CEE+VIS+ASIS+EDXA20100+(FACTORES!$C65*FACTORES!$AD$9*CTE),FACTORES!$C65*FACTORES!$AD$9+CDENT+CEE+VIS+ASIS+EDXA20100) -> 83076.30979 | R74: =IF($K$10="INCLUIDO",FACTORES!$D65*FACTORES!$AD$9+CDENT+CEE+VIS+ASIS+EDXA20100+(FACTORES!$D65*FACTORES!$AD$9*CTE),FACTORES!$D65*FACTORES!$AD$9+CDENT+CEE+VIS+ASIS+EDXA20100) -> 86821.95599 | T74: 62 | U74: =IF($K$10="INCLUIDO",FACTORES!$C65*FACTORES!$AD$9+CDENT+CEE+VIS+ASIS+EDXA20100+(FACTORES!$C65*FACTORES!$AD$9*CTE),FACTORES!$C65*FACTORES!$AD$9+CDENT+CEE+VIS+ASIS+EDXA20100) -> 83076.30979 | V74: =IF($K$10="INCLUIDO",FACTORES!$D65*FACTORES!$AD$9+CDENT+CEE+VIS+ASIS+EDXA20100+(FACTORES!$D65*FACTORES!$AD$9*CTE),FACTORES!$D65*FACTORES!$AD$9+CDENT+CEE+VIS+ASIS+EDXA20100) -> 86821.95599 | AO74: 1
B75: 63 | C75: =(Q75+DER)*(1+COTIZACION!$D$23) -> 102915.1642 | D75: =(R75+DER)*(1+COTIZACION!$D$23) -> 108990.6462 | F75: 63 | G75: =U75*(1+COTIZACION!$D$23) -> 101987.1642 | H75: =V75*(1+COTIZACION!$D$23) -> 108062.6462 | P75: 63 | Q75: =IF($K$10="INCLUIDO",FACTORES!$C66*FACTORES!$AD$9+CDENT+CEE+VIS+ASIS+EDXA20100+(FACTORES!$C66*FACTORES!$AD$9*CTE),FACTORES!$C66*FACTORES!$AD$9+CDENT+CEE+VIS+ASIS+EDXA20100) -> 87919.9691 | R75: =IF($K$10="INCLUIDO",FACTORES!$D66*FACTORES!$AD$9+CDENT+CEE+VIS+ASIS+EDXA20100+(FACTORES!$D66*FACTORES!$AD$9*CTE),FACTORES!$D66*FACTORES!$AD$9+CDENT+CEE+VIS+ASIS+EDXA20100) -> 93157.45358 | T75: 63 | U75: =IF($K$10="INCLUIDO",FACTORES!$C66*FACTORES!$AD$9+CDENT+CEE+VIS+ASIS+EDXA20100+(FACTORES!$C66*FACTORES!$AD$9*CTE),FACTORES!$C66*FACTORES!$AD$9+CDENT+CEE+VIS+ASIS+EDXA20100) -> 87919.9691 | V75: =IF($K$10="INCLUIDO",FACTORES!$D66*FACTORES!$AD$9+CDENT+CEE+VIS+ASIS+EDXA20100+(FACTORES!$D66*FACTORES!$AD$9*CTE),FACTORES!$D66*FACTORES!$AD$9+CDENT+CEE+VIS+ASIS+EDXA20100) -> 93157.45358 | AO75: 1
B76: 64 | C76: =(Q76+DER)*(1+COTIZACION!$D$23) -> 108870.9276 | D76: =(R76+DER)*(1+COTIZACION!$D$23) -> 116891.0117 | F76: 64 | G76: =U76*(1+COTIZACION!$D$23) -> 107942.9276 | H76: =V76*(1+COTIZACION!$D$23) -> 115963.0117 | P76: 64 | Q76: =IF($K$10="INCLUIDO",FACTORES!$C67*FACTORES!$AD$9+CDENT+CEE+VIS+ASIS+EDXA20100+(FACTORES!$C67*FACTORES!$AD$9*CTE),FACTORES!$C67*FACTORES!$AD$9+CDENT+CEE+VIS+ASIS+EDXA20100) -> 93054.24796 | R76: =IF($K$10="INCLUIDO",FACTORES!$D67*FACTORES!$AD$9+CDENT+CEE+VIS+ASIS+EDXA20100+(FACTORES!$D67*FACTORES!$AD$9*CTE),FACTORES!$D67*FACTORES!$AD$9+CDENT+CEE+VIS+ASIS+EDXA20100) -> 99968.1135 | T76: 64 | U76: =IF($K$10="INCLUIDO",FACTORES!$C67*FACTORES!$AD$9+CDENT+CEE+VIS+ASIS+EDXA20100+(FACTORES!$C67*FACTORES!$AD$9*CTE),FACTORES!$C67*FACTORES!$AD$9+CDENT+CEE+VIS+ASIS+EDXA20100) -> 93054.24796 | V76: =IF($K$10="INCLUIDO",FACTORES!$D67*FACTORES!$AD$9+CDENT+CEE+VIS+ASIS+EDXA20100+(FACTORES!$D67*FACTORES!$AD$9*CTE),FACTORES!$D67*FACTORES!$AD$9+CDENT+CEE+VIS+ASIS+EDXA20100) -> 99968.1135 | AO76: 1
B77: 65 | C77: =(Q77+DER)*(1+COTIZACION!$D$23) -> 115184.0369 | D77: =(R77+DER)*(1+COTIZACION!$D$23) -> 125383.9046 | F77: 65 | G77: =U77*(1+COTIZACION!$D$23) -> 114256.0369 | H77: =V77*(1+COTIZACION!$D$23) -> 124455.9046 | P77: 65 | Q77: =IF($K$10="INCLUIDO",FACTORES!$C68*FACTORES!$AD$9+CDENT+CEE+VIS+ASIS+EDXA20100+(FACTORES!$C68*FACTORES!$AD$9*CTE),FACTORES!$C68*FACTORES!$AD$9+CDENT+CEE+VIS+ASIS+EDXA20100) -> 98496.58355 | R77: =IF($K$10="INCLUIDO",FACTORES!$D68*FACTORES!$AD$9+CDENT+CEE+VIS+ASIS+EDXA20100+(FACTORES!$D68*FACTORES!$AD$9*CTE),FACTORES!$D68*FACTORES!$AD$9+CDENT+CEE+VIS+ASIS+EDXA20100) -> 107289.5729 | T77: 65 | U77: =IF($K$10="INCLUIDO",FACTORES!$C68*FACTORES!$AD$9+CDENT+CEE+VIS+ASIS+EDXA20100+(FACTORES!$C68*FACTORES!$AD$9*CTE),FACTORES!$C68*FACTORES!$AD$9+CDENT+CEE+VIS+ASIS+EDXA20100) -> 98496.58355 | V77: =IF($K$10="INCLUIDO",FACTORES!$D68*FACTORES!$AD$9+CDENT+CEE+VIS+ASIS+EDXA20100+(FACTORES!$D68*FACTORES!$AD$9*CTE),FACTORES!$D68*FACTORES!$AD$9+CDENT+CEE+VIS+ASIS+EDXA20100) -> 107289.5729
B78: 66 | C78: =(Q78+DER)*(1+COTIZACION!$D$23) -> 121875.9328 | D78: =(R78+DER)*(1+COTIZACION!$D$23) -> 132687.7925 | F78: 66 | G78: =U78*(1+COTIZACION!$D$23) -> 120947.9328 | H78: =V78*(1+COTIZACION!$D$23) -> 131759.7925 | P78: 66 | Q78: =IF($K$10="INCLUIDO",FACTORES!$C69*FACTORES!$AD$9+CDENT+CEE+VIS+ASIS+EDXA20100+(FACTORES!$C69*FACTORES!$AD$9*CTE),FACTORES!$C69*FACTORES!$AD$9+CDENT+CEE+VIS+ASIS+EDXA20100) -> 104265.4593 | R78: =IF($K$10="INCLUIDO",FACTORES!$D69*FACTORES!$AD$9+CDENT+CEE+VIS+ASIS+EDXA20100+(FACTORES!$D69*FACTORES!$AD$9*CTE),FACTORES!$D69*FACTORES!$AD$9+CDENT+CEE+VIS+ASIS+EDXA20100) -> 113586.028 | T78: 66 | U78: =IF($K$10="INCLUIDO",FACTORES!$C69*FACTORES!$AD$9+CDENT+CEE+VIS+ASIS+EDXA20100+(FACTORES!$C69*FACTORES!$AD$9*CTE),FACTORES!$C69*FACTORES!$AD$9+CDENT+CEE+VIS+ASIS+EDXA20100) -> 104265.4593 | V78: =IF($K$10="INCLUIDO",FACTORES!$D69*FACTORES!$AD$9+CDENT+CEE+VIS+ASIS+EDXA20100+(FACTORES!$D69*FACTORES!$AD$9*CTE),FACTORES!$D69*FACTORES!$AD$9+CDENT+CEE+VIS+ASIS+EDXA20100) -> 113586.028
B79: 67 | C79: =(Q79+DER)*(1+COTIZACION!$D$23) -> 128969.3424 | D79: =(R79+DER)*(1+COTIZACION!$D$23) -> 140429.9137 | F79: 67 | G79: =U79*(1+COTIZACION!$D$23) -> 128041.3424 | H79: =V79*(1+COTIZACION!$D$23) -> 139501.9137 | P79: 67 | Q79: =IF($K$10="INCLUIDO",FACTORES!$C70*FACTORES!$AD$9+CDENT+CEE+VIS+ASIS+EDXA20100+(FACTORES!$C70*FACTORES!$AD$9*CTE),FACTORES!$C70*FACTORES!$AD$9+CDENT+CEE+VIS+ASIS+EDXA20100) -> 110380.4676 | R79: =IF($K$10="INCLUIDO",FACTORES!$D70*FACTORES!$AD$9+CDENT+CEE+VIS+ASIS+EDXA20100+(FACTORES!$D70*FACTORES!$AD$9*CTE),FACTORES!$D70*FACTORES!$AD$9+CDENT+CEE+VIS+ASIS+EDXA20100) -> 120260.2704 | T79: 67 | U79: =IF($K$10="INCLUIDO",FACTORES!$C70*FACTORES!$AD$9+CDENT+CEE+VIS+ASIS+EDXA20100+(FACTORES!$C70*FACTORES!$AD$9*CTE),FACTORES!$C70*FACTORES!$AD$9+CDENT+CEE+VIS+ASIS+EDXA20100) -> 110380.4676 | V79: =IF($K$10="INCLUIDO",FACTORES!$D70*FACTORES!$AD$9+CDENT+CEE+VIS+ASIS+EDXA20100+(FACTORES!$D70*FACTORES!$AD$9*CTE),FACTORES!$D70*FACTORES!$AD$9+CDENT+CEE+VIS+ASIS+EDXA20100) -> 120260.2704
B80: 68 | C80: =(Q80+DER)*(1+COTIZACION!$D$23) -> 136488.3565 | D80: =(R80+DER)*(1+COTIZACION!$D$23) -> 148636.5621 | F80: 68 | G80: =U80*(1+COTIZACION!$D$23) -> 135560.3565 | H80: =V80*(1+COTIZACION!$D$23) -> 147708.5621 | P80: 68 | Q80: =IF($K$10="INCLUIDO",FACTORES!$C71*FACTORES!$AD$9+CDENT+CEE+VIS+ASIS+EDXA20100+(FACTORES!$C71*FACTORES!$AD$9*CTE),FACTORES!$C71*FACTORES!$AD$9+CDENT+CEE+VIS+ASIS+EDXA20100) -> 116862.3763 | R80: =IF($K$10="INCLUIDO",FACTORES!$D71*FACTORES!$AD$9+CDENT+CEE+VIS+ASIS+EDXA20100+(FACTORES!$D71*FACTORES!$AD$9*CTE),FACTORES!$D71*FACTORES!$AD$9+CDENT+CEE+VIS+ASIS+EDXA20100) -> 127334.9673 | T80: 68 | U80: =IF($K$10="INCLUIDO",FACTORES!$C71*FACTORES!$AD$9+CDENT+CEE+VIS+ASIS+EDXA20100+(FACTORES!$C71*FACTORES!$AD$9*CTE),FACTORES!$C71*FACTORES!$AD$9+CDENT+CEE+VIS+ASIS+EDXA20100) -> 116862.3763 | V80: =IF($K$10="INCLUIDO",FACTORES!$D71*FACTORES!$AD$9+CDENT+CEE+VIS+ASIS+EDXA20100+(FACTORES!$D71*FACTORES!$AD$9*CTE),FACTORES!$D71*FACTORES!$AD$9+CDENT+CEE+VIS+ASIS+EDXA20100) -> 127334.9673
B81: 69 | C81: =(Q81+DER)*(1+COTIZACION!$D$23) -> 144458.5116 | D81: =(R81+DER)*(1+COTIZACION!$D$23) -> 157335.6095 | F81: 69 | G81: =U81*(1+COTIZACION!$D$23) -> 143530.5116 | H81: =V81*(1+COTIZACION!$D$23) -> 156407.6095 | P81: 69 | Q81: =IF($K$10="INCLUIDO",FACTORES!$C72*FACTORES!$AD$9+CDENT+CEE+VIS+ASIS+EDXA20100+(FACTORES!$C72*FACTORES!$AD$9*CTE),FACTORES!$C72*FACTORES!$AD$9+CDENT+CEE+VIS+ASIS+EDXA20100) -> 123733.1996 | R81: =IF($K$10="INCLUIDO",FACTORES!$D72*FACTORES!$AD$9+CDENT+CEE+VIS+ASIS+EDXA20100+(FACTORES!$D72*FACTORES!$AD$9*CTE),FACTORES!$D72*FACTORES!$AD$9+CDENT+CEE+VIS+ASIS+EDXA20100) -> 134834.1461 | T81: 69 | U81: =IF($K$10="INCLUIDO",FACTORES!$C72*FACTORES!$AD$9+CDENT+CEE+VIS+ASIS+EDXA20100+(FACTORES!$C72*FACTORES!$AD$9*CTE),FACTORES!$C72*FACTORES!$AD$9+CDENT+CEE+VIS+ASIS+EDXA20100) -> 123733.1996 | V81: =IF($K$10="INCLUIDO",FACTORES!$D72*FACTORES!$AD$9+CDENT+CEE+VIS+ASIS+EDXA20100+(FACTORES!$D72*FACTORES!$AD$9*CTE),FACTORES!$D72*FACTORES!$AD$9+CDENT+CEE+VIS+ASIS+EDXA20100) -> 134834.1461
B82: 70 | C82: =(Q82+DER)*(1+COTIZACION!$D$23) -> 152906.8759 | D82: =(R82+DER)*(1+COTIZACION!$D$23) -> 166556.5997 | F82: 70 | G82: =U82*(1+COTIZACION!$D$23) -> 151978.8759 | H82: =V82*(1+COTIZACION!$D$23) -> 165628.5997 | P82: 70 | Q82: =IF($K$10="INCLUIDO",FACTORES!$C73*FACTORES!$AD$9+CDENT+CEE+VIS+ASIS+EDXA20100+(FACTORES!$C73*FACTORES!$AD$9*CTE),FACTORES!$C73*FACTORES!$AD$9+CDENT+CEE+VIS+ASIS+EDXA20100) -> 131016.2723 | R82: =IF($K$10="INCLUIDO",FACTORES!$D73*FACTORES!$AD$9+CDENT+CEE+VIS+ASIS+EDXA20100+(FACTORES!$D73*FACTORES!$AD$9*CTE),FACTORES!$D73*FACTORES!$AD$9+CDENT+CEE+VIS+ASIS+EDXA20100) -> 142783.2756 | T82: 70 | U82: =IF($K$10="INCLUIDO",FACTORES!$C73*FACTORES!$AD$9+CDENT+CEE+VIS+ASIS+EDXA20100+(FACTORES!$C73*FACTORES!$AD$9*CTE),FACTORES!$C73*FACTORES!$AD$9+CDENT+CEE+VIS+ASIS+EDXA20100) -> 131016.2723 | V82: =IF($K$10="INCLUIDO",FACTORES!$D73*FACTORES!$AD$9+CDENT+CEE+VIS+ASIS+EDXA20100+(FACTORES!$D73*FACTORES!$AD$9*CTE),FACTORES!$D73*FACTORES!$AD$9+CDENT+CEE+VIS+ASIS+EDXA20100) -> 142783.2756
B83: 71 | C83: =(Q83+DER)*(1+COTIZACION!$D$23) -> 161862.1421 | D83: =(R83+DER)*(1+COTIZACION!$D$23) -> 176330.8493 | F83: 71 | G83: =U83*(1+COTIZACION!$D$23) -> 160934.1421 | H83: =V83*(1+COTIZACION!$D$23) -> 175402.8493 | P83: 71 | Q83: =IF($K$10="INCLUIDO",FACTORES!$C74*FACTORES!$AD$9+CDENT+CEE+VIS+ASIS+EDXA20100+(FACTORES!$C74*FACTORES!$AD$9*CTE),FACTORES!$C74*FACTORES!$AD$9+CDENT+CEE+VIS+ASIS+EDXA20100) -> 138736.3294 | R83: =IF($K$10="INCLUIDO",FACTORES!$D74*FACTORES!$AD$9+CDENT+CEE+VIS+ASIS+EDXA20100+(FACTORES!$D74*FACTORES!$AD$9*CTE),FACTORES!$D74*FACTORES!$AD$9+CDENT+CEE+VIS+ASIS+EDXA20100) -> 151209.3528 | T83: 71 | U83: =IF($K$10="INCLUIDO",FACTORES!$C74*FACTORES!$AD$9+CDENT+CEE+VIS+ASIS+EDXA20100+(FACTORES!$C74*FACTORES!$AD$9*CTE),FACTORES!$C74*FACTORES!$AD$9+CDENT+CEE+VIS+ASIS+EDXA20100) -> 138736.3294 | V83: =IF($K$10="INCLUIDO",FACTORES!$D74*FACTORES!$AD$9+CDENT+CEE+VIS+ASIS+EDXA20100+(FACTORES!$D74*FACTORES!$AD$9*CTE),FACTORES!$D74*FACTORES!$AD$9+CDENT+CEE+VIS+ASIS+EDXA20100) -> 151209.3528
B84: 72 | C84: =(Q84+DER)*(1+COTIZACION!$D$23) -> 171354.7242 | D84: =(R84+DER)*(1+COTIZACION!$D$23) -> 186691.5539 | F84: 72 | G84: =U84*(1+COTIZACION!$D$23) -> 170426.7242 | H84: =V84*(1+COTIZACION!$D$23) -> 185763.5539 | P84: 72 | Q84: =IF($K$10="INCLUIDO",FACTORES!$C75*FACTORES!$AD$9+CDENT+CEE+VIS+ASIS+EDXA20100+(FACTORES!$C75*FACTORES!$AD$9*CTE),FACTORES!$C75*FACTORES!$AD$9+CDENT+CEE+VIS+ASIS+EDXA20100) -> 146919.5898 | R84: =IF($K$10="INCLUIDO",FACTORES!$D75*FACTORES!$AD$9+CDENT+CEE+VIS+ASIS+EDXA20100+(FACTORES!$D75*FACTORES!$AD$9*CTE),FACTORES!$D75*FACTORES!$AD$9+CDENT+CEE+VIS+ASIS+EDXA20100) -> 160140.9947 | T84: 72 | U84: =IF($K$10="INCLUIDO",FACTORES!$C75*FACTORES!$AD$9+CDENT+CEE+VIS+ASIS+EDXA20100+(FACTORES!$C75*FACTORES!$AD$9*CTE),FACTORES!$C75*FACTORES!$AD$9+CDENT+CEE+VIS+ASIS+EDXA20100) -> 146919.5898 | V84: =IF($K$10="INCLUIDO",FACTORES!$D75*FACTORES!$AD$9+CDENT+CEE+VIS+ASIS+EDXA20100+(FACTORES!$D75*FACTORES!$AD$9*CTE),FACTORES!$D75*FACTORES!$AD$9+CDENT+CEE+VIS+ASIS+EDXA20100) -> 160140.9947
B85: 73 | C85: =(Q85+DER)*(1+COTIZACION!$D$23) -> 181416.8613 | D85: =(R85+DER)*(1+COTIZACION!$D$23) -> 197673.9007 | F85: 73 | G85: =U85*(1+COTIZACION!$D$23) -> 180488.8613 | H85: =V85*(1+COTIZACION!$D$23) -> 196745.9007 | P85: 73 | Q85: =IF($K$10="INCLUIDO",FACTORES!$C76*FACTORES!$AD$9+CDENT+CEE+VIS+ASIS+EDXA20100+(FACTORES!$C76*FACTORES!$AD$9*CTE),FACTORES!$C76*FACTORES!$AD$9+CDENT+CEE+VIS+ASIS+EDXA20100) -> 155593.846 | R85: =IF($K$10="INCLUIDO",FACTORES!$D76*FACTORES!$AD$9+CDENT+CEE+VIS+ASIS+EDXA20100+(FACTORES!$D76*FACTORES!$AD$9*CTE),FACTORES!$D76*FACTORES!$AD$9+CDENT+CEE+VIS+ASIS+EDXA20100) -> 169608.5351 | T85: 73 | U85: =IF($K$10="INCLUIDO",FACTORES!$C76*FACTORES!$AD$9+CDENT+CEE+VIS+ASIS+EDXA20100+(FACTORES!$C76*FACTORES!$AD$9*CTE),FACTORES!$C76*FACTORES!$AD$9+CDENT+CEE+VIS+ASIS+EDXA20100) -> 155593.846 | V85: =IF($K$10="INCLUIDO",FACTORES!$D76*FACTORES!$AD$9+CDENT+CEE+VIS+ASIS+EDXA20100+(FACTORES!$D76*FACTORES!$AD$9*CTE),FACTORES!$D76*FACTORES!$AD$9+CDENT+CEE+VIS+ASIS+EDXA20100) -> 169608.5351
B86: 74 | C86: =(Q86+DER)*(1+COTIZACION!$D$23) -> 192082.7266 | D86: =(R86+DER)*(1+COTIZACION!$D$23) -> 209315.1884 | F86: 74 | G86: =U86*(1+COTIZACION!$D$23) -> 191154.7266 | H86: =V86*(1+COTIZACION!$D$23) -> 208387.1884 | P86: 74 | Q86: =IF($K$10="INCLUIDO",FACTORES!$C77*FACTORES!$AD$9+CDENT+CEE+VIS+ASIS+EDXA20100+(FACTORES!$C77*FACTORES!$AD$9*CTE),FACTORES!$C77*FACTORES!$AD$9+CDENT+CEE+VIS+ASIS+EDXA20100) -> 164788.5574 | R86: =IF($K$10="INCLUIDO",FACTORES!$D77*FACTORES!$AD$9+CDENT+CEE+VIS+ASIS+EDXA20100+(FACTORES!$D77*FACTORES!$AD$9*CTE),FACTORES!$D77*FACTORES!$AD$9+CDENT+CEE+VIS+ASIS+EDXA20100) -> 179644.1279 | T86: 74 | U86: =IF($K$10="INCLUIDO",FACTORES!$C77*FACTORES!$AD$9+CDENT+CEE+VIS+ASIS+EDXA20100+(FACTORES!$C77*FACTORES!$AD$9*CTE),FACTORES!$C77*FACTORES!$AD$9+CDENT+CEE+VIS+ASIS+EDXA20100) -> 164788.5574 | V86: =IF($K$10="INCLUIDO",FACTORES!$D77*FACTORES!$AD$9+CDENT+CEE+VIS+ASIS+EDXA20100+(FACTORES!$D77*FACTORES!$AD$9*CTE),FACTORES!$D77*FACTORES!$AD$9+CDENT+CEE+VIS+ASIS+EDXA20100) -> 179644.1279
B87: 75 | C87: =(Q87+DER)*(1+COTIZACION!$D$23) -> 203388.5438 | D87: =(R87+DER)*(1+COTIZACION!$D$23) -> 221654.9533 | F87: 75 | G87: =U87*(1+COTIZACION!$D$23) -> 202460.5438 | H87: =V87*(1+COTIZACION!$D$23) -> 220726.9533 | P87: 75 | Q87: =IF($K$10="INCLUIDO",FACTORES!$C78*FACTORES!$AD$9+CDENT+CEE+VIS+ASIS+EDXA20100+(FACTORES!$C78*FACTORES!$AD$9*CTE),FACTORES!$C78*FACTORES!$AD$9+CDENT+CEE+VIS+ASIS+EDXA20100) -> 174534.9516 | R87: =IF($K$10="INCLUIDO",FACTORES!$D78*FACTORES!$AD$9+CDENT+CEE+VIS+ASIS+EDXA20100+(FACTORES!$D78*FACTORES!$AD$9*CTE),FACTORES!$D78*FACTORES!$AD$9+CDENT+CEE+VIS+ASIS+EDXA20100) -> 190281.8563 | T87: 75 | U87: =IF($K$10="INCLUIDO",FACTORES!$C78*FACTORES!$AD$9+CDENT+CEE+VIS+ASIS+EDXA20100+(FACTORES!$C78*FACTORES!$AD$9*CTE),FACTORES!$C78*FACTORES!$AD$9+CDENT+CEE+VIS+ASIS+EDXA20100) -> 174534.9516 | V87: =IF($K$10="INCLUIDO",FACTORES!$D78*FACTORES!$AD$9+CDENT+CEE+VIS+ASIS+EDXA20100+(FACTORES!$D78*FACTORES!$AD$9*CTE),FACTORES!$D78*FACTORES!$AD$9+CDENT+CEE+VIS+ASIS+EDXA20100) -> 190281.8563
B88: 76 | C88: =(Q88+DER)*(1+COTIZACION!$D$23) -> 215372.7101 | D88: =(R88+DER)*(1+COTIZACION!$D$23) -> 234735.1042 | F88: 76 | G88: =U88*(1+COTIZACION!$D$23) -> 214444.7101 | H88: =V88*(1+COTIZACION!$D$23) -> 233807.1042 | P88: 76 | Q88: =IF($K$10="INCLUIDO",FACTORES!$C79*FACTORES!$AD$9+CDENT+CEE+VIS+ASIS+EDXA20100+(FACTORES!$C79*FACTORES!$AD$9*CTE),FACTORES!$C79*FACTORES!$AD$9+CDENT+CEE+VIS+ASIS+EDXA20100) -> 184866.1294 | R88: =IF($K$10="INCLUIDO",FACTORES!$D79*FACTORES!$AD$9+CDENT+CEE+VIS+ASIS+EDXA20100+(FACTORES!$D79*FACTORES!$AD$9*CTE),FACTORES!$D79*FACTORES!$AD$9+CDENT+CEE+VIS+ASIS+EDXA20100) -> 201557.8484 | T88: 76 | U88: =IF($K$10="INCLUIDO",FACTORES!$C79*FACTORES!$AD$9+CDENT+CEE+VIS+ASIS+EDXA20100+(FACTORES!$C79*FACTORES!$AD$9*CTE),FACTORES!$C79*FACTORES!$AD$9+CDENT+CEE+VIS+ASIS+EDXA20100) -> 184866.1294 | V88: =IF($K$10="INCLUIDO",FACTORES!$D79*FACTORES!$AD$9+CDENT+CEE+VIS+ASIS+EDXA20100+(FACTORES!$D79*FACTORES!$AD$9*CTE),FACTORES!$D79*FACTORES!$AD$9+CDENT+CEE+VIS+ASIS+EDXA20100) -> 201557.8484
B89: 77 | C89: =(Q89+DER)*(1+COTIZACION!$D$23) -> 228075.9263 | D89: =(R89+DER)*(1+COTIZACION!$D$23) -> 248600.064 | F89: 77 | G89: =U89*(1+COTIZACION!$D$23) -> 227147.9263 | H89: =V89*(1+COTIZACION!$D$23) -> 247672.064 | P89: 77 | Q89: =IF($K$10="INCLUIDO",FACTORES!$C80*FACTORES!$AD$9+CDENT+CEE+VIS+ASIS+EDXA20100+(FACTORES!$C80*FACTORES!$AD$9*CTE),FACTORES!$C80*FACTORES!$AD$9+CDENT+CEE+VIS+ASIS+EDXA20100) -> 195817.1779 | R89: =IF($K$10="INCLUIDO",FACTORES!$D80*FACTORES!$AD$9+CDENT+CEE+VIS+ASIS+EDXA20100+(FACTORES!$D80*FACTORES!$AD$9*CTE),FACTORES!$D80*FACTORES!$AD$9+CDENT+CEE+VIS+ASIS+EDXA20100) -> 213510.4 | T89: 77 | U89: =IF($K$10="INCLUIDO",FACTORES!$C80*FACTORES!$AD$9+CDENT+CEE+VIS+ASIS+EDXA20100+(FACTORES!$C80*FACTORES!$AD$9*CTE),FACTORES!$C80*FACTORES!$AD$9+CDENT+CEE+VIS+ASIS+EDXA20100) -> 195817.1779 | V89: =IF($K$10="INCLUIDO",FACTORES!$D80*FACTORES!$AD$9+CDENT+CEE+VIS+ASIS+EDXA20100+(FACTORES!$D80*FACTORES!$AD$9*CTE),FACTORES!$D80*FACTORES!$AD$9+CDENT+CEE+VIS+ASIS+EDXA20100) -> 213510.4
B90: 78 | C90: =(Q90+DER)*(1+COTIZACION!$D$23) -> 241541.3356 | D90: =(R90+DER)*(1+COTIZACION!$D$23) -> 263296.9215 | F90: 78 | G90: =U90*(1+COTIZACION!$D$23) -> 240613.3356 | H90: =V90*(1+COTIZACION!$D$23) -> 262368.9215 | P90: 78 | Q90: =IF($K$10="INCLUIDO",FACTORES!$C81*FACTORES!$AD$9+CDENT+CEE+VIS+ASIS+EDXA20100+(FACTORES!$C81*FACTORES!$AD$9*CTE),FACTORES!$C81*FACTORES!$AD$9+CDENT+CEE+VIS+ASIS+EDXA20100) -> 207425.2893 | R90: =IF($K$10="INCLUIDO",FACTORES!$D81*FACTORES!$AD$9+CDENT+CEE+VIS+ASIS+EDXA20100+(FACTORES!$D81*FACTORES!$AD$9*CTE),FACTORES!$D81*FACTORES!$AD$9+CDENT+CEE+VIS+ASIS+EDXA20100) -> 226180.1048 | T90: 78 | U90: =IF($K$10="INCLUIDO",FACTORES!$C81*FACTORES!$AD$9+CDENT+CEE+VIS+ASIS+EDXA20100+(FACTORES!$C81*FACTORES!$AD$9*CTE),FACTORES!$C81*FACTORES!$AD$9+CDENT+CEE+VIS+ASIS+EDXA20100) -> 207425.2893 | V90: =IF($K$10="INCLUIDO",FACTORES!$D81*FACTORES!$AD$9+CDENT+CEE+VIS+ASIS+EDXA20100+(FACTORES!$D81*FACTORES!$AD$9*CTE),FACTORES!$D81*FACTORES!$AD$9+CDENT+CEE+VIS+ASIS+EDXA20100) -> 226180.1048
B91: 79 | C91: =(Q91+DER)*(1+COTIZACION!$D$23) -> 255814.6693 | D91: =(R91+DER)*(1+COTIZACION!$D$23) -> 278875.5904 | F91: 79 | G91: =U91*(1+COTIZACION!$D$23) -> 254886.6693 | H91: =V91*(1+COTIZACION!$D$23) -> 277947.5904 | P91: 79 | Q91: =IF($K$10="INCLUIDO",FACTORES!$C82*FACTORES!$AD$9+CDENT+CEE+VIS+ASIS+EDXA20100+(FACTORES!$C82*FACTORES!$AD$9*CTE),FACTORES!$C82*FACTORES!$AD$9+CDENT+CEE+VIS+ASIS+EDXA20100) -> 219729.8873 | R91: =IF($K$10="INCLUIDO",FACTORES!$D82*FACTORES!$AD$9+CDENT+CEE+VIS+ASIS+EDXA20100+(FACTORES!$D82*FACTORES!$AD$9*CTE),FACTORES!$D82*FACTORES!$AD$9+CDENT+CEE+VIS+ASIS+EDXA20100) -> 239609.9918 | T91: 79 | U91: =IF($K$10="INCLUIDO",FACTORES!$C82*FACTORES!$AD$9+CDENT+CEE+VIS+ASIS+EDXA20100+(FACTORES!$C82*FACTORES!$AD$9*CTE),FACTORES!$C82*FACTORES!$AD$9+CDENT+CEE+VIS+ASIS+EDXA20100) -> 219729.8873 | V91: =IF($K$10="INCLUIDO",FACTORES!$D82*FACTORES!$AD$9+CDENT+CEE+VIS+ASIS+EDXA20100+(FACTORES!$D82*FACTORES!$AD$9*CTE),FACTORES!$D82*FACTORES!$AD$9+CDENT+CEE+VIS+ASIS+EDXA20100) -> 239609.9918
B92: 80 | C92: =(Q92+DER)*(1+COTIZACION!$D$23) -> 270944.4031 | D92: =(R92+DER)*(1+COTIZACION!$D$23) -> 295388.9795 | F92: 80 | G92: =U92*(1+COTIZACION!$D$23) -> 270016.4031 | H92: =V92*(1+COTIZACION!$D$23) -> 294460.9795 | P92: 80 | Q92: =IF($K$10="INCLUIDO",FACTORES!$C83*FACTORES!$AD$9+CDENT+CEE+VIS+ASIS+EDXA20100+(FACTORES!$C83*FACTORES!$AD$9*CTE),FACTORES!$C83*FACTORES!$AD$9+CDENT+CEE+VIS+ASIS+EDXA20100) -> 232772.7613 | R92: =IF($K$10="INCLUIDO",FACTORES!$D83*FACTORES!$AD$9+CDENT+CEE+VIS+ASIS+EDXA20100+(FACTORES!$D83*FACTORES!$AD$9*CTE),FACTORES!$D83*FACTORES!$AD$9+CDENT+CEE+VIS+ASIS+EDXA20100) -> 253845.672 | T92: 80 | U92: =IF($K$10="INCLUIDO",FACTORES!$C83*FACTORES!$AD$9+CDENT+CEE+VIS+ASIS+EDXA20100+(FACTORES!$C83*FACTORES!$AD$9*CTE),FACTORES!$C83*FACTORES!$AD$9+CDENT+CEE+VIS+ASIS+EDXA20100) -> 232772.7613 | V92: =IF($K$10="INCLUIDO",FACTORES!$D83*FACTORES!$AD$9+CDENT+CEE+VIS+ASIS+EDXA20100+(FACTORES!$D83*FACTORES!$AD$9*CTE),FACTORES!$D83*FACTORES!$AD$9+CDENT+CEE+VIS+ASIS+EDXA20100) -> 253845.672
B93: 81 | C93: =(Q93+DER)*(1+COTIZACION!$D$23) -> 286981.9209 | D93: =(R93+DER)*(1+COTIZACION!$D$23) -> 312893.1719 | F93: 81 | G93: =U93*(1+COTIZACION!$D$23) -> 286053.9209 | H93: =V93*(1+COTIZACION!$D$23) -> 311965.1719 | P93: 81 | Q93: =IF($K$10="INCLUIDO",FACTORES!$C84*FACTORES!$AD$9+CDENT+CEE+VIS+ASIS+EDXA20100+(FACTORES!$C84*FACTORES!$AD$9*CTE),FACTORES!$C84*FACTORES!$AD$9+CDENT+CEE+VIS+ASIS+EDXA20100) -> 246598.2077 | R93: =IF($K$10="INCLUIDO",FACTORES!$D84*FACTORES!$AD$9+CDENT+CEE+VIS+ASIS+EDXA20100+(FACTORES!$D84*FACTORES!$AD$9*CTE),FACTORES!$D84*FACTORES!$AD$9+CDENT+CEE+VIS+ASIS+EDXA20100) -> 268935.493 | T93: 81 | U93: =IF($K$10="INCLUIDO",FACTORES!$C84*FACTORES!$AD$9+CDENT+CEE+VIS+ASIS+EDXA20100+(FACTORES!$C84*FACTORES!$AD$9*CTE),FACTORES!$C84*FACTORES!$AD$9+CDENT+CEE+VIS+ASIS+EDXA20100) -> 246598.2077 | V93: =IF($K$10="INCLUIDO",FACTORES!$D84*FACTORES!$AD$9+CDENT+CEE+VIS+ASIS+EDXA20100+(FACTORES!$D84*FACTORES!$AD$9*CTE),FACTORES!$D84*FACTORES!$AD$9+CDENT+CEE+VIS+ASIS+EDXA20100) -> 268935.493
B94: 82 | C94: =(Q94+DER)*(1+COTIZACION!$D$23) -> 303981.6898 | D94: =(R94+DER)*(1+COTIZACION!$D$23) -> 331447.6158 | F94: 82 | G94: =U94*(1+COTIZACION!$D$23) -> 303053.6898 | H94: =V94*(1+COTIZACION!$D$23) -> 330519.6158 | P94: 82 | Q94: =IF($K$10="INCLUIDO",FACTORES!$C85*FACTORES!$AD$9+CDENT+CEE+VIS+ASIS+EDXA20100+(FACTORES!$C85*FACTORES!$AD$9*CTE),FACTORES!$C85*FACTORES!$AD$9+CDENT+CEE+VIS+ASIS+EDXA20100) -> 261253.1809 | R94: =IF($K$10="INCLUIDO",FACTORES!$D85*FACTORES!$AD$9+CDENT+CEE+VIS+ASIS+EDXA20100+(FACTORES!$D85*FACTORES!$AD$9*CTE),FACTORES!$D85*FACTORES!$AD$9+CDENT+CEE+VIS+ASIS+EDXA20100) -> 284930.7033 | T94: 82 | U94: =IF($K$10="INCLUIDO",FACTORES!$C85*FACTORES!$AD$9+CDENT+CEE+VIS+ASIS+EDXA20100+(FACTORES!$C85*FACTORES!$AD$9*CTE),FACTORES!$C85*FACTORES!$AD$9+CDENT+CEE+VIS+ASIS+EDXA20100) -> 261253.1809 | V94: =IF($K$10="INCLUIDO",FACTORES!$D85*FACTORES!$AD$9+CDENT+CEE+VIS+ASIS+EDXA20100+(FACTORES!$D85*FACTORES!$AD$9*CTE),FACTORES!$D85*FACTORES!$AD$9+CDENT+CEE+VIS+ASIS+EDXA20100) -> 284930.7033
B95: 83 | C95: =(Q95+DER)*(1+COTIZACION!$D$23) -> 322001.4448 | D95: =(R95+DER)*(1+COTIZACION!$D$23) -> 351115.3264 | F95: 83 | G95: =U95*(1+COTIZACION!$D$23) -> 321073.4448 | H95: =V95*(1+COTIZACION!$D$23) -> 350187.3264 | P95: 83 | Q95: =IF($K$10="INCLUIDO",FACTORES!$C86*FACTORES!$AD$9+CDENT+CEE+VIS+ASIS+EDXA20100+(FACTORES!$C86*FACTORES!$AD$9*CTE),FACTORES!$C86*FACTORES!$AD$9+CDENT+CEE+VIS+ASIS+EDXA20100) -> 276787.4524 | R95: =IF($K$10="INCLUIDO",FACTORES!$D86*FACTORES!$AD$9+CDENT+CEE+VIS+ASIS+EDXA20100+(FACTORES!$D86*FACTORES!$AD$9*CTE),FACTORES!$D86*FACTORES!$AD$9+CDENT+CEE+VIS+ASIS+EDXA20100) -> 301885.6262 | T95: 83 | U95: =IF($K$10="INCLUIDO",FACTORES!$C86*FACTORES!$AD$9+CDENT+CEE+VIS+ASIS+EDXA20100+(FACTORES!$C86*FACTORES!$AD$9*CTE),FACTORES!$C86*FACTORES!$AD$9+CDENT+CEE+VIS+ASIS+EDXA20100) -> 276787.4524 | V95: =IF($K$10="INCLUIDO",FACTORES!$D86*FACTORES!$AD$9+CDENT+CEE+VIS+ASIS+EDXA20100+(FACTORES!$D86*FACTORES!$AD$9*CTE),FACTORES!$D86*FACTORES!$AD$9+CDENT+CEE+VIS+ASIS+EDXA20100) -> 301885.6262
B96: 84 | C96: =(Q96+DER)*(1+COTIZACION!$D$23) -> 341102.3852 | D96: =(R96+DER)*(1+COTIZACION!$D$23) -> 371963.0996 | F96: 84 | G96: =U96*(1+COTIZACION!$D$23) -> 340174.3852 | H96: =V96*(1+COTIZACION!$D$23) -> 371035.0996 | P96: 84 | Q96: =IF($K$10="INCLUIDO",FACTORES!$C87*FACTORES!$AD$9+CDENT+CEE+VIS+ASIS+EDXA20100+(FACTORES!$C87*FACTORES!$AD$9*CTE),FACTORES!$C87*FACTORES!$AD$9+CDENT+CEE+VIS+ASIS+EDXA20100) -> 293253.7803 | R96: =IF($K$10="INCLUIDO",FACTORES!$D87*FACTORES!$AD$9+CDENT+CEE+VIS+ASIS+EDXA20100+(FACTORES!$D87*FACTORES!$AD$9*CTE),FACTORES!$D87*FACTORES!$AD$9+CDENT+CEE+VIS+ASIS+EDXA20100) -> 319857.8445 | T96: 84 | U96: =IF($K$10="INCLUIDO",FACTORES!$C87*FACTORES!$AD$9+CDENT+CEE+VIS+ASIS+EDXA20100+(FACTORES!$C87*FACTORES!$AD$9*CTE),FACTORES!$C87*FACTORES!$AD$9+CDENT+CEE+VIS+ASIS+EDXA20100) -> 293253.7803 | V96: =IF($K$10="INCLUIDO",FACTORES!$D87*FACTORES!$AD$9+CDENT+CEE+VIS+ASIS+EDXA20100+(FACTORES!$D87*FACTORES!$AD$9*CTE),FACTORES!$D87*FACTORES!$AD$9+CDENT+CEE+VIS+ASIS+EDXA20100) -> 319857.8445
B97: 85 | C97: =(Q97+DER)*(1+COTIZACION!$D$23) -> 361349.3819 | D97: =(R97+DER)*(1+COTIZACION!$D$23) -> 394061.7393 | F97: 85 | G97: =U97*(1+COTIZACION!$D$23) -> 360421.3819 | H97: =V97*(1+COTIZACION!$D$23) -> 393133.7393 | P97: 85 | Q97: =IF($K$10="INCLUIDO",FACTORES!$C88*FACTORES!$AD$9+CDENT+CEE+VIS+ASIS+EDXA20100+(FACTORES!$C88*FACTORES!$AD$9*CTE),FACTORES!$C88*FACTORES!$AD$9+CDENT+CEE+VIS+ASIS+EDXA20100) -> 310708.0878 | R97: =IF($K$10="INCLUIDO",FACTORES!$D88*FACTORES!$AD$9+CDENT+CEE+VIS+ASIS+EDXA20100+(FACTORES!$D88*FACTORES!$AD$9*CTE),FACTORES!$D88*FACTORES!$AD$9+CDENT+CEE+VIS+ASIS+EDXA20100) -> 338908.3959 | T97: 85 | U97: =IF($K$10="INCLUIDO",FACTORES!$C88*FACTORES!$AD$9+CDENT+CEE+VIS+ASIS+EDXA20100+(FACTORES!$C88*FACTORES!$AD$9*CTE),FACTORES!$C88*FACTORES!$AD$9+CDENT+CEE+VIS+ASIS+EDXA20100) -> 310708.0878 | V97: =IF($K$10="INCLUIDO",FACTORES!$D88*FACTORES!$AD$9+CDENT+CEE+VIS+ASIS+EDXA20100+(FACTORES!$D88*FACTORES!$AD$9*CTE),FACTORES!$D88*FACTORES!$AD$9+CDENT+CEE+VIS+ASIS+EDXA20100) -> 338908.3959
B99: Nota: Esta cotización tiene una validez de 15 días apartir de su fecha de elaboración. La edad limite de aceptación es hasta los 64 años. Incluyen I.V.A. Y derechos de póliza, no incluye recargo por pago fraccionado
B102: =+IMPRESION!B98 -> Tarifa Vig: 01 de Marzo 2022

Sheet IMPRESION (hidden)
K6: =TODAY() -> 2022-02-03
B7: ="Apreciable "&COTIZACION!C28 -> Apreciable
B9: =+"Agradecemos de antemano su preferencia y esperamos que la presente propuesta de Gastos Médicos "&COTIZACION!D9&" cumpla sus expectativas." -> Agradecemos de antemano su preferencia y esperamos que la presente propuesta de Gastos Médicos FAMILIAR cumpla sus expectativas.
C12: CUADRO DE COBERTURAS
C13: - | D13: Suma Asegurada | I13: =COTIZACION!D10 -> 100000000 | J13: =IF(I13<>"SIN LÍMITE","M.N.","") -> M.N.
C14: - | D14: Tipo de Deducible por Accidente y Enfermedad | I14: =COTIZACION!D11 -> POR PADECIMIENTO
C15: - | D15: Deducible por Accidente y Enfermedad | I15: =COTIZACION!D12 -> 12000 | J15: M.N.
C16: - | D16: Coaseguro por Accidente y Enfermedad | I16: =COTIZACION!D13 -> 10% CON TOPE DE $35,000
C17: - | D17: Tipo de Hospital | I17: =+COTIZACION!D8 -> T+
C18: - | D18: Incremento al Catálogo | I18: =COTIZACION!D22 -> 0
C19: - | D19: Base de Honorarios Quirúrgicos | I19: =IF(COTIZACION!D22=0,VLOOKUP(VLOOKUP(COTIZACION!D14,FACTORES!$N$2:$O$34,2,0),FACTORES!$X$22:$Z$32,3,0),(VLOOKUP(VLOOKUP(COTIZACION!D14,FACTORES!$N$2:$O$34,2,0),FACTORES!$X$22:$Z$32,3,0)*(1+COTIZACION!D22))) -> 62000
C20: - | D20: Honorarios por visita intrahospitalaria | I20: Catálogo
C21: - | D21: Honorarios por consulta | I21: Catálogo
C22: - | D22: Honorarios por enfermera máximo 3 turnos por día durante 30 días | I22: Catálogo
C23: - | D23: Habitación Hospital | I23: Privado Estándar
C24: - | D24: Sala de operación y recuperación, medicamentos, consumo de oxígeno,
D25: servicios de terapia, tratamiento de diálisis y transfusiones de sangre | I25: Incluido
C26: - | D26: Renta de aparatos ortopédicos y prótesis | I26: Incluido
C27: - | D27: Ambulancia Aérea | I27: Incluida
C28: - | D28: Ambulancia Terrestre | I28: Incluida
C29: - | D29: Gastos por donación de organos | I29: 100000 | J29: M.N.
C30: - | D30: Renta diaria por hospitalización en un Centro de Asistencia Social máximo 30 días | I30: =IF(I12<0,"Excluido",300) -> 300 | J30: M.N.
C31: - | D31: Gastos por Parto o Cesárea del Titular, Cónyuge o hija asegurada con periodo de
D32: espera de 10 meses sin deducible, ni coaseguro | I32: =IF(COTIZACION!D12>45000,"$20,000",IF(COTIZACION!$D$17="NO","$20,000",COTIZACION!$D$17)) -> $20,000 | J32: =IF(I32="Excluido","","M.N.") -> M.N.
C33: - | D33: Complicaciones del Embarazo y del Parto del Titular, Cónyuge o hija asegurada,
D34: con periodo de espera de 10 meses, con deducible y coaseguro | I34: Incluido
C35: - | D35: Prematurez siempre que el nacimiento ocurra después de 10 meses de
D36: alta de la madre | I36: Suma Asegurada Básica
C37: - | D37: Preexistencia Declarada, con periodo de espera de 2 años, no aplica reconocimiento
D38: de antigüedad | I38: De acuerdo a Condiciones Generales
C39: - | D39: Circuncisión, con periodo de espera de 1 año, no aplica reconocimiento de antigüedad | I39: Incluida
C40: - | D40: Padecimientos congénitos para nacidos dentro de la vigencia, dados de alta dentro
D41: de los 30 días posteriores al nacimiento y que la madre asegurada cumpla con el
D42: periodo de espera de 10 meses. Para los nacidos fuera de vigencia aplica periodo de
D43: espera de 12 meses. | I43: Incluido
C44: - | D44: Legrado | I44: 10000 | J44: M.N.
C45: - | D45: SIDA, siempre que el asegurado se encuentre cubierto en Seguros Banorte al
D46: menos 4 años ininterrumpidos | I46: Incluido
C47: - | D47: Terapia Psicológica o Psiquiátrica | I47: Incluido
C48: - | D48: Xifósis, lordósis y escoleosis, con periodo de espera de 2 años
D49: no aplica reconocimiento de antigüedad | I49: Incluido
C50: - | D50: Reconocimiento de Antigüedad, previa comprobación | I50: Incluido
C51: - | D51: Incremento de Catálogo de Honorarios para enfermedades catastróficas | I51: Incluido
C52: - | D52: Trastornos Visuales, con periodo de espera de 18 meses | I52: 12000 | J52: M.N.
C53: - | D53: Lente intraocular, con periodo de espera de 12 meses | I53: 3000 | J53: M.N.
C54: - | D54: Emergencia Extranjero con suma asegurada de 50,000 Dlls, deducible de 50 Dlls y coaseguro 0% | I54: Incluido
C55: - | D55: Cobertura Integral Dental y Visión (operado por Dentegra) | I55: Incluido
C56: - | D56: Cobertura de Reducción de Deducible por Accidente (con tope de $50,000) | I56: Incluido
C57: - | D57: Servicios de Asistencia (operado por México Asistencias y Montolin) | I57: Incluido
C60: COBERTURAS ADICIONALES
C61: -Cobertura Total en el Extranjero coaseguro 20% | I61: =IF(FACTORES!AN3<>0,"Incluido","Excluido") -> Excluido
C62: -Cobertura de Indemnización por Enfermedad Grave | I62: =IF(OR(COTIZACION!D19="NO",SUM(COTIZACION!A28:A35)<=0),"Excluido",COTIZACION!D19) -> Excluido | J62: =IF(I62="EXCLUIDO","","M.N.") -> 
C63: -Cobertura de Visión Incremental | I63: =IF(COTIZACION!D18="SI","Incluido","Excluido") -> Excluido
B65: Se cobrará doble deducible y coaseguro de póliza, a los Asegurados que se atiendan en Hospiten México S.A de C.V (Cancún Quintana Roo)
C67: PARTICIPANTES
C69: Nombre | H69: Edad | I69: Sexo | J69: Parentesco | K69: Prima Neta Anual
A71: =IF(AND(H71<>"",H71>69),1,0) -> 0 | C71: =IF(COTIZACION!C28="","",COTIZACION!C28) ->  | H71: =IF(OR(COTIZACION!E28="",COTIZACION!D28=""),"",COTIZACION!E28) -> 49 | I71: =IF(OR(COTIZACION!D28="",COTIZACION!E28=""),"",COTIZACION!D28) -> HOMBRE | J71: =IF(I71="","",COTIZACION!B28) -> Titular | K71: =IF(COTIZACION!E7="ok",IF(COTIZACION!$F$28<>"",0,FACTORES!AO3),"COTIZACION NO VALIDA") -> 38859.61999
A72: 0 | C72: =IF(OR(COTIZACION!C29="",COTIZACION!$D$9="INDIVIDUAL"),"",COTIZACION!C29) ->  | H72: =IF(OR(COTIZACION!E29="",COTIZACION!D29="",COTIZACION!$D$9="INDIVIDUAL"),"",COTIZACION!E29) ->  | I72: =IF(OR(COTIZACION!D29="",COTIZACION!E29="",COTIZACION!$D$9="INDIVIDUAL"),"",COTIZACION!D29) ->  | J72: =IF(I72="","",COTIZACION!B29) ->  | K72: =IF(COTIZACION!E7="ok",IF(COTIZACION!$F$28<>"",0,FACTORES!AO4),"COTIZACION NO VALIDA") -> 
A73: 0 | C73: =IF(OR(COTIZACION!C30="",COTIZACION!$D$9="INDIVIDUAL"),"",COTIZACION!C30) ->  | H73: =IF(OR(COTIZACION!E30="",COTIZACION!D30="",COTIZACION!$D$9="INDIVIDUAL"),"",COTIZACION!E30) ->  | I73: =IF(OR(COTIZACION!D30="",COTIZACION!E30="",COTIZACION!$D$9="INDIVIDUAL"),"",COTIZACION!D30) ->  | J73: =IF(I73="","",COTIZACION!B30) ->  | K73: =IF(COTIZACION!$F$28<>"",0,FACTORES!AO5) -> 
A74: 0 | C74: =IF(OR(COTIZACION!C31="",COTIZACION!$D$9="INDIVIDUAL"),"",COTIZACION!C31) ->  | H74: =IF(OR(COTIZACION!E31="",COTIZACION!D31="",COTIZACION!$D$9="INDIVIDUAL"),"",COTIZACION!E31) ->  | I74: =IF(OR(COTIZACION!D31="",COTIZACION!E31="",COTIZACION!$D$9="INDIVIDUAL"),"",COTIZACION!D31) ->  | J74: =IF(I74="","",COTIZACION!B31) ->  | K74: =IF(COTIZACION!$F$28<>"",0,FACTORES!AO6) -> 
A75: 0 | C75: =IF(OR(COTIZACION!C32="",COTIZACION!$D$9="INDIVIDUAL"),"",COTIZACION!C32) ->  | H75: =IF(OR(COTIZACION!E32="",COTIZACION!D32="",COTIZACION!$D$9="INDIVIDUAL"),"",COTIZACION!E32) ->  | I75: =IF(OR(COTIZACION!D32="",COTIZACION!E32="",COTIZACION!$D$9="INDIVIDUAL"),"",COTIZACION!D32) ->  | J75: =IF(I75="","",COTIZACION!B32) ->  | K75: =IF(COTIZACION!$F$28<>"",0,FACTORES!AO7) -> 
A76: 0 | C76: =IF(OR(COTIZACION!C33="",COTIZACION!$D$9="INDIVIDUAL"),"",COTIZACION!C33) ->  | H76: =IF(OR(COTIZACION!E33="",COTIZACION!D33="",COTIZACION!$D$9="INDIVIDUAL"),"",COTIZACION!E33) ->  | I76: =IF(OR(COTIZACION!D33="",COTIZACION!E33="",COTIZACION!$D$9="INDIVIDUAL"),"",COTIZACION!D33) ->  | J76: =IF(I76="","",COTIZACION!B33) ->  | K76: =IF(COTIZACION!$F$28<>"",0,FACTORES!AO8) -> 
A77: 0 | C77: =IF(OR(COTIZACION!C34="",COTIZACION!$D$9="INDIVIDUAL"),"",COTIZACION!C34) ->  | H77: =IF(OR(COTIZACION!E34="",COTIZACION!D34="",COTIZACION!$D$9="INDIVIDUAL"),"",COTIZACION!E34) ->  | I77: =IF(OR(COTIZACION!D34="",COTIZACION!E34="",COTIZACION!$D$9="INDIVIDUAL"),"",COTIZACION!D34) ->  | J77: =IF(I77="","",COTIZACION!B34) ->  | K77: =IF(COTIZACION!$F$28<>"",0,FACTORES!AO9) -> 
A78: 0 | C78: =IF(OR(COTIZACION!C35="",COTIZACION!$D$9="INDIVIDUAL"),"",COTIZACION!C35) ->  | H78: =IF(OR(COTIZACION!E35="",COTIZACION!D35="",COTIZACION!$D$9="INDIVIDUAL"),"",COTIZACION!E35) ->  | I78: =IF(OR(COTIZACION!D35="",COTIZACION!E35="",COTIZACION!$D$9="INDIVIDUAL"),"",COTIZACION!D35) ->  | J78: =IF(I78="","",COTIZACION!B35) ->  | K78: =IF(COTIZACION!$F$28<>"",0,FACTORES!AO10) -> 
I79: Prima Neta Total Anual | K79: =IF(OR(K71="Edad no Permitida",K72="Edad no Permitida",K73="Edad no Permitida",K74="Edad no Permitida",K75="Edad no Permitida",K76="Edad no Permitida",K77="Edad no Permitida",K78="Edad no Permitida"),0,IF(IMPRESION!A97=0,SUM(K71:K78),0)) -> 38859.61999
I80: Derecho de Póliza | K80: =IF(K79=0,0,FACTORES!$S$34) -> 800
I81: Subtotal | K81: =+K79+K80 -> 39659.61999
C82: Región de tarifa | E82: =COTIZACION!D14 -> CIUDAD DE MÉXICO | I82: I.V.A. | K82: =+K81*COTIZACION!$D$24 -> 6345.539199
I83: Prima Total Anual | K83: =SUM(K81:K82) -> 46005.15919
C84: Agente | E84: =IF(COTIZACION!C40="","",COTIZACION!C40) -> 
C86: Forma de Pago | E86: Primer Recibo | F86: Recibos Subsecuentes | G86: Total
C87: =+COTIZACION!G28 -> ANUAL | E87: =IF(COTIZACION!F28<>"",0,K83) -> 46005.15919 | F87: 0 | G87: =+F87+E87 -> 46005.15919
C88: ="SEMESTRAL (Recargo "&COTIZACION!H37*100&"%)" -> SEMESTRAL (Recargo 4.73%) | E88: =IF(COTIZACION!F28<>"",0,IF((IMPRESION!K79*RSEM/2+DER)*(1+COTIZACION!$D$24)<1000,0,(IMPRESION!K79*RSEM/2+DER)*(1+COTIZACION!$D$24))) -> 24532.65441 | F88: =IF(E88=0,0,(IMPRESION!K79*RSEM/2)*(1+COTIZACION!$D$24)) -> 23604.65441 | G88: =F88+E88 -> 48137.30882
C89: ="TRIMESTRAL (Recargo "&COTIZACION!H38*100&"%)" -> TRIMESTRAL (Recargo 6.99%) | E89: =IF(COTIZACION!F28<>"",0,IF((IMPRESION!K79*RTRIM/4+DER)*(1+COTIZACION!$D$24)<1000,0,(IMPRESION!K79*RTRIM/4+DER)*(1+COTIZACION!$D$24))) -> 12985.01316 | F89: =(IF(E89=0,0,(IMPRESION!K79*RTRIM/4)*(1+COTIZACION!$D$24))) -> 12057.01316 | G89: =+E89+F89*3 -> 49156.05262
C90: ="MENSUAL (Recargo "&COTIZACION!H39*100&"%)" -> MENSUAL (Recargo 9.99%) | E90: =IF(COTIZACION!F28<>"",0,IF((IMPRESION!K79*RMES/12+DER)*(1+COTIZACION!$D$24)<1000,0,(IMPRESION!K79*RMES/12+DER)*(1+COTIZACION!$D$24))) -> 5059.697283 | F90: =(IF(E90=0,0,(IMPRESION!K79*RMES/12)*(1+COTIZACION!$D$24))) -> 4131.697283 | G90: =+E90+F90*11 -> 50508.3674
C92: Notas:
C93: *Este producto cuenta con exclusiones y limitaciones, las cuales pueden ser consultadas en las Condiciones Generales del producto en la página
C94: www.segurosbanorte.com.mx
C95: * Esta cotización tiene una validez de 15 días a partir de su fecha de elaboración. La edad limite de aceptación es hasta los 64 años. * El recargo por pago fraccionado está sujeto a cambio sin previo aviso.
C97: * La edad de contratación de la cobertura de enfermedades graves es de 18 a 59 años.
B98: Tarifa Vig: 01 de Marzo 2022 | F98: =IF(COTIZACION!D7="RENOVADA","ESTA COTIZACIÓN ES SOLO VALIDA PARA RENOVACIONES"," ") -> 
B99: Cotizador Vig: 01 de marzo 2022 a 28 de Febrero 2023
B100: =VLOOKUP(FACTORES!$AN$14,FACTORES!$AI$14:$AM$37,3,FALSE)&"/"&VLOOKUP(FACTORES!$AN$14,FACTORES!$AI$14:$AM$37,4,FALSE)&"/"&VLOOKUP(FACTORES!$AN$14,FACTORES!$AI$14:$AM$37,5,FALSE) -> 1200/95007/1,2,3,5,6,7,8
A213: FP
A214: =IF(#REF!="ANUAL",1,IF(#REF!="SEMESTRAL",2,IF(#REF!="TRIMESTRAL",4,IF(#REF!="MENSUAL",12,1)))) -> 
A216: IVA
A217: 0.1
A218: 0.15

Sheet IMPRESION_2 (hidden)
K6: =TODAY() -> 2022-02-03
B7: ="Apreciable "&COTIZACION!C28 -> Apreciable
B9: A continuación le presentamos aplicación de Copago y Coaseguro en caso de siniestro
C12: COPAGO EN CASO DE SINIESTRO
C13: El copago del asegurado en caso de siniestro es:
C15: - | D15: En Red Preferente, nivel hospitalario contratado o menor y misma zona o menor | I15: Sin Copago
C16: - | D16: En Red Preferente, nivel Hospitalario contratado o menor y zona mayor a la contratada | I16: 5000 | J16: M.N.
C17: - | D17: En Red Preferente, nivel Hospitalario mayor al contratado y misma zona o menor | I17: 5000 | J17: M.N.
C18: - | D18: En Red Preferente, nivel Hospitalario mayor al contratado y zona mayor a la contratada | I18: 10000 | J18: M.N.
C19: - | D19: Fuera de Red Preferente, nivel Hospitalario contratado o menor y misma zona o menor | I19: 5000 | J19: M.N.
C20: - | D20: Fuera de Red Preferente, nivel Hospitalario contratado o menor y zona mayor a la contratada | I20: 10000 | J20: M.N.
C21: - | D21: Fuera de Red Preferente, nivel Hospitalario mayor al contratado y misma zona o menor | I21: 10000 | J21: M.N.
C22: - | D22: Fuera de Red Preferente, nivel Hospitalario mayor al contratado y zona mayor a la contratada | I22: 20000 | J22: M.N.
C24: APLICACIÓN DE COASEGURO EN CASO DE SINIESTRO
C25: El coaseguro contratado funciona para la red Hospitalaria Preferente contratada en caso de salir de esta aplica:
C27: - | D27: Hospitales Red Preferente nivel Hospitalario contratado o menor y misma zona o menor | I27: =COTIZACION!$D$13 -> 10% CON TOPE DE $35,000
C28: - | D28: Hospitales Red Preferente nivel Hospitalario contratado o menor y zona mayor a la contratada. | I28: =VLOOKUP($I$27,FACTORES!$AK$38:$AN$41,2,0) -> 15% CON TOPE DE $45,000
C29: - | D29: Hospitales Red Preferente nivel Hospitalario mayor al contratado y misma zona o menor. | I29: =VLOOKUP($I$27,FACTORES!$AK$38:$AN$41,2,0) -> 15% CON TOPE DE $45,000
C30: - | D30: Fuera de Red Preferente, nivel Hospitalario contratado o menor y misma zona o menor. | I30: =VLOOKUP($I$27,FACTORES!$AK$38:$AN$41,2,0) -> 15% CON TOPE DE $45,000
C31: - | D31: Hospitales Red Preferente nivel Hospitalario mayor al contratado y zona mayor. | I31: =VLOOKUP($I$27,FACTORES!$AK$38:$AN$41,3,0) -> 20% CON TOPE DE $60,000
C32: - | D32: Fuera de Red Preferente, nivel Hospitalario contratado o menor y zona mayor a la contratada. | I32: =VLOOKUP($I$27,FACTORES!$AK$38:$AN$41,3,0) -> 20% CON TOPE DE $60,000
C33: - | D33: Fuera de Red Preferente, nivel Hospitalario mayor al contratado y misma zona o menor. | I33: =VLOOKUP($I$27,FACTORES!$AK$38:$AN$41,3,0) -> 20% CON TOPE DE $60,000
C34: - | D34: Fuera de Red Preferente, nivel Hospitalario mayor al contratado y zona mayor a la contratada | I34: =VLOOKUP($I$27,FACTORES!$AK$38:$AN$41,4,0) -> 25% CON TOPE DE $80,000

Sheet HISTORICO DE TARIFAS (hidden)
J1: Nueva | N1: Renovada
B2: TARIFA 2015-2016 | F2: TARIFA 2017 (01 de enero) | J2: TARIFA 2017 (01 de agosto) | N2: TARIFA 2017 (01 de agosto)
B3: EDAD | C3: HOMBRES | D3: MUJERES | F3: EDAD | G3: HOMBRES | H3: MUJERES | J3: EDAD | K3: HOMBRES | L3: MUJERES | N3: EDAD | O3: HOMBRES | P3: MUJERES
B4: 0 | C4: 3860.33 | D4: 3860.33 | F4: 0 | G4: =+C4*1.12 -> 4323.5696 | H4: =+D4*1.12 -> 4323.5696 | J4: 0 | K4: =+G4*1.4 -> 6052.99744 | L4: =+H4*1.4 -> 6052.99744 | N4: 0 | O4: =+G4*1.2 -> 5188.28352 | P4: =+H4*1.2 -> 5188.28352
B5: 1 | C5: 3860.33 | D5: 3860.33 | F5: 1 | G5: =+C5*1.12 -> 4323.5696 | H5: 4323.5696 | J5: 1 | K5: =+G5*1.4 -> 6052.99744 | L5: 6052.99744 | N5: 1 | O5: =+G5*1.2 -> 5188.28352 | P5: 5188.28352
B6: 2 | C6: 3860.33 | D6: 3860.33 | F6: 2 | G6: 4323.5696 | H6: 4323.5696 | J6: 2 | K6: 6052.99744 | L6: 6052.99744 | N6: 2 | O6: 5188.28352 | P6: 5188.28352
B7: 3 | C7: 3860.33 | D7: 3860.33 | F7: 3 | G7: 4323.5696 | H7: 4323.5696 | J7: 3 | K7: 6052.99744 | L7: 6052.99744 | N7: 3 | O7: 5188.28352 | P7: 5188.28352
B8: 4 | C8: 3860.33 | D8: 3860.33 | F8: 4 | G8: 4323.5696 | H8: 4323.5696 | J8: 4 | K8: 6052.99744 | L8: 6052.99744 | N8: 4 | O8: 5188.28352 | P8: 5188.28352
B9: 5 | C9: 3860.33 | D9: 3860.33 | F9: 5 | G9: 4323.5696 | H9: 4323.5696 | J9: 5 | K9: 6052.99744 | L9: 6052.99744 | N9: 5 | O9: 5188.28352 | P9: 5188.28352
B10: 6 | C10: 3860.33 | D10: 3860.33 | F10: 6 | G10: 4323.5696 | H10: 4323.5696 | J10: 6 | K10: 6052.99744 | L10: 6052.99744 | N10: 6 | O10: 5188.28352 | P10: 5188.28352
B11: 7 | C11: 3860.33 | D11: 3860.33 | F11: 7 | G11: 4323.5696 | H11: 4323.5696 | J11: 7 | K11: 6052.99744 | L11: 6052.99744 | N11: 7 | O11: 5188.28352 | P11: 5188.28352
B12: 8 | C12: 3860.33 | D12: 3860.33 | F12: 8 | G12: 4323.5696 | H12: 4323.5696 | J12: 8 | K12: 6052.99744 | L12: 6052.99744 | N12: 8 | O12: 5188.28352 | P12: 5188.28352
B13: 9 | C13: 3860.33 | D13: 3860.33 | F13: 9 | G13: 4323.5696 | H13: 4323.5696 | J13: 9 | K13: 6052.99744 | L13: 6052.99744 | N13: 9 | O13: 5188.28352 | P13: 5188.28352
B14: 10 | C14: 3860.33 | D14: 3860.33 | F14: 10 | G14: 4323.5696 | H14: 4323.5696 | J14: 10 | K14: 6052.99744 | L14: 6052.99744 | N14: 10 | O14: 5188.28352 | P14: 5188.28352
B15: 11 | C15: 3860.33 | D15: 3860.33 | F15: 11 | G15: 4323.5696 | H15: 4323.5696 | J15: 11 | K15: 6052.99744 | L15: 6052.99744 | N15: 11 | O15: 5188.28352 | P15: 5188.28352
B16: 12 | C16: 3860.33 | D16: 3860.33 | F16: 12 | G16: 4323.5696 | H16: 4323.5696 | J16: 12 | K16: 6052.99744 | L16: 6052.99744 | N16: 12 | O16: 5188.28352 | P16: 5188.28352
B17: 13 | C17: 3860.33 | D17: 3860.33 | F17: 13 | G17: 4323.5696 | H17: 4323.5696 | J17: 13 | K17: 6052.99744 | L17: 6052.99744 | N17: 13 | O17: 5188.28352 | P17: 5188.28352
B18: 14 | C18: 3860.33 | D18: 3860.33 | F18: 14 | G18: 4323.5696 | H18: 4323.5696 | J18: 14 | K18: 6052.99744 | L18: 6052.99744 | N18: 14 | O18: 5188.28352 | P18: 5188.28352
B19: 15 | C19: 3860.33 | D19: 3860.33 | F19: 15 | G19: 4323.5696 | H19: 4323.5696 | J19: 15 | K19: 6052.99744 | L19: 6052.99744 | N19: 15 | O19: 5188.28352 | P19: 5188.28352
B20: 16 | C20: 3860.33 | D20: 3860.33 | F20: 16 | G20: 4323.5696 | H20: 4323.5696 | J20: 16 | K20: 6052.99744 | L20: 6052.99744 | N20: 16 | O20: 5188.28352 | P20: 5188.28352
B21: 17 | C21: 3860.33 | D21: 3860.33 | F21: 17 | G21: =+C21*1.12 -> 4323.5696 | H21: 4323.5696 | J21: 17 | K21: 6052.99744 | L21: 6052.99744 | N21: 17 | O21: 5188.28352 | P21: 5188.28352
B22: 18 | C22: 3860.33 | D22: 3860.33 | F22: 18 | G22: 4323.5696 | H22: 4323.5696 | J22: 18 | K22: 6052.99744 | L22: 6052.99744 | N22: 18 | O22: 5188.28352 | P22: 5188.28352
B23: 19 | C23: 3860.33 | D23: 3860.33 | F23: 19 | G23: 4323.5696 | H23: 4323.5696 | J23: 19 | K23: =+G23*1.4 -> 6052.99744 | L23: 6052.99744 | N23: 19 | O23: =+G23*1.2 -> 5188.28352 | P23: 5188.28352
B24: 20 | C24: 5204.2 | D24: 6177.15 | F24: 20 | G24: 5828.704 | H24: 6918.408 | J24: 20 | K24: =+G24*1.2 -> 6994.4448 | L24: =+H24*1.2 -> 8302.0896 | N24: 20 | O24: =+G24*1.15 -> 6703.0096 | P24: =+H24*1.15 -> 7956.1692
B25: 21 | C25: 5749.06 | D25: 7225.07 | F25: 21 | G25: 6438.9472 | H25: 8092.0784 | J25: 21 | K25: =+G25*1.2 -> 7726.73664 | L25: 9710.49408 | N25: 21 | O25: =+G25*1.15 -> 7404.78928 | P25: 9305.89016
B26: 22 | C26: 6350.96 | D26: 8450.77 | F26: 22 | G26: 7113.0752 | H26: 9464.8624 | J26: 22 | K26: 8535.69024 | L26: 11357.83488 | N26: 22 | O26: 8180.03648 | P26: 10884.59176
B27: 23 | C27: 6837.31 | D27: 8757.84 | F27: 23 | G27: 7657.7872 | H27: 9808.7808 | J27: 23 | K27: 9189.34464 | L27: 11770.53696 | N27: 23 | O27: 8806.45528 | P27: 11280.09792
B28: 24 | C28: 7360.9 | D28: 9076.06 | F28: 24 | G28: 8244.208 | H28: 10165.1872 | J28: 24 | K28: 9893.0496 | L28: 12198.22464 | N28: 24 | O28: 9480.8392 | P28: 11689.96528
B29: 25 | C29: 7924.59 | D29: 9405.85 | F29: 25 | G29: 8875.5408 | H29: 10534.552 | J29: 25 | K29: 10650.64896 | L29: 12641.4624 | N29: 25 | O29: 10206.87192 | P29: 12114.7348
B30: 26 | C30: 8531.45 | D30: 9747.62 | F30: 26 | G30: 9555.224 | H30: 10917.3344 | J30: 26 | K30: 11466.2688 | L30: 13100.80128 | N30: 26 | O30: 10988.5076 | P30: 12554.93456
B31: 27 | C31: 9184.78 | D31: 10101.81 | F31: 27 | G31: 10286.9536 | H31: 11314.0272 | J31: 27 | K31: 12344.34432 | L31: 13576.83264 | N31: 27 | O31: 11829.99664 | P31: 13011.13128
B32: 28 | C32: 9747.03 | D32: 10600.98 | F32: 28 | G32: 10916.6736 | H32: 11873.0976 | J32: 28 | K32: 13100.00832 | L32: 14247.71712 | N32: 28 | O32: 12554.17464 | P32: 13654.06224
B33: 29 | C33: 10343.7 | D33: 11124.82 | F33: 29 | G33: 11584.944 | H33: 12459.7984 | J33: 29 | K33: 13901.9328 | L33: 14951.75808 | N33: 29 | O33: 13322.6856 | P33: 14328.76816
B34: 30 | C34: 10976.9 | D34: 11674.54 | F34: 30 | G34: 12294.128 | H34: 13075.4848 | J34: 30 | K34: 14752.9536 | L34: 15690.58176 | N34: 30 | O34: 14138.2472 | P34: 15036.80752
B35: 31 | C35: 11648.86 | D35: 12251.43 | F35: 31 | G35: 13046.7232 | H35: 13721.6016 | J35: 31 | K35: 15656.06784 | L35: 16465.92192 | N35: 31 | O35: 15003.73168 | P35: 15779.84184
B36: 32 | C36: 12361.95 | D36: 12856.82 | F36: 32 | G36: 13845.384 | H36: 14399.6384 | J36: 32 | K36: 16614.4608 | L36: 17279.56608 | N36: 32 | O36: 15922.1916 | P36: 16559.58416
B37: 33 | C37: 12997.25 | D37: 13549.81 | F37: 33 | G37: 14556.92 | H37: 15175.7872 | J37: 33 | K37: 17468.304 | L37: 18210.94464 | N37: 33 | O37: 16740.458 | P37: 17452.15528
B38: 34 | C38: 13665.2 | D38: 14280.15 | F38: 34 | G38: 15305.024 | H38: 15993.768 | J38: 34 | K38: 18366.0288 | L38: 19192.5216 | N38: 34 | O38: 17600.7776 | P38: 18392.8332
B39: 35 | C39: 14367.47 | D39: 15049.86 | F39: 35 | G39: 16091.5664 | H39: 16855.8432 | J39: 35 | K39: 19309.87968 | L39: 20227.01184 | N39: 35 | O39: 18505.30136 | P39: 19384.21968
B40: 36 | C40: 15105.84 | D40: 15861.05 | F40: 36 | G40: 16918.5408 | H40: 17764.376 | J40: 36 | K40: 20302.24896 | L40: 21317.2512 | N40: 36 | O40: 19456.32192 | P40: 20429.0324
B41: 37 | C41: 15882.15 | D41: 16715.97 | F41: 37 | G41: 17788.008 | H41: 18721.8864 | J41: 37 | K41: 21345.6096 | L41: 22466.26368 | N41: 37 | O41: 20456.2092 | P41: 21530.16936
B42: 38 | C42: 16763.45 | D42: 17616.53 | F42: 38 | G42: 18775.064 | H42: 19730.5136 | J42: 38 | K42: 22530.0768 | L42: 23676.61632 | N42: 38 | O42: 21591.3236 | P42: 22690.09064
B43: 39 | C43: 17693.66 | D43: 18565.6 | F43: 39 | G43: 19816.8992 | H43: 20793.472 | J43: 39 | K43: 23780.27904 | L43: 24952.1664 | N43: 39 | O43: 22789.43408 | P43: 23912.4928
B44: 40 | C44: 16807.94 | D44: 17609.22 | F44: 40 | G44: 18824.8928 | H44: 19722.3264 | J44: 40 | K44: 22589.87136 | L44: 23666.79168 | N44: 40 | O44: 21648.62672 | P44: 22680.67536
B45: 41 | C45: 17740.62 | D45: 18557.9 | F45: 41 | G45: 19869.4944 | H45: 20784.848 | J45: 41 | K45: 23843.39328 | L45: 24941.8176 | N45: 41 | O45: 22849.91856 | P45: 23902.5752
B46: 42 | C46: 18725.05 | D46: 19557.68 | F46: 42 | G46: 20972.056 | H46: 21904.6016 | J46: 42 | K46: 25166.4672 | L46: 26285.52192 | N46: 42 | O46: 24117.8644 | P46: 25190.29184
B47: 43 | C47: 19794.19 | D47: 20611.33 | F47: 43 | G47: 22169.4928 | H47: 23084.6896 | J47: 43 | K47: 26603.39136 | L47: 27701.62752 | N47: 43 | O47: 25494.91672 | P47: 26547.39304
B48: 44 | C48: 20924.38 | D48: 21721.75 | F48: 44 | G48: 23435.3056 | H48: 24328.36 | J48: 44 | K48: 28122.36672 | L48: 29194.032 | N48: 44 | O48: 26950.60144 | P48: 27977.614
B49: 45 | C49: 22119.09 | D49: 22891.98 | F49: 45 | G49: 24773.3808 | H49: 25639.0176 | J49: 45 | K49: 29728.05696 | L49: 30766.82112 | N49: 45 | O49: 28489.38792 | P49: 29484.87024
B50: 46 | C50: 23382.03 | D50: 24125.27 | F50: 46 | G50: 26187.8736 | H50: 27020.3024 | J50: 46 | K50: 31425.44832 | L50: 32424.36288 | N50: 46 | O50: 30116.05464 | P50: 31073.34776
B51: 47 | C51: 24717.07 | D51: 25424.99 | F51: 47 | G51: 27683.1184 | H51: 28475.9888 | J51: 47 | K51: 33219.74208 | L51: 34171.18656 | N51: 47 | O51: 31835.58616 | P51: 32747.38712
B52: 48 | C52: 26128.33 | D52: 26794.73 | F52: 48 | G52: 29263.7296 | H52: 30010.0976 | J52: 48 | K52: 35116.47552 | L52: 36012.11712 | N52: 48 | O52: 33653.28904 | P52: 34511.61224
B53: 49 | C53: 27620.18 | D53: 28238.27 | F53: 49 | G53: 30934.6016 | H53: 31626.8624 | J53: 49 | K53: 37121.52192 | L53: 37952.23488 | N53: 49 | O53: 35574.79184 | P53: 36370.89176
B54: 50 | C54: 29197.2 | D54: 29759.58 | F54: 50 | G54: 32700.864 | H54: 33330.7296 | J54: 50 | K54: 39241.0368 | L54: 39996.87552 | N54: 50 | O54: 37605.9936 | P54: =+H54*1.15 -> 38330.33904
B55: 51 | C55: 30864.27 | D55: 31362.85 | F55: 51 | G55: 34567.9824 | H55: 35126.392 | J55: 51 | K55: 41481.57888 | L55: 42151.6704 | N55: 51 | O55: 39753.17976 | P55: 40395.3508
B56: 52 | C56: 32626.53 | D56: 33052.49 | F56: 52 | G56: 36541.7136 | H56: 37018.7888 | J56: 52 | K56: 43850.05632 | L56: 44422.54656 | N56: 52 | O56: 42022.97064 | P56: 42571.60712
B57: 53 | C57: 34489.4 | D57: 34833.16 | F57: 53 | G57: 38628.128 | H57: 39013.1392 | J57: 53 | K57: 46353.7536 | L57: 46815.76704 | N57: 53 | O57: 44422.3472 | P57: 44865.11008
B58: 54 | C58: 36458.64 | D58: 36709.75 | F58: 54 | G58: 40833.6768 | H58: 41114.92 | J58: 54 | K58: 49000.41216 | L58: 49337.904 | N58: 54 | O58: 46958.72832 | P58: 47282.158
B59: 55 | C59: 38540.31 | D59: 38687.45 | F59: 55 | G59: 43165.1472 | H59: 43329.944 | J59: 55 | K59: 51798.17664 | L59: 51995.9328 | N59: 55 | O59: 49639.91928 | P59: 49829.4356
B60: 56 | C60: 45267.6 | D60: 45301.89 | F60: 56 | G60: 50699.712 | H60: 50738.1168 | J60: 56 | K60: 60839.6544 | L60: 60885.74016 | N60: 56 | O60: 58304.6688 | P60: 58348.83432
B61: 57 | C61: 47852.24 | D61: 47742.48 | F61: 57 | G61: 53594.5088 | H61: 53471.5776 | J61: 57 | K61: 64313.41056 | L61: 64165.89312 | N61: 57 | O61: 61633.68512 | P61: 61492.31424
B62: 58 | C62: 50584.45 | D62: 50314.56 | F62: 58 | G62: 56654.584 | H62: 56352.3072 | J62: 58 | K62: 67985.5008 | L62: 67622.76864 | N62: 58 | O62: 65152.7716 | P62: 64805.15328
B63: 59 | C63: 53472.67 | D63: 53025.2 | F63: 59 | G63: 59889.3904 | H63: 59388.224 | J63: 59 | K63: 71867.26848 | L63: 71265.8688 | N63: 59 | O63: 68872.79896 | P63: 68296.4576
B64: 60 | C64: 56525.79 | D64: 55881.88 | F64: 60 | G64: 63308.8848 | H64: 62587.7056 | J64: 60 | K64: 75970.66176 | L64: 75105.24672 | N64: 60 | O64: 72805.21752 | P64: 71975.86144
B65: 61 | C65: 59753.23 | D65: 58892.46 | F65: 61 | G65: 66923.6176 | H65: 65959.5552 | J65: 61 | K65: 80308.34112 | L65: 79151.46624 | N65: 61 | O65: 76962.16024 | P65: 75853.48848
B66: 62 | C66: 63164.96 | D66: 62065.23 | F66: 62 | G66: 70744.7552 | H66: 69513.0576 | J66: 62 | K66: 84893.70624 | L66: 83415.66912 | N66: 62 | O66: 81356.46848 | P66: 79940.01624
B67: 63 | C67: 66771.48 | D67: 65408.92 | F67: 63 | G67: 74784.0576 | H67: 73257.9904 | J67: 63 | K67: 89740.86912 | L67: 87909.58848 | N67: 63 | O67: 86001.66624 | P67: 84246.68896
B68: 64 | C68: 70583.92 | D68: 68932.76 | F68: 64 | G68: 79053.9904 | H68: 77204.6912 | J68: 64 | K68: 94864.78848 | L68: 92645.62944 | N68: 64 | O68: 90912.08896 | P68: 88785.39488
B69: 65 | C69: 74614.04 | D69: 72646.44 | F69: 65 | G69: 83567.7248 | H69: 81364.0128 | J69: 65 | K69: 100281.2698 | L69: 97636.81536 | N69: 65 | O69: 96102.88352 | P69: 93568.61472
B70: 66 | C70: 78874.27 | D70: 76560.19 | F70: 66 | G70: 88339.1824 | H70: 85747.4128 | J70: 66 | K70: 106007.0189 | L70: 102896.8954 | N70: 66 | O70: 101590.0598 | P70: 98609.52472
B71: 67 | C71: 83377.74 | D71: 80684.79 | F71: 67 | G71: 93383.0688 | H71: 90366.9648 | J71: 67 | K71: 112059.6826 | L71: 108440.3578 | N71: 67 | O71: 107390.5291 | P71: 103922.0095
B72: 68 | C72: 88138.35 | D72: 85031.6 | F72: 68 | G72: 98714.952 | H72: 95235.392 | J72: 68 | K72: 118457.9424 | L72: 114282.4704 | N72: 68 | O72: 113522.1948 | P72: 109520.7008
B73: 69 | C73: 93170.77 | D73: 89612.59 | F73: 69 | G73: =+C73*1.12 -> 104351.2624 | H73: 100366.1008 | J73: 69 | K73: 125221.5149 | L73: 120439.321 | N73: 69 | O73: 120003.9518 | P73: 115421.0159
B74: 70 | C74: 98490.53 | D74: 94440.37 | F74: 70 | G74: 110309.3936 | H74: 105773.2144 | J74: 70 | K74: 132371.2723 | L74: 126927.8573 | N74: 70 | O74: 126855.8026 | P74: 121639.1966
B75: 71 | C75: 104114.03 | D75: 99528.25 | F75: 71 | G75: 116607.7136 | H75: 111471.64 | J75: 71 | K75: 139929.2563 | L75: 133765.968 | N75: 71 | O75: 134098.8706 | P75: 128192.386
B76: 72 | C76: 110058.62 | D76: 104890.23 | F76: 72 | G76: 123265.6544 | H76: 117477.0576 | J76: 72 | K76: 147918.7853 | L76: 140972.4691 | N76: 72 | O76: 141755.5026 | P76: 135098.6162
B77: 73 | C77: 116342.62 | D77: 110541.08 | F77: 73 | G77: 130303.7344 | H77: 123806.0096 | J77: 73 | K77: 156364.4813 | L77: 148567.2115 | N77: 73 | O77: 149849.2946 | P77: 142376.911
B78: 74 | C78: 122985.42 | D78: 116496.37 | F78: 74 | G78: 137743.6704 | H78: 130475.9344 | J78: 74 | K78: 165292.4045 | L78: 156571.1213 | N78: 74 | O78: 158405.221 | P78: 150047.3246
B79: 75 | C79: 130007.5 | D79: 122772.49 | F79: 75 | G79: 145608.4 | H79: 137505.1888 | J79: 75 | K79: 174730.08 | L79: 165006.2266 | N79: 75 | O79: 167449.66 | P79: 158130.9671
B80: 76 | C80: 137430.52 | D80: 129386.73 | F80: 76 | G80: 153922.1824 | H80: 144913.1376 | J80: 76 | K80: 184706.6189 | L80: 173895.7651 | N80: 76 | O80: 177010.5098 | P80: 166650.1082
B81: 77 | C81: 145277.38 | D81: 136357.3 | F81: 77 | G81: 162710.6656 | H81: 152720.176 | J81: 77 | K81: 195252.7987 | L81: 183264.2112 | N81: 77 | O81: 187117.2654 | P81: 175628.2024
B82: 78 | C82: 153572.26 | D82: 143703.41 | F82: 78 | G82: 172000.9312 | H82: 160947.8192 | J82: 78 | K82: 206401.1174 | L82: 193137.383 | N82: 78 | O82: 197801.0709 | P82: 185089.9921
B83: 79 | C83: 162340.75 | D83: 151445.28 | F83: 79 | G83: 181821.64 | H83: 169618.7136 | J83: 79 | K83: 218185.968 | L83: 203542.4563 | N83: 79 | O83: 209094.886 | P83: 195061.5206
B84: 80 | C84: 171609.9 | D84: 159604.23 | F84: 80 | G84: 192203.088 | H84: 178756.7376 | J84: 80 | K84: 230643.7056 | L84: 214508.0851 | N84: 80 | O84: 221033.5512 | P84: 205570.2482
B85: 81 | C85: 181408.29 | D85: 168202.74 | F85: 81 | G85: 203177.2848 | H85: 188387.0688 | J85: 81 | K85: 243812.7418 | L85: 226064.4826 | N85: 81 | O85: 233653.8775 | P85: 216645.1291
B86: 82 | C86: 191766.14 | D86: 177264.49 | F86: 82 | G86: 214778.0768 | H86: 198536.2288 | J86: 82 | K86: 257733.6922 | L86: 238243.4746 | N86: 82 | O86: 246994.7883 | P86: 228316.6631
B87: 83 | C87: 202715.38 | D87: 186814.43 | F87: 83 | G87: 227041.2256 | H87: 209232.1616 | J87: 83 | K87: 272449.4707 | L87: 251078.5939 | N87: 83 | O87: 261097.4094 | P87: 240616.9858
B88: 84 | C88: 214289.8 | D88: 196878.86 | F88: 84 | G88: 240004.576 | H88: 220504.3232 | J88: 84 | K88: 288005.4912 | L88: 264605.1878 | N88: 84 | O88: 276005.2624 | P88: 253579.9717
B89: 85 | C89: 226525.07 | D89: 207485.5 | F89: 85 | G89: 253708.0784 | H89: 232383.76 | J89: 85 | K89: =+G89*1.2 -> 304449.6941 | L89: 278860.512 | N89: 85 | O89: =+G89*1.15 -> 291764.2902 | P89: 267241.324
B90: 86 | C90: 239458.94 | D90: 218663.57 | F90: 86 | G90: 268194.0128 | H90: 244903.1984 | J90: 86 | K90: 321832.8154 | L90: 293883.8381 | N90: 86 | O90: 308423.1147 | P90: 281638.6782
B91: 87 | C91: 253131.3 | D91: 230443.84 | F91: 87 | G91: 283507.056 | H91: 258097.1008 | J91: 87 | K91: 340208.4672 | L91: 309716.521 | N91: 87 | O91: 326033.1144 | P91: 296811.6659
B92: 88 | C92: 267584.31 | D92: 242858.76 | F92: 88 | G92: 299694.4272 | H92: 272001.8112 | J92: 88 | K92: 359633.3126 | L92: 326402.1734 | N92: 88 | O92: 344648.5913 | P92: 312802.0829
B93: 89 | C93: 282862.53 | D93: 255942.52 | F93: 89 | G93: 316806.0336 | H93: 286655.6224 | J93: 89 | K93: 380167.2403 | L93: 343986.7469 | N93: 89 | O93: 364326.9386 | P93: 329653.9658
B94: 90 | C94: 299013.1 | D94: 269731.15 | F94: 90 | G94: 334894.672 | H94: 302098.888 | J94: 90 | K94: 401873.6064 | L94: 362518.6656 | N94: 90 | O94: 385128.8728 | P94: 347413.7212
B95: 91 | C95: 316085.81 | D95: 284262.64 | F95: 91 | G95: 354016.1072 | H95: 318374.1568 | J95: 91 | K95: 424819.3286 | L95: 382048.9882 | N95: 91 | O95: 407118.5233 | P95: 366130.2803
B96: 92 | C96: 334133.32 | D96: 299576.99 | F96: 92 | G96: 374229.3184 | H96: 335526.2288 | J96: 92 | K96: 449075.1821 | L96: 402631.4746 | N96: 92 | O96: 430363.7162 | P96: 385855.1631
B97: 93 | C97: 353211.28 | D97: 315716.38 | F97: 93 | G97: 395596.6336 | H97: 353602.3456 | J97: 93 | K97: 474715.9603 | L97: 424322.8147 | N97: 93 | O97: 454936.1286 | P97: 406642.6974
B98: 94 | C98: 373378.54 | D98: 332725.27 | F98: 94 | G98: 418183.9648 | H98: 372652.3024 | J98: 94 | K98: 501820.7578 | L98: 447182.7629 | N98: 94 | O98: 480911.5595 | P98: 428550.1478
B99: 95 | C99: 394697.29 | D99: 350650.5 | F99: 95 | G99: 442060.9648 | H99: 392728.56 | J99: 95 | K99: 530473.1578 | L99: 471274.272 | N99: 95 | O99: 508370.1095 | P99: 451637.844
B100: 96 | C100: 417233.27 | D100: 369541.43 | F100: 96 | G100: 467301.2624 | H100: 413886.4016 | J100: 96 | K100: 560761.5149 | L100: 496663.6819 | N100: 96 | O100: 537396.4518 | P100: 475969.3618
B101: 97 | C101: 441055.98 | D101: 389450.09 | F101: 97 | G101: 493982.6976 | H101: 436184.1008 | J101: 97 | K101: 592779.2371 | L101: 523420.921 | N101: 97 | O101: 568080.1022 | P101: 501611.7159
B102: 98 | C102: 466238.89 | D102: 410431.3 | F102: 98 | G102: 522187.5568 | H102: 459683.056 | J102: 98 | K102: 626625.0682 | L102: 551619.6672 | N102: 98 | O102: 600515.6903 | P102: 528635.5144
B103: 99 | C103: 492859.67 | D103: 432542.86 | F103: 99 | G103: 552002.8304 | H103: 484448.0032 | J103: 99 | K103: 662403.3965 | L103: 581337.6038 | N103: 99 | O103: 634803.255 | P103: 557115.2037
B104: 100 | C104: 492859.67 | D104: 432542.86 | F104: 100 | G104: 552002.8304 | H104: 484448.0032 | J104: 100 | K104: 662403.3965 | L104: 581337.6038 | N104: 100 | O104: 634803.255 | P104: 557115.2037

Sheet CAMBIOS (hidden)
A1: CAMBIOS MEDICO TOTAL
A3: HOJA FACTORES (TABLAS DE CALCULO)
A4: Tabla de Deducible
A5: Tabla de Eliminación de Deducible por Accidente
A6: Nueva Tabla de parto y cesárea
A7: Tabla de Enfermedades Graves
A8: Tabla de Tarifas
A9: Se agrega tabla de Base de honorarios
A10: Se modifica tabla de factores por región a quedar 4
A12: HOJA TITULAR DEL COTIZADOR (CALCULO TARIFA)
A13: Modificación de costos cobertura Adicionales (dental, PAQ_ADIC, ASIST_IKE, CVISION)
A14: Se elimina la cobertura de Educasystem (maestro a domicilio)
A15: Se agrega costo por cobertura de parto y cesárea (amarrado a la tabla que se encuentra en factores)
A16: Modificación de costo de Derecho de Póliza a 700 pesos
A18: HOJA COTIZACION (COTIZADOR)
A19: Se deja deducible mínimo en 6,000
A20: se modifica Querétaro a zona 4
A21: se modifican la tabla de estados por zona (sólo hay 4 zonas)
A23: HOJA IMPRESIÓN (formato Cotización y Cuadro de especificaciones) | H23: CUADRO DE ESPECIFICACIONES IMPLICA
A24: Modificación de la cobertura de enfermedades catastróficas | H24: ü Cuadro de especificaciones dentro del botón de “Cuadro de Especificaciones” en el paso 2 del cotizador.
A25: Se elimina de cuadro de coberturas la cobertura de Servicio de Maestro a Domicilio | H25: ü Cuadro de especificaciones dentro de la cotización.
A26: Se MODIFICA en el cuadro de coberturas la Cobertura de Dental para agregar Visión (REVISAR LAS AYUDAS PARA ESPECIFICAR ALCANCES Y EVITAR CONFUSION CON LA OPCIONAL) | H26: ü Cuadro de especificaciones dentro del kit de impresión de la póliza.
A27: Modificación de base de honorarios quirúrgicos y fórmula para calcularlo | H27: ü Cuadro de especificaciones en el botón “Cuadro de Especificaciones” del Tarifario.
A28: Modificación de la leyenda de beneficio por pago directo y una leyenda en NOTAS | H28: ü Cuadro de especificaciones generado dentro del Tarifario.
H29: ü Cuadro de especificaciones dentro de renovaciones Aviso de Renovación de Póliza
A30: MODULOS A IMPACTAR EN ESPACIO
A31: Tarifa de Línea
A32: Tarifa de Empleados
A33: Tarifario
A34: Renovación
A36: CAMBIO EN NUMERO DE REGISTRO
A37: Solicitud
A38: Carátula
A39: Cuadro de Especificaciones
A41: SABE
A42: Aplicar los cambios en la integración
A43: Considerar la nueva cobertura adicional para cobertura de parto y cesárea (adicional 17)
A44: No integrar la cobertura de educasystem (maestro a domicilio)
A46: MODIFICACION EN CARTAS
A47: Cartas de Bienvenida
A48: Carta de Aviso de Renovación
A49: Carta de Renovación
A51: MODIFICACION DE FORMATOS, TAMAÑO DE LETRA Y FORMATOS
A52: Solicitud
A53: carátula
A54: cuadro de especificaciones.
